Workbook

Sheet Acceuil
E7: COMITE INTERMINISTERIEL DE PILOTAGE DE LA POLITIQUE NATIONALE DE DECENTRALISATION ET DE DECONCENTRATION (CIP-PONADEC)
E8: SECRETARIAT PERMANENT
E10: Calcul de l'Indice de bonne Gouvernance Locale (IGL)
F12: Département | G12: ATLANTIQUE | I12: Commune | J12: ABOMEY-CALAVI | O12: Année : | P12: 2019
E17: Informations à saisir par catégorie
G19: Budget | L19: Cadres de Concertation
G20: Conseil Communal | L20: Tutelle
G21: Conseil d'Arrondissement | L21: Marchés
G22: Conseil de Village | L22: Services délégués
G23: Commissions Permanentes | L23: Autres données

Sheet Budget
A1: Retour à l'accueil
A2: Prévision | D2: Réalisation | K2: Autres données financieres
A3: Montant du budget | B3: Recette fiscales | C3: PAI | D3: Dépenses d'investissement | G3: Dépenses totales de fonctionnement | H3: Dépenses d'entretien des équipements et ouvrages | I3: Recettes fiscales | J3: PAI | K3: Montant des ressources propres de l'année 2018 | L3: Montant des ressources propres de l'année 2019 | M3: Montant des cotisations versées à échéance (Intercommunalité et Association de communes) | N3: Montant des cotisations dues à échéance (Intercommunalité et Association de communes)
D4: Ressources propres (Auto financement) | E4: Investissement provenant de la coopération décentralisée | F4: Autres ressources
A5: 6644821608 | B5: 2023176000 | C5: 8902914261 | D5: 447787784 | E5: 0 | F5: 1173329708 | G5: 2213494786 | H5: 320973775 | I5: 2293454478 | J5: 889660927 | K5: 3836648774 | L5: 3894668134 | M5: 3000000 | N5: 5000000

Sheet CC
A1: Retour à l'accueil
A2: Tenue des Sessions ordinaires
A3: Nombre de réunions de municipalité tenues | D3: 6
A4: Nombre d'élus du Conseil Communal | D4: 37
A5: Sessions | B5: Nombre d'élus présents | C5: Date début session | D5: Date fin session | E5: Date affichage relevé session | F5: Production du rapport d'activités du Maire | H5: dif | I5: delai
A6: Session N°1 | B6: 34 | C6: 2019-03-26 | D6: 2019-03-29 | E6: 2019-03-29 | F6: OUI | H6: =IF(OR(D6="",E6=""),-1,DATEDIF(D6,E6,"d")) -> 0 | I6: =IF(OR(H6<0,H6>8),0,1) -> 1
A7: Session N°2 | B7: 33 | C7: 2019-06-25 | D7: 2019-06-28 | E7: 2019-06-28 | F7: OUI | H7: =IF(OR(D7="",E7=""),-1,DATEDIF(D7,E7,"d")) -> 0 | I7: =IF(OR(H7<0,H7>8),0,1) -> 1
A8: Session N°3 | B8: 33 | C8: 2019-09-24 | D8: 2019-09-27 | E8: 2019-09-27 | F8: OUI | H8: =IF(OR(D8="",E8=""),-1,DATEDIF(D8,E8,"d")) -> 0 | I8: =IF(OR(H8<0,H8>8),0,1) -> 1
A9: Session N°4 | B9: 34 | C9: 2019-11-26 | D9: 2019-11-29 | E9: 2019-11-29 | F9: OUI | H9: =IF(OR(D9="",E9=""),-1,DATEDIF(D9,E9,"d")) -> 0 | I9: =IF(OR(H9<0,H9>8),0,1) -> 1

Sheet CA
A1: Retour à l'accueil
A2: Arrondissements | B2: Nombre de sessions de conseils d’arrondissement tenues
A3: AKASSATO | B3: 0
A4: GODOMEY | B4: 0
A5: GOLO-DJIGBE | B5: 0
A6: HEVIE | B6: 0
A7: KPANROUN | B7: 0
A8: OUEDO | B8: 0
A9: TOGBA | B9: 0
A10: ZINVIE | B10: 0
A11: ABOMEY-CALAVI | B11: 0

Sheet CV
A1: Retour à l'accueil
A2: Arrondissements | B2: Villages | C2: Nombre de réunions de conseils de village tenues au cours de l’année | D2: Section Villagoise\urbaine de Gestion Fonctiere (SVGF et SUGF)
D3: Enquetes Publiques Contradictoires (EPC)
D4: Nombre de demandes effectuées | E4: Nombre de demandes réalisées
A5: AKASSATO | B5: ADJAGBO
B6: AGASSA-GODOMEY
B7: AGONME
B8: AGONSOUNDJA
B9: AKASSATO CENTRE
B10: GBETAGBO
B11: GLO-TOKPA
B12: HOUEKE-GBO
B13: HOUEKE-HONOU
B14: KOLETIN
B15: KPODJI-LES-MONTS
B16: MISSESSINTO
B17: ZEKANMEY-DOME
B18: ZOPAH PALMERAIE
A19: GODOMEY | B19: ABIKOUHOLI
B20: AGBO-CODJI-SEDEGBE
B21: AGONKANMEY
B22: AIMEVO
B23: ALEGLETA
B24: AMANHOUN
B25: ASSROSSA
B26: ATROKPO-CODJI
B27: COCOCODJI
B28: COCOTOMEY
B29: DEKOUNGBE-EGLISE
B30: DEKOUNGBE-USINE
B31: DENOU
B32: DJEKPOTA
B33: DJOUKPA-TOGOUDO
B34: FANDJI
B35: FIGNONHOU
B36: FINAFA
B37: GANGANZOUNME
B38: GBEGNIGAN-MIDOKPO
B39: GBODJE-WOMEY
B40: GNINKINDJI
B41: GODOMEY-N'GBEHO
B42: GODOMEY-TOGOUDO
B43: HEDOME
B44: HELOUTO
B45: HOUAKOMEY
B46: HOUNSA-AGBODOKPA
B47: LA PAIX
B48: LOBOZOUNKPA
B49: MARIA-GLETA
B50: NINGBOTO
B51: NONHOUENOU
B52: OUNVENOUMEDE
B53: PLATEAU
B54: SALAMEY
B55: SEDJANNANKO
B56: SEDOMEY
B57: SELOLI-FANDJI
B58: SODO
B59: TANKPE
B60: TOGBIN-DAHO
B61: TOGBIN-KPEVI
B62: TOGNIN-FANDJI
B63: TOKPA
B64: WOMEY CENTRE
B65: YENANDJRO
B66: YOLOMAHOUTO
B67: ZOUNGA
A68: GOLO-DJIGBE | B68: ADJAME
B69: AGONGBE
B70: AGONKESSA
B71: ALLADACOME
B72: AZONSA
B73: DJISSOUKPA
B74: DOMEY-GBO
B75: GOLO-DJIGBE
B76: GOLO-FANTO
B77: LOHOUSSA
B78: MISSEBO-ESPACE SAINT
B79: YEKON-AGA
B80: YEKON-DO
B81: ZEKANMEY
A82: HEVIE | B82: ADOVIE
B83: AKOSSAVIE
B84: DOSSOUNOU
B85: HEVIE CENTRE
B86: HOUINME
B87: HOUNYEVA
B88: HOUNZEVIE
B89: SOGAN
B90: ZOUNGO
A91: KPANROUN | B91: ANAGBO
B92: AVAGBE
B93: BOZOUN
B94: DJIGBO
B95: HADJANAHO
B96: KPANROUN
B97: KPANROUN-DODOMEY
B98: KPAVIEDJA
B99: KPE
A100: OUEDO | B100: ADJAGBO
B101: ADJAGBO-AIDJEDO
B102: ADJAGLO-AIDJEDO
B103: AHOUATO
B104: ALANSANKOME
B105: DASSEKOMEY
B106: DESSATO
B107: KPOSSIDJA
B108: OUEDO CENTRE
B109: OUEDO CENTRE
A110: TOGBA | B110: AHOSSOUGBETA
B111: DRABO
B112: FIFONSI
B113: HOUETO
B114: OUEGA-AGUE
B115: OUEGA-TOKPA
B116: SOME
B117: TANKPE
B118: TOGBA MARIA-GLETA
B119: TOKAN
B120: TOKAN AIDEGNON
A121: ZINVIE | B121: ADJOGANSA
B122: DANGBODJI
B123: DOKOMEY
B124: GBODJE
B125: GBODJOKO
B126: HOUEGOUDO
B127: KPOTOMEY
B128: SOKAN
B129: WAWATA
B130: WAWATA-TODJA
B131: YEVIE
B132: YEVIE-NOUGO
B133: ZINVIE-AGOLEDJI
B134: ZINVIE-FANDJI
B135: ZINVIE-ZOUNME
A136: ABOMEY-CALAVI | B136: AGAMANDIN
B137: AGORI
B138: AIFA
B139: AITCHEDJI
B140: ALEDJO
B141: CITE LA VICTOIRE
B142: CITE LES PALMIERS
B143: FANDJI
B144: FINAFA
B145: GBODJO
B146: KANSOUNKPA
B147: SEME
B148: TANKPE
B149: TCHINANGBEGBO
B150: TOKPA-ZOUNGO
B151: TOKPA-ZOUNGO NORD
B152: TOKPA-ZOUNGO SUD
B153: ZOGBADJE
B154: ZOPAH
B155: ZOUNDJA

Sheet CP
A1: Retour à l'accueil
A2: Tenue des sessions ordinaires des commissions permanentes
A3: Commissions permanentes (CP) | B3: Nom de la commission | C3: Effectif des membres | D3: Réunion N°1 | G3: Réunion N°2 | J3: Réunion N°3 | M3: Réunion N°4 | P3: Réunion N°5 | S3: Réunion N°6 | V3: Réunion N°7 | Y3: Réunion N°8 | AB3: Réunion N°9 | AE3: Réunion N°10 | AH3: Réunion N°11 | AK3: Réunion N°12
D4: Nombre de membres presents | E4: Nombre de propositions faites | F4: Nombre de propositions réalisées par le Maire | G4: Nombre de membres presents | H4: Nombre de propositions faites | I4: Nombre de propositions réalisées par le Maire | J4: Nombre de membres presents | K4: Nombre de propositions faites | L4: Nombre de propositions réalisées par le Maire | M4: Nombre de membres presents | N4: Nombre de propositions faites | O4: Nombre de propositions réalisées par le Maire | P4: Nombre de membres presents | Q4: Nombre de propositions faites | R4: Nombre de propositions réalisées par le Maire | S4: Nombre de membres presents | T4: Nombre de propositions faites | U4: Nombre de propositions réalisées par le Maire | V4: Nombre de membres presents | W4: Nombre de propositions faites | X4: Nombre de propositions réalisées par le Maire | Y4: Nombre de membres presents | Z4: Nombre de propositions faites | AA4: Nombre de propositions réalisées par le Maire | AB4: Nombre de membres presents | AC4: Nombre de propositions faites | AD4: Nombre de propositions réalisées par le Maire | AE4: Nombre de membres presents | AF4: Nombre de propositions faites | AG4: Nombre de propositions réalisées par le Maire | AH4: Nombre de membres presents | AI4: Nombre de propositions faites | AJ4: Nombre de propositions réalisées par le Maire | AK4: Nombre de membres presents | AL4: Nombre de propositions faites | AM4: Nombre de propositions réalisées par le Maire
A5: CP N°1 | B5: Commission des Affaires Economiques et Financieres (CAEF) | C5: 2 | AP5: =C5*COUNTA(D5,G5,J5,M5,S5,V5,Y5,AB5,AE5,AH5,AK5) -> 0
A6: CP N°2 | B6: Commission des Affaires Domaniales et Environnementales (CADE) | C6: 2 | AP6: 0
A7: CP N°3 | B7: Commission des Affaires Sociales et Culturelles (CASC) | C7: 2 | AP7: 0
A8: CP N°4 | B8: Commission du suivi des Plans et Programme de Développement | C8: 2
A9: CP N°5 | B9: Commission de la lutte contre l'Evasion Fiscale | C9: 2
A10: CP N°6 | B10: Commission des Infrastructures, des Equipements, des Travaux Publics et des Transports | C10: 2
A11: CP N°7 | B11: Commission de la Promotion de l'emploi | C11: 2 | AP11: 0
A12: CP N°8 | B12: Commission de la Coopération Décentralisée | C12: 2 | AP12: 0
A13: CP N°9 | B13: Commission de la Micro Finance et de la Lutte contre la Pauvreté | C13: 2 | AP13: 0
A14: CP N°10 | B14: Commission du Contentieux et des Affaires Juridiques | C14: 2 | AP14: 0
A15: CP N°11 | B15: Commission chargée des relations avec la société civile | C15: 2 | AP15: 0
A16: CP N°12 | B16: Commission de la Sécurité et de la Gestion des Calamités | C16: 2 | AP16: 0
A17: CP N°13 | B17: Commission de la Communication et de l'information | C17: 2 | AP17: 0
A18: Nombre | C18: =COUNT(C5:C17) -> 13 | D18: 0 | E18: 0 | F18: 0 | G18: 0 | H18: 0 | I18: 0 | J18: 0 | K18: 0 | L18: 0 | M18: 0 | N18: 0 | O18: 0 | P18: 0 | Q18: 0 | R18: 0 | S18: 0 | T18: 0 | U18: 0 | V18: 0 | W18: 0 | X18: 0 | Y18: 0 | Z18: 0 | AA18: 0 | AB18: 0 | AC18: 0 | AD18: 0 | AE18: 0 | AF18: 0 | AG18: 0 | AH18: 0 | AI18: 0 | AJ18: 0 | AK18: 0 | AL18: 0 | AM18: 0 | AP18: =SUM(AP5:AP17) -> 0
A19: Effectif | C19: =SUM(C5:C17) -> 26 | D19: 0 | E19: 0 | F19: 0 | G19: 0 | H19: 0 | I19: 0 | J19: 0 | K19: 0 | L19: 0 | M19: 0 | N19: 0 | O19: 0 | P19: 0 | Q19: 0 | R19: 0 | S19: 0 | T19: 0 | U19: 0 | V19: 0 | W19: 0 | X19: 0 | Y19: 0 | Z19: 0 | AA19: 0 | AB19: 0 | AC19: 0 | AD19: 0 | AE19: 0 | AF19: 0 | AG19: 0 | AH19: 0 | AI19: 0 | AJ19: 0 | AK19: 0 | AL19: 0 | AM19: 0

Sheet Cadres de Concertation
A1: Retour à l'accueil
A2: Tenue des Cadres de Concertation
A3: Mairie-SDE | F3: Autres Cadres
A4: Effectif des membres du Cadre de Concertation Mairie-SDE | F4: Education | G4: Eau, Hygiène et Assainissement | H4: Agricole | I4: Maire et OSC | J4: Nutrition | K4: Sport | L4: Autres
A5: Nombre de sessions prévues | C5: 0
A6: Sessions | B6: Effectif présent | C6: Date | D6: Nombre de séances tenues
A7: Session N°1
A8: Session N°2
A9: Session N°3
A10: Session N°4
A11: Session N°5
A12: Session N°6
A13: Session N°7
A14: Session N°8
A15: Session N°9
A16: Session N°10
A17: Session N°11
A18: Session N°12

Sheet Tutelle
A1: Retour à l'accueil
A2: Participation aux CDCC | E2: Budget communal (Budget primitif) | F2: Le budget est transmis ou pas. | H2: TRANSMIS
A3: Effectif (Maire et ses adjoints) | C3: 3 | F3: Date d'adoption du budget | H3: 2018-11-29
A4: Sessions | B4: Effectif présent | C4: Date début session | D4: Date fin session | F4: Date de transmission du budget à la tutelle | H4: 2018-12-13
A5: CDCC N°1 | B5: 3 | F5: Date d'approbation du budget par la tutelle | H5: 2018-12-31
A6: CDCC N°2 | B6: 3 | E6: Compte Administratif | F6: Le compte administratif est transmis ou pas. | H6: TRANSMIS
A7: Conformité des actes | F7: Date d'adoption du compte administratif de l'année 2018 | H7: 2019-06-26
A8: Nombre d’actes conformes | F8: Date de transmission à la tutelle | H8: 2019-07-10
A9: Nombre d’actes soumis pour approbation | F9: Date d'approbation du compte administratif par la tutelle | H9: 2019-08-19

Sheet Marchés
A1: Retour à l'accueil
A2: Type de commune | E2: Commune ordinaire
A3: Plan de passation des marchés publics publiés | E3: OUI
A4: Nombre de marchés publics passés hors plan de passation des marchés | E4: 0
A5: Nombre de marchés conclus dans l'année | E5: 416
A6: Nombre de marchés conclus dans l’année ayant respecté les procédures | E6: 416
A7: Mode de passation | B7: Délai de passation | C7: Marché N°1 | E7: Marché N°2 | G7: Marché N°3 | I7: Marché N°4 | K7: Marché N°5 | M7: Marché N°6 | O7: Marché N°7 | Q7: Marché N°8 | S7: Marché N°9 | U7: Marché N°10 | W7: Marché N°11 | Y7: Marché N°12 | AA7: Marché N°13 | AC7: Marché N°14 | AE7: Marché N°15 | AI7: Marché N°17 | AK7: Marché N°18 | AM7: Marché N°19 | AO7: Marché N°20 | AQ7: Marché N°21 | AS7: Marché N°22 | AU7: Marché N°23 | AW7: Marché N°24 | AY7: Marché N°25 | BA7: Marché N°26 | BC7: Marché N°27 | BE7: Marché N°28 | BG7: Marché N°29 | BI7: Marché N°30 | BK7: Marché N°31 | BM7: Marché N°32 | BO7: Marché N°33 | BQ7: Marché N°34 | BS7: Marché N°35 | BU7: Marché N°36 | BW7: Marché N°37 | BY7: Marché N°38 | CA7: Marché N°39 | CC7: Marché N°40 | CE7: Marché N°41 | CG7: Marché N°42 | CI7: Marché N°43 | CK7: Marché N°44 | CM7: Marché N°45 | CO7: Marché N°46 | CQ7: Marché N°47 | CS7: Marché N°48 | CU7: Marché N°49 | CW7: Marché N°50 | CY7: Marché N°51 | DA7: Marché N°52 | DC7: Marché N°53 | DE7: Marché N°54 | DG7: Marché N°55 | DI7: Marché N°56 | DK7: Marché N°57 | DM7: Marché N°58 | DO7: Marché N°59 | DQ7: Marché N°60 | DS7: Marché N°61 | DU7: Marché N°62 | DW7: Marché N°63 | DY7: Marché N°64 | EA7: Marché N°65 | EC7: Marché N°66 | EE7: Marché N°67 | EG7: Marché N°68 | EI7: Marché N°69 | EK7: Marché N°70 | EM7: Marché N°71 | EO7: Marché N°72 | EQ7: Marché N°73 | ES7: Marché N°74 | EU7: Marché N°75 | EW7: Marché N°76 | EY7: Marché N°77 | FA7: Marché N°78 | FC7: Marché N°79 | FE7: Marché N°80 | FG7: Marché N°81 | FI7: Marché N°82 | FK7: Marché N°83 | FM7: Marché N°84 | FO7: Marché N°85 | FQ7: Marché N°86 | FS7: Marché N°87 | FU7: Marché N°88 | FW7: Marché N°89 | FY7: Marché N°90 | GA7: Marché N°91 | GC7: Marché N°92 | GE7: Marché N°93 | GG7: Marché N°94 | GI7: Marché N°95 | GK7: Marché N°96 | GM7: Marché N°97 | GO7: Marché N°98 | GQ7: Marché N°99 | GS7: Marché N°100 | GU7: Marché N°101 | GW7: Marché N°102 | GY7: Marché N°103 | HA7: Marché N°104 | HC7: Marché N°105 | HE7: Marché N°106 | HG7: Marché N°107 | HI7: Marché N°108 | HK7: Marché N°109 | HM7: Marché N°110 | HO7: Marché N°111 | HQ7: Marché N°112 | HS7: Marché N°113 | HU7: Marché N°114 | HW7: Marché N°115 | HY7: Marché N°116 | IA7: Marché N°117 | IC7: Marché N°118 | IE7: Marché N°119 | IG7: Marché N°120 | II7: Marché N°121 | IK7: Marché N°122 | IM7: Marché N°123 | IO7: Marché N°124 | IQ7: Marché N°125 | IS7: Marché N°126 | IU7: Marché N°127 | IW7: Marché N°128 | IY7: Marché N°129 | JA7: Marché N°130 | JC7: Marché N°131 | JE7: Marché N°132 | JG7: Marché N°133 | JI7: Marché N°134 | JK7: Marché N°135 | JM7: Marché N°136 | JO7: Marché N°137 | JQ7: Marché N°138 | JS7: Marché N°139 | JU7: Marché N°140 | JW7: Marché N°141 | JY7: Marché N°142 | KA7: Marché N°143 | KC7: Marché N°144 | KE7: Marché N°145 | KG7: Marché N°146 | KI7: Marché N°147 | KK7: Marché N°148 | KM7: Marché N°149 | KO7: Marché N°150 | KQ7: Marché N°151 | KS7: Marché N°152 | KU7: Marché N°153 | KW7: Marché N°154 | KY7: Marché N°155 | LA7: Marché N°156 | LC7: Marché N°157 | LE7: Marché N°158 | LG7: Marché N°159 | LI7: Marché N°160 | LK7: Marché N°161 | LM7: Marché N°162 | LO7: Marché N°163 | LQ7: Marché N°164 | LS7: Marché N°165 | LU7: Marché N°166 | LW7: Marché N°167 | LY7: Marché N°168 | MA7: Marché N°169 | MC7: Marché N°170 | ME7: Marché N°171 | MG7: Marché N°172 | MI7: Marché N°173 | MK7: Marché N°174 | MM7: Marché N°175 | MO7: Marché N°176 | MQ7: Marché N°177 | MS7: Marché N°178 | MU7: Marché N°179 | MW7: Marché N°180 | MY7: Marché N°181 | NA7: Marché N°182 | NC7: Marché N°183 | NE7: Marché N°184 | NG7: Marché N°185 | NI7: Marché N°186 | NK7: Marché N°187 | NM7: Marché N°188 | NO7: Marché N°189 | NQ7: Marché N°190 | NS7: Marché N°191 | NU7: Marché N°192 | NW7: Marché N°193 | NY7: Marché N°194 | OA7: Marché N°195 | OC7: Marché N°196 | OE7: Marché N°197 | OG7: Marché N°198 | OI7: Marché N°199 | OK7: Marché N°200 | OM7: Marché N°201 | OO7: Marché N°202 | OQ7: Marché N°203 | OS7: Marché N°204 | OU7: Marché N°205 | OW7: Marché N°206 | OY7: Marché N°207 | PA7: Marché N°208 | PC7: Marché N°209 | PE7: Marché N°210 | PG7: Marché N°211 | PI7: Marché N°212 | PK7: Marché N°213 | PM7: Marché N°214 | PO7: Marché N°215 | PQ7: Marché N°216 | PS7: Marché N°217 | PU7: Marché N°218 | PW7: Marché N°219 | PY7: Marché N°220 | QA7: Marché N°221 | QC7: Marché N°222 | QE7: Marché N°223 | QG7: Marché N°224 | QI7: Marché N°225 | QK7: Marché N°226 | QM7: Marché N°227 | QO7: Marché N°228 | QQ7: Marché N°229 | QS7: Marché N°230 | QU7: Marché N°231 | QW7: Marché N°232 | QY7: Marché N°233 | RA7: Marché N°234 | RC7: Marché N°235 | RE7: Marché N°236 | RG7: Marché N°237 | RI7: Marché N°238 | RK7: Marché N°239 | RM7: Marché N°240 | RO7: Marché N°241 | RQ7: Marché N°242 | RS7: Marché N°243 | RU7: Marché N°244 | RW7: Marché N°245 | RY7: Marché N°246 | SA7: Marché N°247 | SC7: Marché N°248 | SE7: Marché N°249 | SG7: Marché N°250 | SI7: Marché N°251 | SK7: Marché N°252 | SM7: Marché N°253 | SO7: Marché N°254 | SQ7: Marché N°255 | SS7: Marché N°256 | SU7: Marché N°257 | SW7: Marché N°258 | SY7: Marché N°259 | TA7: Marché N°260 | TC7: Marché N°261 | TE7: Marché N°262 | TG7: Marché N°263 | TI7: Marché N°264 | TK7: Marché N°265 | TM7: Marché N°266 | TO7: Marché N°267 | TQ7: Marché N°268 | TS7: Marché N°269 | TU7: Marché N°270 | TW7: Marché N°271 | TY7: Marché N°272 | UA7: Marché N°273 | UC7: Marché N°274 | UE7: Marché N°275 | UG7: Marché N°276 | UI7: Marché N°277 | UK7: Marché N°278 | UM7: Marché N°279 | UO7: Marché N°280 | UQ7: Marché N°281 | US7: Marché N°282 | UU7: Marché N°283 | UW7: Marché N°284 | UY7: Marché N°285 | VA7: Marché N°286 | VC7: Marché N°287 | VE7: Marché N°288 | VG7: Marché N°289 | VI7: Marché N°290 | VK7: Marché N°291 | VM7: Marché N°292 | VO7: Marché N°293 | VQ7: Marché N°294 | VS7: Marché N°295 | VU7: Marché N°296 | VW7: Marché N°297 | VY7: Marché N°298 | WA7: Marché N°299 | WC7: Marché N°300 | WE7: Marché N°301 | WG7: Marché N°302 | WI7: Marché N°303 | WK7: Marché N°304 | WM7: Marché N°305 | WO7: Marché N°306 | WQ7: Marché N°307 | WS7: Marché N°308 | WU7: Marché N°309 | WW7: Marché N°310 | WY7: Marché N°311 | XA7: Marché N°312 | XC7: Marché N°313 | XE7: Marché N°314 | XG7: Marché N°315 | XI7: Marché N°316 | XK7: Marché N°317 | XM7: Marché N°318 | XO7: Marché N°319 | XQ7: Marché N°320 | XS7: Marché N°321 | XU7: Marché N°322 | XW7: Marché N°323 | XY7: Marché N°324 | YA7: Marché N°325 | YC7: Marché N°326 | YE7: Marché N°327 | YG7: Marché N°328 | YI7: Marché N°329 | YK7: Marché N°330 | YM7: Marché N°331 | YO7: Marché N°332 | YQ7: Marché N°333 | YS7: Marché N°334 | YU7: Marché N°335 | YW7: Marché N°336 | YY7: Marché N°337 | ZA7: Marché N°338 | ZC7: Marché N°339 | ZE7: Marché N°340 | ZG7: Marché N°341 | ZI7: Marché N°342 | ZK7: Marché N°343 | ZM7: Marché N°344 | ZO7: Marché N°345 | ZQ7: Marché N°346 | ZS7: Marché N°347 | ZU7: Marché N°348 | ZW7: Marché N°349 | ZY7: Marché N°350 | AAA7: Marché N°351 | AAC7: Marché N°352 | AAE7: Marché N°353 | AAG7: Marché N°354 | AAI7: Marché N°355 | AAK7: Marché N°356 | AAM7: Marché N°357 | AAO7: Marché N°358 | AAQ7: Marché N°359 | AAS7: Marché N°360 | AAU7: Marché N°361 | AAW7: Marché N°362 | AAY7: Marché N°363 | ABA7: Marché N°364 | ABC7: Marché N°365 | ABE7: Marché N°366 | ABG7: Marché N°367 | ABI7: Marché N°368 | ABK7: Marché N°369 | ABM7: Marché N°370 | ABO7: Marché N°371 | ABQ7: Marché N°372 | ABS7: Marché N°373 | ABU7: Marché N°374 | ABW7: Marché N°375 | ABY7: Marché N°376 | ACA7: Marché N°377 | ACC7: Marché N°378 | ACE7: Marché N°379 | ACG7: Marché N°380 | ACI7: Marché N°381 | ACK7: Marché N°382 | ACM7: Marché N°383 | ACO7: Marché N°384 | ACQ7: Marché N°385 | ACS7: Marché N°386 | ACU7: Marché N°387 | ACW7: Marché N°388 | ACY7: Marché N°389 | ADA7: Marché N°390 | ADC7: Marché N°391 | ADE7: Marché N°392 | ADG7: Marché N°393 | ADI7: Marché N°394 | ADK7: Marché N°395 | ADM7: Marché N°396 | ADO7: Marché N°397 | ADQ7: Marché N°398 | ADS7: Marché N°399 | ADU7: Marché N°400 | ADW7: Marché N°401 | ADY7: Marché N°402 | AEA7: Marché N°403 | AEC7: Marché N°404 | AEE7: Marché N°405 | AEG7: Marché N°406 | AEI7: Marché N°407 | AEK7: Marché N°408 | AEM7: Marché N°409 | AEO7: Marché N°410 | AEQ7: Marché N°411 | AES7: Marché N°412 | AEU7: Marché N°413 | AEW7: Marché N°414 | AEY7: Marché N°415 | AFA7: Marché N°416 | AFC7: Marché N°417 | AFE7: Marché N°418 | AFG7: Marché N°419 | AFI7: Marché N°420
C8: Fourniture de matériels mortuaires au profit de la mairie d’Abomey-Calavi | E8: Entretien et nettoyage des bureaux et abords immédiats du service des impôts d’Abomey-Calavi | G8: Travaux d’ouverture des voies dans le village d’Agonsoudja dans l’arrondissement d’Akassato | I8: Décoration lumineuse de la façade de la mairie et décor de poteaux électriques | K8: Changement de pose luminaires étoile magique lumineuse à Hêvié | M8: Changement de pose luminaires cadre à cornet à Arconville | O8: Décoration lumineuse avec pose de boule de Père Noel devant la résidence du maire | Q8: Changement de pose luminaires et habillage monument à Tankpè | S8: Changement de pose luminaires (the light-house) | U8: Changement de pose luminaires (Cornet de l’échangeur et remise à niveau du jet d’eau) | W8: Enlèvement et transport des déchets du marché de Golo-Djigbé au profit de la mairie d’Abomey-Calavi | Y8: Travaux de construction de 150 ml de clôture de l’UVS de Kpossidja/ Ouêdo | AA8: Travaux de construction d’un hangar de 12 m x 5,2m et d’un petit hangar de 12m x 2,60 m dans le marché de Tokpa-Zoungo | AC8: Fourniture de mobiliers scolaires au profit de l’EPP Ouêdo-Adjagbo/Ouêdo | AE8: Gardiennage et surveillance des locaux de la recette perception de la commune d’Abomey-Calavi | AI8: Location de bulldozer pour les travaux d’ouverture des voies dans les villages de Agassa-Godomey; Agonmey et Zèkanmey-Domè/ Akassato | AK8: Travaux de construction de 150 ml de clôture de l’EPP de Zogbadjè Alomakoun / Abomey-Calavi | AM8: Fourniture de mobiliers scolaires au profit de l’EPP de Kansounkpa /Calavi | AO8: Construction de 150 ml de clôture de l’EPP de Tankpè-Foret/ Calavi-centre | AQ8: Nettoyage et entretien du bloc administratif et de l’enceinte de la cour de la mairie d’Abomey-Calavi | AS8: Travaux d’assainissement partiel du marché de Tokpa Zoungo | AU8: Fourniture de mobiliers scolaires au profit de l’EPP Womey-Yénawa/Godomey | AW8: Travaux de construction d’un module de latrine à quatre cabines à double fosses ventilées dans les EPP de Ouêdo-Aguétokpa et de Tankpè-Foret | AY8: Construction de (03) boutiques dans le marché de OUNVENOUMEDE dans l’ARRONDISSEMENT de GODOMEY | BA8: Travaux de construction d’un hangar de 12m X 5,2 m dans le marché de Tokpa- Zoungo | BC8: Travaux de construction de 150 mL de clôture de l’EPP de ADJAGBO dans l’arrondissement de Ouêdo | BE8: Commande de registre de naissance au profit de la Mairie | BG8: Commande de registre (registre de décès, de mariage et de naissance) au profit de la Mairie | BI8: Travaux de réaménagement des pavés et coulages des dalettes dans la Commune d’Abomey - Calavi | BK8: Construction de 150 ml de clôture de l’EPP de ALLANSANCOME dans l’ARRONDISSEMENT de OUEDO | BM8: Construction de 150 ml de clôture de l’EPP de « LA BENINOISE » dans l’ARRONDISSEMENT de Calavi | BO8: Construction de 150 ml de clôture de l’EPP de KPE dans l’ARRONDISSEMENT de KPANROUN | BQ8: Construction de 150 ml de clôture de l’EPP de Zoca dans l’ARRONDISSEMENT de Calavi | BS8: Commande de fourniture de bureau au profit de la Mairie d’Abomey- Calavi | BU8: Réalisation d’un dossier spécial sur la Mairie d’Abomey – Calavi avec la photo du Maire à la Une dans la Magazine | BW8: Publication d’articles relatifs aux activités de la Mairie d’Abomey - Calavi | BY8: Construction d’un module de trois (03) boutiques dans le marché de GNININ dans l’ARRONDISSEMENT d’AKASSATO | CA8: Publication d’articles relatifs aux activités de la Mairie d’Abomey - Calavi | CC8: Entretien du siège de l’Arrondissement de Zinvié dans la Commune d’Abomey - Calavi | CE8: Elaboration d’un bulletin d’information électrique mensuelle – d’un plan de marketing territorial – couverture médiatique et publication dans le journal « Le Municipal » des activités de la Mairie d’Abomey - Calavi | CG8: Commande de fiches : fiche « parcelle » ; fiche « Bâtiment » et fiche « Etablissement au profit de la Mairie d’Abomey – Calavi. | CI8: Travaux de désensablement des voies pavées dans la Commune d’Abomey - Calavi | CK8: Travaux de désensablement des voies bitumées dans la Commune d’Abomey - Calavi | CM8: Maintenance générale des installations de conditionnement d’air, des locaux administratifs du RDC, 1er étage et du service RFU de la mairie d’Abomey-Calavi | CO8: Maintenance du logiciel GBCO, suivi et assistance aux utilisateurs des communes (services financiers de la mairie) | CQ8: Construction de deux (02) hangars de 12 places dans le marché de Ouêdo-Aïdjèdo /Ouêdo | CS8: Construction de deux (02) hangars de 12 places dans le marché de Ouêdo-Aïdjèdo /Ouêdo | CU8: Construction de deux (02) hangars de 12 places dans le marché de Golo-Djigbé/ Golo-Djigbé | CW8: Construction de deux (02) hangars de 12 places dans le marché de Golo-Djigbé/ Golo-Djigbé | CY8: Construction de 150 ml de clôture de l’EPP de Houêkè-Honou | DA8: Commande de valeurs inactives (tickets, timbres et carnet) au profit de la commune d’Abomey-Calavi | DC8: Commande de valeurs inactives (certificats de vie et de charge et affirmations convention de vente) au profit de la commune d’Abomey-Calavi | DE8: Publication mensuelle d’articles relatifs aux activités de la mairie d’Abomey-Calavi | DG8: Publication mensuelle d’articles relatifs aux activités de la mairie d’Abomey-Calavi | DI8: Construction d’un module de trois (03) boutiques dans le marché de Tokan dans l’ARRONDISSEMENT de Togba | DK8: Construction de deux hangars de douze places chacun dans le marché de OUNVENOUMEDE dans l’Arrondissement de Godomey | DM8: Construction d’un module de trois (03) boutiques dans le marché de GNININ dans l’ARRONDISSEMENT d’AKASSATO | DO8: Construction de deux hangars de douze places chacun dans le marché de Gninin | DQ8: Construction d’un module de trois (03) boutiques dans le marché de GNININ dans l’ARRONDISSEMENT d’AKASSATO | DS8: Construction de deux hangars de douze places chacun dans le marché de Gninin | DU8: Entretien courant des pistes par la Haute Intensité de Mains d’Œuvre (HIMO) | DW8: Entretien courant des pistes par la Haute Intensité de Mains d’Œuvre (HIMO) | DY8: Entretien courant des pistes par la Haute Intensité de Mains d’Œuvre (HIMO) | EA8: Travaux de réfection du bâtiment de stockage des urnes dans la maison du peuple de Godomey | EC8: Travaux confortatifs (réalisation de placard et autres installations) dans le bureau devant servir pour l’archivage des registres de déclaration des naissances au profit de l’arrondissement de Godomey | EE8: Publication mensuelle d’articles relatifs aux activités de la mairie d’Abomey-Calavi | EG8: Publication mensuelle d’articles relatifs aux activités de la mairie d’Abomey-Calavi | EI8: Réalisation d’une enquête de satisfaction auprès des usagers de la mairie d’Abomey-Calavi | EK8: Publication mensuelle d’articles relatifs aux activités de la mairie d’Abomey-Calavi | EM8: Publication mensuelle d’articles relatifs aux activités de la mairie d’Abomey-Calavi | EO8: Construction de 150 ml de clôture de l’EPP Dassècomey / Ouêdo | EQ8: Travaux de construction de 150 ml de clôture de l’EPP Aitchédji | ES8: Travaux de construction de 150 ml de clôture de l’EPP de Ouêdo-Adjagbo | EU8: Travaux de construction de 150 ml de clôture de l’EPP de Sèmè-Makinsa | EW8: Travaux de construction de 150 ml de clôture de l’EPP de Lobozounkpaa /Godomey | EY8: Travaux de construction de 150 ml de clôture de l’EPP Adjagbo | FA8: Travaux de construction d’un module de latrines à quatre cabines de type VIP à doubles fosses ventilées à l’EPP de Kolètin / Akassato | FC8: Location d’un camion pour l’évacuation des infrastructures endommagées sur la RNIE 1 et RNIE 2 dans la commune d’Abomey-Calavi | FE8: Réalisation de tenues vestimentaires au profit de la mairie d’Abomey-Calavi | FG8: Travaux confortatifs dans la salle de conférence de la mairie d’Abomey-Calavi | FI8: Travaux de réfection de la salle d’attente, du hall d’entrée des couloirs situés en face du bureau du maire au 1er étage, de l’escalier et du hall d’entrée au RDC du bâtiment administratif de la mairie d’Abomey-Calavi | FK8: Travaux de curage des collecteurs primaires et secondaires et d’ouverture de tranchées pour l’écoulement des eaux dans la commune d’Abomey-Calavi | FM8: Travaux de curage du réseau d’assainissement de la commune d’Abomey-Calavi | FO8: Entretien courant des pistes dans la commune d’Abomey-Calavi | FQ8: Travaux de construction de deux hangars à douze places chacun dans le marché de Ouêdo-Aidjèdo | FS8: Travaux de construction de deux hangars à douze places chacun dans le marché de Golo-Djigbé | FU8: Travaux de construction de deux hangars à douze places chacun dans le marché de Golo-Djigbé | FW8: Travaux de construction de deux hangars à douze places chacun dans le marché de Ouêdo-Aidjèdo | FY8: Commande de valeurs inactives (conventions de vente) au profit de la commune d’Abomey-Calavi | GA8: Travaux de curage des collecteurs primaires et secondaires et d’ouverture de tranchées pour l’écoulement des eaux dans la commune d’Abomey-Calavi | GC8: Construction de deux hangars de douze places chacun dans le marché de Ouêdo-Aidjèdo | GE8: Acquisition de consommables informatiques au profit de la mairie d’Abomey-Calavi | GG8: Publication d’articles et d’insertions publicitaires au profit de la mairie d’Abomey-Calavi | GI8: Fourniture de mobiliers scolaires au profit de l’EPP de AKASSATO | GK8: Travaux de curage des collecteurs primaires et secondaires et d’ouverture de tranchées pour l’écoulement des eaux dans la Commune d’Abomey – Calavi. | GM8: Travaux de construction de 150 ml de clôture de l’EPP TOKAN dans l’ARRONDSENT de TOGBA, Commune d’Abomey-Calavi | GO8: Construction d’un bloc de trois boutiques dans le marché de Ounvènoumédé dans l’Arrondissement de GODOMEY | GQ8: Construction d’un bloc de trois boutiques dans le marché de Ouèdo-Aïdjèdo dans l’Arrondissement de OUEDO. | GS8: Travaux de construction de 150 ml de clôture de l’EPP de Ouèdo-Centre nouveau dans l’ARRONDISSEMENT de OUEDO, Commune d’Abomey-Calavi | GU8: Travaux de construction de 150 ml de clôture de l’EPP Houèto dans l’ARRONDISSEMENT de TOGBA, Commune d’Abomey-Calavi | GW8: Travaux de construction de deux hangars à douze places chacun dans le marché de Womey dans l’Arrondissement de GODOMEY | GY8: Travaux de construction de deux hangars à douze places chacun dans le marché de Womey dans l’Arrondissement de GODOMEY | HA8: Construction d’un module d’une salle de classe avec bureau et magasin à l’EM Yȇvié | HC8: Travaux de construction de deux hangars à douze places chacun dans le marché de Tokan dans l’Arrondissement de TOGBA | HE8: Travaux de construction de 150 ml de clôture de l’EPP Yȇvié dans l’ARRONDSENT de ZINVIE, Commune d’Abomey-Calavi | HG8: Travaux de construction de deux hangars à douze places chacun dans le marché de Womey dans l’Arrondissement de GODOMEY | HI8: Travaux de construction de deux hangars à douze places chacun dans le marché de ZINVIE | HK8: Travaux de construction de 150 ml de clôture de l’EPP AIDEGNON dans l’ARRONDSENT de TOGBA, Commune d’Abomey-Calavi | HM8: Construction d’un module d’une salle de classe avec bureau et magasin à l’EM de Ouéga-Tokpa | HO8: Travaux de construction de 150 ml de clôture de l’EPP SOME dans l’ARRONDSENT de TOGBA, Commune d’Abomey-Calavi | HQ8: Travaux de construction de 150 ml de clôture de l’EPP AWAKE dans l’ARRONDSENT de TOGBA, Commune d’Abomey-Calavi | HS8: Travaux d’assistance informatique des CIPE1 et CIPE2 d4Abomey- Calavi. | HU8: Travaux de construction de deux hangars à douze places chacun dans le marché de GNININ, Arrondissement d’AKASSATO | HW8: Travaux de construction de deux hangars à douze places chacun dans le marché de Ouêdo | HY8: Fourniture de 2100 sacs au profit des élèves et écoliers de la Commune d’Abomey-Calavi | IA8: Location de cabines au profit du secrétariat permanent de passation des marchés publics de la Commune d’Abomey-Calavi | IC8: Réalisation de l’audit des aupérations de lotissement de la zone d’habitation de l’Arrondissement d’AKASSATO | IE8: Travaux de construction de deux hangars à douze places chacun dans le marché de Tokan dans l’Arrondissement de TOGBA | IG8: Travaux de construction de deux hangars à douze places chacun dans le marché de Tokan dans l’Arrondissement de TOGBA | II8: Travaux de construction de deux hangars à douze places chacun dans le marché de ZINVIE | IK8: Travaux de construction de deux hangars à douze places chacun dans le marché de Tokan dans l’Arrondissement de TOGBA | IM8: Travaux de construction de deux hangars à douze places chacun dans le marché de ZINVIE | IO8: Travaux de construction de deux hangars à douze places chacun dans le marché de Ouêdo | IQ8: Travaux de construction de deux hangars à douze places chacun dans le marché de ZINVIE | IS8: Travaux de construction de deux hangars à douze places chacun dans le marché de ZINVIE | IU8: Travaux de construction de deux hangars à douze places chacun dans le marché de Tokan dans l’Arrondissement de TOGBA | IW8: Aménagement de réserves fusionnées dans la ZOCA pour la construction du Siège national de l’Association National des Communes du Bénin(ANCB) | IY8: Commande de valeurs inactives (attestations, certificats, demande de mariage) au profit de la Mairie | JA8: Commande de valeurs inactives (tickets droit d’exploitation carrière, carnet mutation de nom avec sécurisation) au profit de la Mairie | JC8: Construction d’un module d’une salle de classe avec bureau et magasin à l’EM AHOSSOUGBETA dans l’Arrondissement de Togba | JE8: Travaux de construction de deux hangars à douze places chacun dans le marché de ZINVIE | JG8: Travaux de construction de deux hangars à douze places chacun dans le marché de Tokan dans l’Arrondissement de TOGBA | JI8: Construction d’un module d’une salle de classe à l’EM Ouéga-Agué dans l’Arrondissement de Togba | JK8: Construction d’un module d’une salle de classe à l’EM Ouéga-Agué dans l’Arrondissement de Togba | JM8: Travaux de construction de deux hangars à douze places chacun dans le marché de Tokan dans l’Arrondissement de TOGBA | JO8: Travaux de construction de deux hangars à douze places chacun dans le marché de Tokan dans l’Arrondissement de TOGBA | JQ8: Travaux de construction de deux hangars à douze places chacun dans le marché de Tokan dans l’Arrondissement de TOGBA | JS8: Construction d’un bloc de trois boutiques dans le marché de Zinvié dans l’Arrondissement de ZINVIE | JU8: Travaux de construction de deux hangars à douze places chacun dans le marché de ZINVIE | JW8: Construction de deux hangars de douze places chacun dans le marché de Ouêdo-Aïdjèdo | JY8: Rallongement de la table de conférence, confection et pose de rideaux et la décoration de la salle de conférence au profit de la Mairie d’Abomey-Calavi | KA8: Maintenance, Assistance et dépannage des matériels informatiques des services déconcentrés de la mairie | KC8: Construction de deux hangars de douze places chacun dans le marché ST Benoît de Womey | KE8: Aménagement et décoration de la salle d’attente du Maire de la Commune d’Abomey- Calavi | KG8: Travaux de construction de deux hangars à douze places chacun dans le marché de Tokan dans l’Arrondissement de TOGBA | KI8: Construction d’un module de trois boutiques dans le marché de Tokan dans l’Arrondissement de TOGBA | KK8: Acquisition de mobiliers de bureau au profit des bureaux du Premier Adjoint au Maire et la Directrice du cabinet de la Mairie d’Abomey-Calavi | KM8: Travaux de construction de deux hangars à douze places chacun dans le marché de ZINVIE | KO8: Contrat de prestation de service relatif à la visibilité des activités du Maire | KQ8: Travaux de construction de deux hangars à douze places chacun dans le marché de Tokan dans l’Arrondissement de TOGBA | KS8: Travaux de construction de deux hangars à douze places chacun dans le marché de Tokan dans l’Arrondissement de TOGBA | KU8: Travaux de construction de deux hangars à douze places chacun dans le marché de Tokan dans l’Arrondissement de TOGBA | KW8: Travaux de construction d’un module de trois boutiques dans le marché de Zinvié | KY8: Construction d’un module de trois boutiques dans le marché de Zinvié dans l’Arrondissement de ZINVIE | LA8: Travaux de construction de deux hangars à douze places chacun dans le marché de ZINVIE | LC8: Construction d’un module de trois boutiques dans le marché de GNININ dans l’Arrondissement d’AKASSATO | LE8: Travaux de construction d’un module de trois boutiques dans le marché de Tokan | LG8: Travaux de construction de deux hangars à douze places chacun dans le marché de Tokan dans l’Arrondissement de TOGBA | LI8: Travaux de construction de deux hangars à douze places chacun dans le marché de ZINVIE | LK8: Travaux de construction de deux hangars à douze places chacun dans le marché de Tokan dans l’Arrondissement de TOGBA | LM8: Travaux de construction de deux hangars à douze places chacun dans le marché de Tokan dans l’Arrondissement de TOGBA | LO8: Construction d’un module de trois boutiques dans le marché de Tokan dans l’Arrondissement de TOGBA | LQ8: Travaux de construction de deux hangars à douze places chacun dans le marché de Tokan dans l’Arrondissement de TOGBA | LS8: Travaux de construction de deux hangars à douze places chacun dans le marché de ZINVIE | LU8: Construction d’un module de trois boutiques dans le marché de Zinvié dans l’Arrondissement de ZINVIE | LW8: Travaux de construction de deux hangars à douze places chacun dans le marché de Tokan dans l’Arrondissement de TOGBA | LY8: Travaux de construction de deux hangars à douze places chacun dans le marché de Tokan dans l’Arrondissement de TOGBA | MA8: Travaux de construction de deux hangars à douze places chacun dans le marché de ZINVIE | MC8: Travaux de construction de deux hangars à douze places chacun dans le marché de Tokan dans l’Arrondissement de TOGBA | ME8: Travaux de construction de deux hangars à douze places chacun dans le marché de GOLO - DJIGBE | MG8: Travaux de construction de deux hangars à douze places chacun dans le marché de Tokan dans l’Arrondissement de TOGBA | MI8: Travaux de construction de deux hangars à douze places chacun dans le marché de Tokan dans l’Arrondissement de TOGBA | MK8: Travaux de construction de deux hangars à douze places chacun dans le marché de ZINVIE | MM8: Construction d’un module de trois boutiques dans le marché de TOKAN dans l’Arrondissement de TOGBA | MO8: Travaux de construction d’un module de trois boutiques dans le marché de Tokan | MQ8: Travaux de construction de deux hangars à douze places chacun dans le marché de Tokan | MS8: Construction d’un module de trois boutiques dans le marché de Zinvié dans l’Arrondissement de ZINVIE | MU8: Travaux de construction de deux hangars à douze places chacun dans le marché de GOLO - DJIGBE | MW8: Désherbage et nettoyage des TPC et de l’échangeur de GODOMEY | MY8: Construction d’un module de trois boutiques dans le marché de Zinvié dans l’Arrondissement de ZINVIE | NA8: Commande de valeurs inactives (tickets, timbres et carnets) au profit de la Mairie | NC8: Travaux de construction de deux hangars à douze places chacun dans le marché de Tokan dans l’Arrondissement de TOGBA | NE8: Acquisition de matériels électriques au profit de la Mairie | NG8: Commande de valeurs inactives (convention de vente, certificats de vie, demande de mariage) au profit de la Mairie | NI8: Entretien de l’espace vert de la résidence du Maire de la commune d’Abomey-Calavi | NK8: Confectionne douze (12) sabots bloque roue adaptable à tous types de véhicules au profit de la Mairie | NM8: Partenariat entre la Mairie d’Abomey-Calavi et un quotidien d’information pour la publication mensuelle d’articles relatifs aux activités de la Mairie | NO8: Construction d’un module de latrine à quatre (04) cabines plus deux douches au centre de sante de HEVIE | NQ8: construction de 150 ml de clôture du centre de santé de HEVIE | NS8: Construction d’un module de latrine à deux (02) cabines au centre de sante de ZINVIE | NU8: Travaux de construction de deux hangars à douze places chacun dans le marché de GOLO - DJIGBE | NW8: Commande de valeurs inactives (carnets fiché de certification de la ZOPAH et carnets frais de déplacement de la commission) au profit de la Commune d’Abomey-Calavi | NY8: Publication mensuelle d’articles relatifs aux activités de la Mairie | OA8: Publication mensuelle d’articles relatifs aux activités de la Mairie | OC8: Contrôle et suivi technique des travaux de construction d’infrastructure socio-communautaires (hangars plus boutiques) dans le marché de TOGBA | OE8: Contrôle et suivi technique des travaux de construction au profit de la Commune d’Abomey-Calavi | OG8: Contrôle et suivi technique des travaux de construction d’infrastructure socio-communautaires (hangars plus boutiques) dans le marché de Ounvènoumédé à Salamey Godomey | OI8: Contrôle et suivi technique des travaux de construction au profit de la Commune d’Abomey-Calavi | OK8: Contrôle et suivi technique des travaux de construction de hangars et de boutiques dans le marché de Tokan Arrondissement de TOGBA | OM8: Contrôle et suivi technique des travaux de construction de hangars et de boutiques dans le marché de Gninin Arrondissement de AKASSATO | OO8: Contrôle et suivi technique des travaux de construction au profit de la Commune d’Abomey-Calavi | OQ8: Contrôle et suivi technique des travaux de construction au profit de la Commune d’Abomey-Calavi | OS8: Contrôle et suivi technique des travaux de construction au profit de la Commune d’Abomey-Calavi | OU8: Contrôle et suivi technique des travaux de construction au profit de la Commune d’Abomey-Calavi | OW8: Contrôle et suivi technique des travaux de construction d’un dispensaire au centre de sante de GOLO- DJIGBE | OY8: Contrôle et suivi technique des travaux de construction d’une maternité au centre de sante de MARIA -GLETA | PA8: Contrôle et suivi technique des travaux de construction au profit de la Commune d’Abomey-Calavi | PC8: Contrôle et suivi technique des travaux de construction d’un dispensaire au centre de sante de ZINVIE | PE8: Travaux de réfection du bloc Administratif du siège de l’Arrondissement de Godomey | PG8: Travaux de construction de deux hangars à douze places chacun dans le marché de Tokan dans l’Arrondissement de TOGBA | PI8: Travaux de construction de deux hangars à douze places chacun dans le marché de Ouèdo dans l’Arrondissement de OUEDO | PK8: Construction de deux hangars de douze places chacun dans le marché de Ouêdo-Aïdjèdo | PM8: Fourniture de 2100 sacs au profit des écoliers et élèves de la Commune d’Abomey-Calavi | PO8: Fourniture de mobiliers scolaire au profit des écoles primaires publiques de Togoudo, de Dèkoungbé et de Cocotomey dans l’Arrondissement de Godomey | PQ8: Fourniture de mobiliers scolaire au profit des écoles primaires publiques de Ouèdo –Adjagbo, Kansoukpa et Akassato dans la Commune d’Abomey-Calavi | PS8: Travaux de construction de deux hangars à douze places chacun dans le marché de GOLO - DJIGBE | PU8: Construction de trois boutiques dans le marché de Ouêdo-Aïdjèdo | PW8: Travaux de construction de 150 ml de clôture de l’EPP Hêvié- Adovié, Commune d’Abomey-Calavi | PY8: Fourniture de mobiliers scolaire au profit des écoles de l’Arrondissement de Calavi dans la Commune d’Abomey-Calavi | QA8: Fourniture de mobiliers scolaire au profit des écoles primaires publiques de Dodja et de Ouéga-Agué dans la Commune d’Abomey-Calavi | QC8: Construction de trois boutiques dans le marché de Tokan | QE8: Construction de trois boutiques dans le marché de Zinvié | QG8: Travaux de rechargement et de reprofilage de voies dans l’Arrondissement de OUEDO, Commune d’Abomey-Calavi | QI8: Travaux de rechargement et de reprofilage de voies dans l’Arrondissement de AKASSATO, Commune d’Abomey-Calavi | QK8: Travaux de rechargement et de reprofilage de voies dans l’Arrondissement de Calavi, Commune d’Abomey-Calavi | QM8: Travaux de rechargement et de reprofilage de voies dans l’Arrondissement de HEVIE, Commune d’Abomey-Calavi | QO8: Travaux de construction de 150 ml de clôture de l’EPP ZOUNDJA 2 dans l’Arrondissement de Calavi, Commune d’Abomey-Calavi | QQ8: Travaux de construction de 150 ml de clôture de l’EPP de TANKPE- FORET dans l’Arrondissement de Calavi, Commune d’Abomey-Calavi | QS8: Travaux de construction de 150 ml de clôture de l’EPP de SOKAN dans l’Arrondissement de Zinvié, Commune d’Abomey-Calavi | QU8: Travaux de rechargement et de reprofilage de voies dans l’Arrondissement de Godomey, Commune d’Abomey-Calavi | QW8: Travaux de rechargement et de reprofilage de voies dans l’Arrondissement de TOGBA, Commune d’Abomey-Calavi | QY8: Travaux de construction de 150 ml de clôture de l’EPP LA BENINOISE dans l’Arrondissement de Calavi, Commune d’Abomey-Calavi | RA8: Travaux de construction de 150 ml de clôture de l’EPP de HOUEGOUDO dans l’Arrondissement de Zinvié, Commune d’Abomey-Calavi | RC8: Travaux de construction de 150 ml de clôture de l’EPP de Zinvié - Fandji dans l’Arrondissement de Zinvié, Commune d’Abomey-Calavi | RE8: Construction de trois boutiques dans le marché de Tokan | RG8: Travaux de construction de deux hangars à douze places chacun dans le marché de GOLO - DJIGBE | RI8: Construction de trois boutiques dans le marché de Tokan | RK8: Fourniture de mobiliers scolaire au profit de l’EM de Yèvié et de l’EPP de SOKAN dans l’Arrondissement de Zinvié | RM8: Fourniture de mobiliers scolaire au profit des EPP de l’Arrondissement de Godomey | RO8: Fourniture de mobiliers scolaire au profit de l’EM de Ouéga-Agué dans l’Arrondissement de Togba | RQ8: Commande de fournitures scolaires au profit des élèves et écoliers de la Commune d’Abomey-Calavi | RS8: Maintenance et entretien des copieurs de la Mairie d’Abomey-Calavi | RU8: Nettoyage des cimetières de la Commune d’Abomey-Calavi | RW8: Publication mensuelle d’articles relatifs aux activités de la Mairie | RY8: Commande de valeur inactive (timbres légalisations sur signature (LS) de 500francs sur papier beige avec sécurisation) | SA8: Travaux de construction de deux hangars à douze places chacun dans le marché de Tokan dans l’Arrondissement de TOGBA | SC8: Commande de valeur inactive (Actes de naissance vierges avec logo de la Mairie en filigrane, Autorisations parentales) | SE8: Travaux de construction de deux hangars à douze places chacun dans le marché de Gninin dans l’Arrondissement d’Akassato | SG8: Travaux de construction de deux hangars à douze places chacun dans le marché de GOLO - DJIGBE | SI8: Travaux de construction de deux hangars à douze places chacun dans le marché de Ouèdo-Aïdjèdo | SK8: Travaux de construction de deux hangars à douze places chacun dans le marché de Ouèdo-Aïdjèdo | SM8: Travaux de construction de deux hangars à douze places chacun dans le marché de Ouèdo-Aïdjèdo | SO8: Travaux de construction de deux hangars à douze places chacun dans le marché de GOLO - DJIGBE | SQ8: Travaux de construction de deux hangars à douze places chacun dans le marché de Ouèdo-Aïdjèdo | SS8: Travaux de construction de deux hangars à douze places chacun dans le marché de Ouèdo-Aïdjèdo | SU8: Réalisation de travaux confortatifs sur le nouveau pavillon du centre de sante de Godomey | SW8: Travaux de construction de deux hangars à douze places chacun dans le marché de Ouèdo-Aïdjèdo | SY8: Travaux de construction de deux hangars à douze places chacun dans le marché de Togba | TA8: Travaux de rechargement et de reprofilage de voies dans l’Arrondissement de GODOMEY, Commune d’Abomey-Calavi | TC8: Travaux de rechargement et de reprofilage de voies dans l’Arrondissement de Hêvié, Commune d’Abomey-Calavi | TE8: Travaux de Construction d’un bloc de trois boutiques dans le marché de Tokan | TG8: Travaux de construction de deux hangars à douze places chacun dans le marché de Ouèdo-Aidjèdo | TI8: Travaux de construction de deux hangars à douze places chacun dans le marché de GOLO - DJIGBE | TK8: Acquisition de fourniture de bureau au profit des Arrondissements de la Commune d’Abomey-Calavi | TM8: Achat de pneus pour le Maire et ses Adjoints au profit de la Mairie d’Abomey-Calavi | TO8: Travaux de construction de deux hangars à douze places chacun dans le marché de Ouèdo-Aïdjèdo | TQ8: Travaux de construction de deux hangars à douze places chacun dans le marché de Tokan dans l’Arrondissement de TOGBA | TS8: Travaux de construction de deux hangars à douze places chacun dans le marché de Tokan dans l’Arrondissement de TOGBA | TU8: Travaux de construction de 150 ml de clôture de l’EPP GOLO-DJIGBE dans l’Arrondissement de GOLO-DJIGBE, Commune d’Abomey-Calavi | TW8: Travaux de construction de 150 ml de clôture de l’EPP Yèvié dans l’Arrondissement de HEVIE, Commune d’Abomey-Calavi | TY8: Travaux de construction de 150 ml de clôture de l’EPP Dodja dans l’Arrondissement de Calavi, Commune d’Abomey-Calavi | UA8: Travaux de construction de 150 ml de clôture de l’EPP DJIGBO dans l’Arrondissement de KPANROUN, Commune d’Abomey-Calavi | UC8: Travaux de construction de 150 ml de clôture de l’EPP ZEKANME dans l’Arrondissement de GOLO-DJIGBE, Commune d’Abomey-Calavi | UE8: Travaux de construction de 150 ml de clôture de l’EPP ANAGBO dans l’Arrondissement de KPANROUN, Commune d’Abomey-Calavi | UG8: Travaux de construction de deux hangars à douze places chacun dans le marché de GNININ dans l’Arrondissement de AKASSATO | UI8: Travaux de construction de deux hangars à douze places chacun dans le marché de Tokan dans l’Arrondissement de TOGBA | UK8: Travaux de construction de deux hangars à douze places chacun dans le marché de GOLO - DJIGBE | UM8: Travaux de Construction d’un module de trois boutiques dans le marché de Tokan | UO8: Travaux de construction de 150 ml de clôture de l’EPP KANSOUNKPA dans l’Arrondissement de CALAVI, Commune d’Abomey-Calavi | UQ8: Travaux de construction de 150 ml de clôture de l’EPP AIDEGNON dans l’Arrondissement de TOGBA, Commune d’Abomey-Calavi | US8: Travaux de Construction d’un module de trois boutiques dans le marché de GNININ | UU8: Travaux de construction de deux hangars à douze places chacun dans le marché GNININ | UW8: Travaux de construction de deux hangars à douze places chacun dans le marché GNININ | UY8: Travaux de Construction d’un module de trois boutiques dans le marché de GNININ | VA8: Travaux de construction de deux hangars à douze places chacun dans le marché de Ouèdo-Aïdjèdo | VC8: Travaux de construction de deux hangars à douze places chacun dans le marché de Ouèdo-Aïdjèdo | VE8: Construction de module de trois salles de classes avec bureau, magasin et équipement plus latrine à quatre cabines publiques de la commune d’Abomey- Calavi, Lot1 : EPP LOBOZOUNKPA/B dans l’Arrondissement de Godomey | VG8: Construction de module de trois salles de classes avec bureau, magasin et équipement plus latrine à quatre cabines, Lot2 : EPP HOSSEVIE dans l’Arrondissement de TOGBA | VI8: Construction de module de trois salles de classes avec bureau, magasin et équipement plus latrine à quatre cabines, Lot3 : EPP GOLO – MISSEBO/C dans l’Arrondissement de GOLO - DJIGBE | VK8: Contrat de prestation de visibilité des activités du Maire de la Commune d’Abomey- Calavi | VM8: Contrat de maintenance informatique pour l’entretien et le dépannage du réseau WIFI de la Résidence officielle du Maire et de sauvegarde de la base de données du site internet de la Mairie d’Abomey- Calavi | VO8: Publication mensuelle d’articles relatifs aux activités de la Mairie | VQ8: Travaux de rechargement et de reprofilage de voies dans l’Arrondissement de Calavi, Commune d’Abomey-Calavi | VS8: Travaux de construction de deux hangars à douze places chacun dans le marché de Zinvié | VU8: Travaux de construction de deux hangars à douze places chacun dans le marché de Zinvié | VW8: Travaux de construction de deux hangars à douze places chacun dans le marché de Zinvié | VY8: Travaux de construction de deux hangars à douze places chacun dans le marché GNININ | WA8: Travaux de construction de deux hangars à douze places chacun dans le marché de TOKAN | WC8: Travaux de construction de deux hangars à douze places chacun dans le marché de Zinvié | WE8: Travaux de construction de 150 ml de clôture de l’EPP Hêssoenou dans l’Arrondissement de Hêvié, Commune d’Abomey-Calavi | WG8: Travaux de construction de deux hangars à douze places chacun dans le marché de Zinvié | WI8: Travaux de désensablement des voies bitumées dans la Commune d’Abomey-Calavi | WK8: Entretien général de la résidence officielle du Maire de la Commune d’Abomey-Calavi | WM8: Travaux de décapage et de désensablement des voies bitumées dans la Commune d’Abomey-Calavi | WO8: Prestation de services : Partenariat entre la Radio « La voix de Tado » et la Mairie d’Abomey-Calavi | WQ8: Travaux de construction de deux hangars à douze places chacun dans le marché de Ouèdo-Aïdjèdo | WS8: Travaux de construction de deux hangars à douze places chacun dans le marché de Ouèdo-Aïdjèdo | WU8: Travaux de construction de 150 ml de clôture de l’EPP Hêvié - Zoungo dans l’Arrondissement de Hêvié, Commune d’Abomey-Calavi | WW8: Travaux de construction de deux hangars à douze places chacun dans le marché de Ouèdo-Aïdjèdo | WY8: Travaux de construction de deux hangars à douze places chacun dans le marché de GOLO - DJIGBE | XA8: Travaux de construction de 150 ml de clôture de l’EPP GLO-MISSEBO dans l’Arrondissement de GOLO - DJIGBE, Commune d’Abomey-Calavi | XC8: Fourniture de mobiliers scolaire au profit des EPP de l’Arrondissement de GOLO - DJIGBE | XE8: Travaux de construction de deux hangars à douze places chacun dans le marché de GOLO - DJIGBE | XG8: Fourniture de mobiliers scolaire au profit des EPP de l’Arrondissement de CALAVI | XI8: Travaux de construction de 150 ml de clôture de l’EM d’AKASSATO dans l’Arrondissement de AKASSATO, Commune d’Abomey-Calavi | XK8: Travaux de construction de deux hangars à douze places chacun dans le marché de GOLO - DJIGBE | XM8: Travaux de Construction d’un bloc de trois boutiques dans le marché de Zinvié | XO8: Fourniture de mobiliers scolaire au profit des EPP de l’Arrondissement de KPANROUN | XQ8: Travaux de construction de deux hangars à douze places chacun dans le marché de Ouèdo-Aïdjèdo | XS8: Travaux de construction de deux hangars à douze places chacun dans le marché de Tokan | XU8: Travaux de construction de deux hangars à douze places chacun dans le marché de Ouèdo-Aïdjèdo | XW8: Travaux de construction de deux hangars à douze places chacun dans le marché de Tokan | XY8: Travaux de construction de deux hangars à douze places chacun dans le marché de Tokan | YA8: Fourniture de mobiliers scolaire au profit des EPP de l’Arrondissement de HEVIE | YC8: Travaux de construction de deux hangars à douze places chacun dans le marché de Tokan | YE8: Travaux de construction de 150 ml de clôture de l’EPP dans l’Arrondissement de, Commune d’Abomey-Calavi | YG8: Travaux de construction de deux hangars à douze places chacun dans le marché de Tokan | YI8: Travaux de construction de deux hangars à douze places chacun dans le marché de GOLO - DJIGBE | YK8: Fourniture de mobiliers scolaire au profit des EPP de l’Arrondissement de OUEDO | YM8: Fourniture de mobiliers scolaire au profit des EPP de l’Arrondissement de Zinvié | YO8: Travaux de construction de deux hangars à douze places chacun dans le marché de Ouèdo-Aïdjèdo | YQ8: Travaux de construction de deux hangars à douze places chacun dans le marché de Zinvié | YS8: Travaux de construction de deux hangars à douze places chacun dans le marché de Tokan | YU8: Travaux de construction de deux hangars à douze places chacun dans le marché de Tokan | YW8: Travaux de construction de deux hangars à douze places chacun dans le marché de Tokan | YY8: Travaux de Construction d’un bloc de trois boutiques dans le marché de GNININ | ZA8: Travaux de construction de deux hangars à douze places chacun dans le marché de TOGOUDO | ZC8: Construction d’un dispensaire au centre de santé de Hêvié dans la Commune d’Abomey-Calavi | ZE8: Réalisation de l’audit des opérations de lotissement de la zone d’habitation de l’Arrondissement d’AKASSATO | ZG8: Commande de valeur inactive (timbres légalisations sur signature (LS) de 500francs sur papier beige avec sécurisation) au profit de la Mairie d’Abomey-Calavi | ZI8: Commande de valeur inactive (timbres légalisations sur signature (LS) de 500francs sur papier beige avec sécurisation) au profit de la Mairie d’Abomey-Calavi | ZK8: Travaux de construction de 150 ml de clôture de l’EPP Adjavié dans l’Arrondissement de Zinvié, Commune d’Abomey-Calavi | ZM8: Travaux de Construction d’un module de trois boutiques dans le marché de GNININ | ZO8: Travaux de Construction d’un module de trois boutiques dans le marché de GNININ | ZQ8: Travaux de construction de deux hangars à douze places chacun dans le marché de GNININ | ZS8: Suivit, surveillance et contrôle des travaux de construction d’un module de trois salles de classes plus bureau, magasin, équipement et clôture à l’EPP Centre / Calavi et travaux de construction de quatre hangars plus un bloc de toilette moderne à quatre cabines plus deux douches plus clôture au marché ST Benoit de WOMEY | ZU8: Commande de valeur inactive (timbres) au profit de la Mairie d’ Abomey-Calavi | ZW8: Commande de valeur inactive (tickets et carnets) au profit de la Mairie d’ Abomey-Calavi | ZY8: Commande de valeur inactive (timbres légalisations sur signature (LS) de 500francs sur papier beige avec sécurisation) au profit de la Mairie d’Abomey-Calavi | AAA8: Commande de valeur inactive (timbres légalisations sur signature (LS) de 500francs sur papier beige avec sécurisation) au profit de la Mairie d’Abomey-Calavi | AAC8: Commande de valeur inactive (convention, actes, certificats et attestations) au profit de la Mairie d’ Abomey-Calavi | AAE8: Commande de valeur inactive (timbres légalisations sur signature (LS) de 500francs sur papier beige avec sécurisation) au profit de la Mairie d’Abomey-Calavi | AAG8: Commande de valeur inactive (timbres et carnets) au profit de la Mairie d’ Abomey-Calavi | AAI8: Acquisition de 300 kits scolaires au profit de la Mairie d’ Abomey-Calavi | AAK8: Acquisition de 350 kits scolaires au profit de la Mairie d’ Abomey-Calavi | AAM8: Maintenance prévention en cas de panne des ordinateurs de la Mairie d’ Abomey-Calavi | AAO8: Maintenance prévention en cas de panne des ordinateurs des Arrondissements de la Mairie d’ Abomey-Calavi | AAQ8: Maintenance du logiciel CRYSTAL PREST du guichet unique de la Mairie d’ Abomey-Calavi et des Arrondissements (Godomey, Abomey-Calavi et Akassato) au profit de la Mairie d’ Abomey-Calavi | AAS8: Acquisition de mobiliers d’équipements de bureau au profit de la Mairie d’ Abomey-Calavi | AAU8: Achat de vivres (Céréales) au profit du personnel et des conseillers communaux de la commune d’Abomey-Calavi | AAW8: Achat de vivres (huiles végétales) au profit du personnel et des conseillers communaux de la commune d’Abomey-Calavi dans le cadre de la fête du nouvel an | AAY8: Acquisition de jouets dans le cadre de la fête de noël agréable édition 2019 pour les enfants du personnel et des élus communaux d’Abomey-Calavi | ABA8: Entretien du siège de l’Arrondissement de Godomey | ABC8: Gestion des corps des personnes non identifiées dans la Commune d’Abomey-Calavi | ABE8: Réalisation et diffusion d’un film documentaire sur les réalisations des cinq (05) années (2015- 2020) du conseil communal d’Abomey-Calavi | ABG8: Travaux de rechargement et de reprofilage de voies dans l’Arrondissement de Hevié | ABI8: Travaux de rechargement et de reprofilage de voies dans l’Arrondissement de Calavi | ABK8: Travaux de rechargement et de reprofilage de voies dans l’Arrondissement de Ouèdo | ABM8: Travaux de rechargement et de reprofilage de voies dans l’Arrondissement de Godomey | ABO8: Recrutement d’un cabinet pour l’organisation de l’atelier de renforcement des capacités des acteurs de la mairie d’Abomey-Calavi sur le thème »La responsabilité financière et la gestion axée sur les résultats dans le contexte communal au Bénin ». | ABQ8: Travaux de Construction d’un module de trois boutiques dans le marché de GNININ | ABS8: Travaux de construction de deux hangars à douze places chacun dans le marché de GNININ | ABU8: Travaux de Construction d’un module de trois boutiques dans le marché de GNININ | ABW8: Edition de plaquettes de gestion du foncier dans la commune d’Abomey-Calavi pour la séance publique de reddition de compte du conseil communal de la 3e mandature. | ABY8: Enlèvement mécanique des ordures ménagères déposées le long de la clôture de l’Arrondissement et dans le marché de Golo-Djigbé | ACA8: Travaux de construction de deux hangars à douze places chacun dans le marché de Golo-Djigbé | ACC8: Fourniture de mobiliers scolaire au profit des EPP de l’Arrondissement de Golo-Djigbé | ACE8: Travaux de construction de deux hangars à douze places chacun dans le marché de Wlacomey dans l’Arrondissement de Godomey | ACG8: Fourniture de mobiliers scolaire au profit des EPP de l’Arrondissement de Togba | ACI8: Fourniture de mobiliers scolaire au profit des EPP de l’Arrondissement de Hevié | ACK8: Travaux de construction de deux hangars de douze places chacun dans le marché de Togba | ACM8: Fourniture de mobiliers scolaire au profit des EPP de l’Arrondissement de Godomey | ACO8: Fourniture de mobiliers scolaire au profit des EPP de l’Arrondissement d’AKASSATO | ACQ8: Fourniture de mobiliers scolaire au profit des EPP de l’Arrondissement d’Abomey-Calavi | ACS8: Fourniture et pose d’équipement de bureau pour le Deuxième Adjoint au Maire au profit de la Mairie d’Abomey-Calavi | ACU8: Acquisition d’équipement de bureau au profit de la Mairie d’Abomey-Calavi | ACW8: Acquisition de fournitures scolaires au profit des élèves et écoliers de la commune d’Abomey-Calavi | ACY8: Acquisition de 350 Kits scolaires au profit de la Mairie d’Abomey-Calavi | ADA8: Acquisition de fournitures de bureau au profit de la Mairie d’Abomey-Calavi | ADC8: Acquisition de fournitures de bureau au profit de la Mairie d’Abomey-Calavi | ADE8: Acquisition de mobiliers de bureau au profit de la Mairie d’Abomey-Calavi | ADG8: Fourniture de quatorze (14) fauteuils de bureau au profit de la Mairie d’Abomey-Calavi | ADI8: Fourniture de vingt-deux (22) fauteuils visiteurs au profit de la Mairie d’Abomey-Calavi | ADK8: Fourniture de douze (12) bureaux directeurs de 1,80ml de long au profit de la Mairie d’Abomey-Calavi | ADM8: Acquisition d’équipements de bureau au profit de la Mairie d’Abomey-Calavi | ADO8: Travaux de Construction d’un module de trois boutiques dans le marché de GNININ | ADQ8: Travaux de construction de deux hangars à douze places chacun dans le marché St Benoît de Womey dans l’Arrondissement de Godomey | ADS8: Travaux de Construction d’un module de trois boutiques dans le marché St Benoît de Womey dans l’Arrondissement de Godomey | ADU8: Travaux de construction de deux hangars de douze places chacun dans le marché de Tokan Arrondissement de Togba | ADW8: Fourniture de dix (10) bureaux directeurs de 1,80ml de long au profit de la Mairie d’Abomey-Calavi | ADY8: Fourniture de neuf (09) fauteuils de bureau et un (01) fauteuil salon complet au profit de la Mairie d’ Abomey-Calavi | AEA8: Fourniture et pose de gâche électrique avec caméra de surveillance y compris toutes sujétions | AEC8: Fourniture de vingt-deux (22) fauteuils visiteurs au profit de la Mairie d’Abomey-Calavi | AEE8: Construction d’un bloc de trois boutiques dans le marché de Gninin | AEG8: Construction d’un bloc de trois boutiques dans le marché de Gninin | AEI8: Travaux de construction de deux hangars à douze places chacun dans le marché de Djadjo dans l’Arrondissement de Calavi | AEK8: Changement de pose de luminaire (Cornet de l’échangeur et remise à niveau du jet d’eau) au profit de la Mairie d’Abomey-Calavi | AEM8: Changement de pose de luminaire (The light house) au profit de la Mairie d’Abomey-Calavi | AEO8: Acquisition d’un bureau directeur de 2 m de long et deux fauteuils visiteurs au profit de la Mairie d’Abomey-Calavi | AEQ8: Entretien courant des voies dans l’Arrondissement de Togba | AES8: Entretien courant des voies dans l’Arrondissement de Golo-Djigbé | AEU8: Travaux de désensablement des voies pavées dans la Commune d’Abomey-Calavi | AEW8: Location d’engin de BTP pour les travaux à l’hôpital de zone, Hevié (chez TOHON et chez AZANDE) ; Womey Eglise, marché de Womey ; ADJAGBO et ARCONVILLE dans la Commune d’Abomey-Calavi | AEY8: Désherbage de l’espace en face de la résidence du jardin sous l’échangeur de Godomey ; taille et greffe des fleurs et curage du collecteur au profit de la Mairie d’Abomey-Calavi | AFA8: Habillage du monument de Tanpkè, de l’Etoile magique lumineux à ARCONVILLE et décoration de l’arbre de noël devant la résidence du Maire | AFC8: Recrutement d’un bureau d’études pour l’étude et le contrôle des travaux de pavage et d’assainissement de la cour intérieure de l’HOTEL DE VILLE d’Abomey-Calavi | AFE8: Construction de deux hangars de douze places chacun dans le marché de Gninin. | AFG8: Construction de deux hangars de douze places chacun dans le marché de Togoudo. | AFI8: Travaux de commande pour la réalisation de 200 à 500 fosses aménagées dans la cimetière d’Adjagbo, Commune d’Abomey-Calavi
B9: 86 | C9: Type de marchés publics | D9: Nombre de jours consacrés à la passation | E9: Type de marchés publics | F9: Nombre de jours consacrés à la passation | G9: Type de marchés publics | H9: Nombre de jours consacrés à la passation | I9: Type de marchés publics | J9: Nombre de jours consacrés à la passation | K9: Type de marchés publics | L9: Nombre de jours consacrés à la passation | M9: Type de marchés publics | N9: Nombre de jours consacrés à la passation | O9: Type de marchés publics | P9: Nombre de jours consacrés à la passation | Q9: Type de marchés publics | R9: Nombre de jours consacrés à la passation | S9: Type de marchés publics | T9: Nombre de jours consacrés à la passation | U9: Type de marchés publics | V9: Nombre de jours consacrés à la passation | W9: Type de marchés publics | X9: Nombre de jours consacrés à la passation | Y9: Type de marchés publics | Z9: Nombre de jours consacrés à la passation | AA9: Type de marchés publics | AB9: Nombre de jours consacrés à la passation | AC9: Type de marchés publics | AD9: Nombre de jours consacrés à la passation | AE9: Type de marchés publics | AF9: Nombre de jours consacrés à la passation | AI9: Type de marchés publics | AJ9: Nombre de jours consacrés à la passation | AK9: Type de marchés publics | AL9: Nombre de jours consacrés à la passation | AM9: Type de marchés publics | AN9: Nombre de jours consacrés à la passation | AO9: Type de marchés publics | AP9: Nombre de jours consacrés à la passation | AQ9: Type de marchés publics | AR9: Nombre de jours consacrés à la passation | AS9: Type de marchés publics | AT9: Nombre de jours consacrés à la passation | AU9: Type de marchés publics | AV9: Nombre de jours consacrés à la passation | AW9: Type de marchés publics | AX9: Nombre de jours consacrés à la passation | AY9: Type de marchés publics | AZ9: Nombre de jours consacrés à la passation | BA9: Type de marchés publics | BB9: Nombre de jours consacrés à la passation | BC9: Type de marchés publics | BD9: Nombre de jours consacrés à la passation | BE9: Type de marchés publics | BF9: Nombre de jours consacrés à la passation | BG9: Type de marchés publics | BH9: Nombre de jours consacrés à la passation | BI9: Type de marchés publics | BJ9: Nombre de jours consacrés à la passation | BK9: Type de marchés publics | BL9: Nombre de jours consacrés à la passation | BM9: Type de marchés publics | BN9: Nombre de jours consacrés à la passation | BO9: Type de marchés publics | BP9: Nombre de jours consacrés à la passation | BQ9: Type de marchés publics | BR9: Nombre de jours consacrés à la passation | BS9: Type de marchés publics | BT9: Nombre de jours consacrés à la passation | BU9: Type de marchés publics | BV9: Nombre de jours consacrés à la passation | BW9: Type de marchés publics | BX9: Nombre de jours consacrés à la passation | BY9: Type de marchés publics | BZ9: Nombre de jours consacrés à la passation | CA9: Type de marchés publics | CB9: Nombre de jours consacrés à la passation | CC9: Type de marchés publics | CD9: Nombre de jours consacrés à la passation | CE9: Type de marchés publics | CF9: Nombre de jours consacrés à la passation | CG9: Type de marchés publics | CH9: Nombre de jours consacrés à la passation | CI9: Type de marchés publics | CJ9: Nombre de jours consacrés à la passation | CK9: Type de marchés publics | CL9: Nombre de jours consacrés à la passation | CM9: Type de marchés publics | CN9: Nombre de jours consacrés à la passation | CO9: Type de marchés publics | CP9: Nombre de jours consacrés à la passation | CQ9: Type de marchés publics | CR9: Nombre de jours consacrés à la passation | CS9: Type de marchés publics | CT9: Nombre de jours consacrés à la passation | CU9: Type de marchés publics | CV9: Nombre de jours consacrés à la passation | CW9: Type de marchés publics | CX9: Nombre de jours consacrés à la passation | CY9: Type de marchés publics | CZ9: Nombre de jours consacrés à la passation | DA9: Type de marchés publics | DB9: Nombre de jours consacrés à la passation | DC9: Type de marchés publics | DD9: Nombre de jours consacrés à la passation | DE9: Type de marchés publics | DF9: Nombre de jours consacrés à la passation | DG9: Type de marchés publics | DH9: Nombre de jours consacrés à la passation | DI9: Type de marchés publics | DJ9: Nombre de jours consacrés à la passation | DK9: Type de marchés publics | DL9: Nombre de jours consacrés à la passation | DM9: Type de marchés publics | DN9: Nombre de jours consacrés à la passation | DO9: Type de marchés publics | DP9: Nombre de jours consacrés à la passation | DQ9: Type de marchés publics | DR9: Nombre de jours consacrés à la passation | DS9: Type de marchés publics | DT9: Nombre de jours consacrés à la passation | DU9: Type de marchés publics | DV9: Nombre de jours consacrés à la passation | DW9: Type de marchés publics | DX9: Nombre de jours consacrés à la passation | DY9: Type de marchés publics | DZ9: Nombre de jours consacrés à la passation | EA9: Type de marchés publics | EB9: Nombre de jours consacrés à la passation | EC9: Type de marchés publics | ED9: Nombre de jours consacrés à la passation | EE9: Type de marchés publics | EF9: Nombre de jours consacrés à la passation | EG9: Type de marchés publics | EH9: Nombre de jours consacrés à la passation | EI9: Type de marchés publics | EJ9: Nombre de jours consacrés à la passation | EK9: Type de marchés publics | EL9: Nombre de jours consacrés à la passation | EM9: Type de marchés publics | EN9: Nombre de jours consacrés à la passation | EO9: Type de marchés publics | EP9: Nombre de jours consacrés à la passation | EQ9: Type de marchés publics | ER9: Nombre de jours consacrés à la passation | ES9: Type de marchés publics | ET9: Nombre de jours consacrés à la passation | EU9: Type de marchés publics | EV9: Nombre de jours consacrés à la passation | EW9: Type de marchés publics | EX9: Nombre de jours consacrés à la passation | EY9: Type de marchés publics | EZ9: Nombre de jours consacrés à la passation | FA9: Type de marchés publics | FB9: Nombre de jours consacrés à la passation | FC9: Type de marchés publics | FD9: Nombre de jours consacrés à la passation | FE9: Type de marchés publics | FF9: Nombre de jours consacrés à la passation | FG9: Type de marchés publics | FH9: Nombre de jours consacrés à la passation | FI9: Type de marchés publics | FJ9: Nombre de jours consacrés à la passation | FK9: Type de marchés publics | FL9: Nombre de jours consacrés à la passation | FM9: Type de marchés publics | FN9: Nombre de jours consacrés à la passation | FO9: Type de marchés publics | FP9: Nombre de jours consacrés à la passation | FQ9: Type de marchés publics | FR9: Nombre de jours consacrés à la passation | FS9: Type de marchés publics | FT9: Nombre de jours consacrés à la passation | FU9: Type de marchés publics | FV9: Nombre de jours consacrés à la passation | FW9: Type de marchés publics | FX9: Nombre de jours consacrés à la passation | FY9: Type de marchés publics | FZ9: Nombre de jours consacrés à la passation | GA9: Type de marchés publics | GB9: Nombre de jours consacrés à la passation | GC9: Type de marchés publics | GD9: Nombre de jours consacrés à la passation | GE9: Type de marchés publics | GF9: Nombre de jours consacrés à la passation | GG9: Type de marchés publics | GH9: Nombre de jours consacrés à la passation | GI9: Type de marchés publics | GJ9: Nombre de jours consacrés à la passation | GK9: Type de marchés publics | GL9: Nombre de jours consacrés à la passation | GM9: Type de marchés publics | GN9: Nombre de jours consacrés à la passation | GO9: Type de marchés publics | GP9: Nombre de jours consacrés à la passation | GQ9: Type de marchés publics | GR9: Nombre de jours consacrés à la passation | GS9: Type de marchés publics | GT9: Nombre de jours consacrés à la passation | GU9: Type de marchés publics | GV9: Nombre de jours consacrés à la passation | GW9: Type de marchés publics | GX9: Nombre de jours consacrés à la passation | GY9: Type de marchés publics | GZ9: Nombre de jours consacrés à la passation | HA9: Type de marchés publics | HB9: Nombre de jours consacrés à la passation | HC9: Type de marchés publics | HD9: Nombre de jours consacrés à la passation | HE9: Type de marchés publics | HF9: Nombre de jours consacrés à la passation | HG9: Type de marchés publics | HH9: Nombre de jours consacrés à la passation | HI9: Type de marchés publics | HJ9: Nombre de jours consacrés à la passation | HK9: Type de marchés publics | HL9: Nombre de jours consacrés à la passation | HM9: Type de marchés publics | HN9: Nombre de jours consacrés à la passation | HO9: Type de marchés publics | HP9: Nombre de jours consacrés à la passation | HQ9: Type de marchés publics | HR9: Nombre de jours consacrés à la passation | HS9: Type de marchés publics | HT9: Nombre de jours consacrés à la passation | HU9: Type de marchés publics | HV9: Nombre de jours consacrés à la passation | HW9: Type de marchés publics | HX9: Nombre de jours consacrés à la passation | HY9: Type de marchés publics | HZ9: Nombre de jours consacrés à la passation | IA9: Type de marchés publics | IB9: Nombre de jours consacrés à la passation | IC9: Type de marchés publics | ID9: Nombre de jours consacrés à la passation | IE9: Type de marchés publics | IF9: Nombre de jours consacrés à la passation | IG9: Type de marchés publics | IH9: Nombre de jours consacrés à la passation | II9: Type de marchés publics | IJ9: Nombre de jours consacrés à la passation | IK9: Type de marchés publics | IL9: Nombre de jours consacrés à la passation | IM9: Type de marchés publics | IN9: Nombre de jours consacrés à la passation | IO9: Type de marchés publics | IP9: Nombre de jours consacrés à la passation | IQ9: Type de marchés publics | IR9: Nombre de jours consacrés à la passation | IS9: Type de marchés publics | IT9: Nombre de jours consacrés à la passation | IU9: Type de marchés publics | IV9: Nombre de jours consacrés à la passation | IW9: Type de marchés publics | IX9: Nombre de jours consacrés à la passation | IY9: Type de marchés publics | IZ9: Nombre de jours consacrés à la passation | JA9: Type de marchés publics | JB9: Nombre de jours consacrés à la passation | JC9: Type de marchés publics | JD9: Nombre de jours consacrés à la passation | JE9: Type de marchés publics | JF9: Nombre de jours consacrés à la passation | JG9: Type de marchés publics | JH9: Nombre de jours consacrés à la passation | JI9: Type de marchés publics | JJ9: Nombre de jours consacrés à la passation | JK9: Type de marchés publics | JL9: Nombre de jours consacrés à la passation | JM9: Type de marchés publics | JN9: Nombre de jours consacrés à la passation | JO9: Type de marchés publics | JP9: Nombre de jours consacrés à la passation | JQ9: Type de marchés publics | JR9: Nombre de jours consacrés à la passation | JS9: Type de marchés publics | JT9: Nombre de jours consacrés à la passation | JU9: Type de marchés publics | JV9: Nombre de jours consacrés à la passation | JW9: Type de marchés publics | JX9: Nombre de jours consacrés à la passation | JY9: Type de marchés publics | JZ9: Nombre de jours consacrés à la passation | KA9: Type de marchés publics | KB9: Nombre de jours consacrés à la passation | KC9: Type de marchés publics | KD9: Nombre de jours consacrés à la passation | KE9: Type de marchés publics | KF9: Nombre de jours consacrés à la passation | KG9: Type de marchés publics | KH9: Nombre de jours consacrés à la passation | KI9: Type de marchés publics | KJ9: Nombre de jours consacrés à la passation | KK9: Type de marchés publics | KL9: Nombre de jours consacrés à la passation | KM9: Type de marchés publics | KN9: Nombre de jours consacrés à la passation | KO9: Type de marchés publics | KP9: Nombre de jours consacrés à la passation | KQ9: Type de marchés publics | KR9: Nombre de jours consacrés à la passation | KS9: Type de marchés publics | KT9: Nombre de jours consacrés à la passation | KU9: Type de marchés publics | KV9: Nombre de jours consacrés à la passation | KW9: Type de marchés publics | KX9: Nombre de jours consacrés à la passation | KY9: Type de marchés publics | KZ9: Nombre de jours consacrés à la passation | LA9: Type de marchés publics | LB9: Nombre de jours consacrés à la passation | LC9: Type de marchés publics | LD9: Nombre de jours consacrés à la passation | LE9: Type de marchés publics | LF9: Nombre de jours consacrés à la passation | LG9: Type de marchés publics | LH9: Nombre de jours consacrés à la passation | LI9: Type de marchés publics | LJ9: Nombre de jours consacrés à la passation | LK9: Type de marchés publics | LL9: Nombre de jours consacrés à la passation | LM9: Type de marchés publics | LN9: Nombre de jours consacrés à la passation | LO9: Type de marchés publics | LP9: Nombre de jours consacrés à la passation | LQ9: Type de marchés publics | LR9: Nombre de jours consacrés à la passation | LS9: Type de marchés publics | LT9: Nombre de jours consacrés à la passation | LU9: Type de marchés publics | LV9: Nombre de jours consacrés à la passation | LW9: Type de marchés publics | LX9: Nombre de jours consacrés à la passation | LY9: Type de marchés publics | LZ9: Nombre de jours consacrés à la passation | MA9: Type de marchés publics | MB9: Nombre de jours consacrés à la passation | MC9: Type de marchés publics | MD9: Nombre de jours consacrés à la passation | ME9: Type de marchés publics | MF9: Nombre de jours consacrés à la passation | MG9: Type de marchés publics | MH9: Nombre de jours consacrés à la passation | MI9: Type de marchés publics | MJ9: Nombre de jours consacrés à la passation | MK9: Type de marchés publics | ML9: Nombre de jours consacrés à la passation | MM9: Type de marchés publics | MN9: Nombre de jours consacrés à la passation | MO9: Type de marchés publics | MP9: Nombre de jours consacrés à la passation | MQ9: Type de marchés publics | MR9: Nombre de jours consacrés à la passation | MS9: Type de marchés publics | MT9: Nombre de jours consacrés à la passation | MU9: Type de marchés publics | MV9: Nombre de jours consacrés à la passation | MW9: Type de marchés publics | MX9: Nombre de jours consacrés à la passation | MY9: Type de marchés publics | MZ9: Nombre de jours consacrés à la passation | NA9: Type de marchés publics | NB9: Nombre de jours consacrés à la passation | NC9: Type de marchés publics | ND9: Nombre de jours consacrés à la passation | NE9: Type de marchés publics | NF9: Nombre de jours consacrés à la passation | NG9: Type de marchés publics | NH9: Nombre de jours consacrés à la passation | NI9: Type de marchés publics | NJ9: Nombre de jours consacrés à la passation | NK9: Type de marchés publics | NL9: Nombre de jours consacrés à la passation | NM9: Type de marchés publics | NN9: Nombre de jours consacrés à la passation | NO9: Type de marchés publics | NP9: Nombre de jours consacrés à la passation | NQ9: Type de marchés publics | NR9: Nombre de jours consacrés à la passation | NS9: Type de marchés publics | NT9: Nombre de jours consacrés à la passation | NU9: Type de marchés publics | NV9: Nombre de jours consacrés à la passation | NW9: Type de marchés publics | NX9: Nombre de jours consacrés à la passation | NY9: Type de marchés publics | NZ9: Nombre de jours consacrés à la passation | OA9: Type de marchés publics | OB9: Nombre de jours consacrés à la passation | OC9: Type de marchés publics | OD9: Nombre de jours consacrés à la passation | OE9: Type de marchés publics | OF9: Nombre de jours consacrés à la passation | OG9: Type de marchés publics | OH9: Nombre de jours consacrés à la passation | OI9: Type de marchés publics | OJ9: Nombre de jours consacrés à la passation | OK9: Type de marchés publics | OL9: Nombre de jours consacrés à la passation | OM9: Type de marchés publics | ON9: Nombre de jours consacrés à la passation | OO9: Type de marchés publics | OP9: Nombre de jours consacrés à la passation | OQ9: Type de marchés publics | OR9: Nombre de jours consacrés à la passation | OS9: Type de marchés publics | OT9: Nombre de jours consacrés à la passation | OU9: Type de marchés publics | OV9: Nombre de jours consacrés à la passation | OW9: Type de marchés publics | OX9: Nombre de jours consacrés à la passation | OY9: Type de marchés publics | OZ9: Nombre de jours consacrés à la passation | PA9: Type de marchés publics | PB9: Nombre de jours consacrés à la passation | PC9: Type de marchés publics | PD9: Nombre de jours consacrés à la passation | PE9: Type de marchés publics | PF9: Nombre de jours consacrés à la passation | PG9: Type de marchés publics | PH9: Nombre de jours consacrés à la passation | PI9: Type de marchés publics | PJ9: Nombre de jours consacrés à la passation | PK9: Type de marchés publics | PL9: Nombre de jours consacrés à la passation | PM9: Type de marchés publics | PN9: Nombre de jours consacrés à la passation | PO9: Type de marchés publics | PP9: Nombre de jours consacrés à la passation | PQ9: Type de marchés publics | PR9: Nombre de jours consacrés à la passation | PS9: Type de marchés publics | PT9: Nombre de jours consacrés à la passation | PU9: Type de marchés publics | PV9: Nombre de jours consacrés à la passation | PW9: Type de marchés publics | PX9: Nombre de jours consacrés à la passation | PY9: Type de marchés publics | PZ9: Nombre de jours consacrés à la passation | QA9: Type de marchés publics | QB9: Nombre de jours consacrés à la passation | QC9: Type de marchés publics | QD9: Nombre de jours consacrés à la passation | QE9: Type de marchés publics | QF9: Nombre de jours consacrés à la passation | QG9: Type de marchés publics | QH9: Nombre de jours consacrés à la passation | QI9: Type de marchés publics | QJ9: Nombre de jours consacrés à la passation | QK9: Type de marchés publics | QL9: Nombre de jours consacrés à la passation | QM9: Type de marchés publics | QN9: Nombre de jours consacrés à la passation | QO9: Type de marchés publics | QP9: Nombre de jours consacrés à la passation | QQ9: Type de marchés publics | QR9: Nombre de jours consacrés à la passation | QS9: Type de marchés publics | QT9: Nombre de jours consacrés à la passation | QU9: Type de marchés publics | QV9: Nombre de jours consacrés à la passation | QW9: Type de marchés publics | QX9: Nombre de jours consacrés à la passation | QY9: Type de marchés publics | QZ9: Nombre de jours consacrés à la passation | RA9: Type de marchés publics | RB9: Nombre de jours consacrés à la passation | RC9: Type de marchés publics | RD9: Nombre de jours consacrés à la passation | RE9: Type de marchés publics | RF9: Nombre de jours consacrés à la passation | RG9: Type de marchés publics | RH9: Nombre de jours consacrés à la passation | RI9: Type de marchés publics | RJ9: Nombre de jours consacrés à la passation | RK9: Type de marchés publics | RL9: Nombre de jours consacrés à la passation | RM9: Type de marchés publics | RN9: Nombre de jours consacrés à la passation | RO9: Type de marchés publics | RP9: Nombre de jours consacrés à la passation | RQ9: Type de marchés publics | RR9: Nombre de jours consacrés à la passation | RS9: Type de marchés publics | RT9: Nombre de jours consacrés à la passation | RU9: Type de marchés publics | RV9: Nombre de jours consacrés à la passation | RW9: Type de marchés publics | RX9: Nombre de jours consacrés à la passation | RY9: Type de marchés publics | RZ9: Nombre de jours consacrés à la passation | SA9: Type de marchés publics | SB9: Nombre de jours consacrés à la passation | SC9: Type de marchés publics | SD9: Nombre de jours consacrés à la passation | SE9: Type de marchés publics | SF9: Nombre de jours consacrés à la passation | SG9: Type de marchés publics | SH9: Nombre de jours consacrés à la passation | SI9: Type de marchés publics | SJ9: Nombre de jours consacrés à la passation | SK9: Type de marchés publics | SL9: Nombre de jours consacrés à la passation | SM9: Type de marchés publics | SN9: Nombre de jours consacrés à la passation | SO9: Type de marchés publics | SP9: Nombre de jours consacrés à la passation | SQ9: Type de marchés publics | SR9: Nombre de jours consacrés à la passation | SS9: Type de marchés publics | ST9: Nombre de jours consacrés à la passation | SU9: Type de marchés publics | SV9: Nombre de jours consacrés à la passation | SW9: Type de marchés publics | SX9: Nombre de jours consacrés à la passation | SY9: Type de marchés publics | SZ9: Nombre de jours consacrés à la passation | TA9: Type de marchés publics | TB9: Nombre de jours consacrés à la passation | TC9: Type de marchés publics | TD9: Nombre de jours consacrés à la passation | TE9: Type de marchés publics | TF9: Nombre de jours consacrés à la passation | TG9: Type de marchés publics | TH9: Nombre de jours consacrés à la passation | TI9: Type de marchés publics | TJ9: Nombre de jours consacrés à la passation | TK9: Type de marchés publics | TL9: Nombre de jours consacrés à la passation | TM9: Type de marchés publics | TN9: Nombre de jours consacrés à la passation | TO9: Type de marchés publics | TP9: Nombre de jours consacrés à la passation | TQ9: Type de marchés publics | TR9: Nombre de jours consacrés à la passation | TS9: Type de marchés publics | TT9: Nombre de jours consacrés à la passation | TU9: Type de marchés publics | TV9: Nombre de jours consacrés à la passation | TW9: Type de marchés publics | TX9: Nombre de jours consacrés à la passation | TY9: Type de marchés publics | TZ9: Nombre de jours consacrés à la passation | UA9: Type de marchés publics | UB9: Nombre de jours consacrés à la passation | UC9: Type de marchés publics | UD9: Nombre de jours consacrés à la passation | UE9: Type de marchés publics | UF9: Nombre de jours consacrés à la passation | UG9: Type de marchés publics | UH9: Nombre de jours consacrés à la passation | UI9: Type de marchés publics | UJ9: Nombre de jours consacrés à la passation | UK9: Type de marchés publics | UL9: Nombre de jours consacrés à la passation | UM9: Type de marchés publics | UN9: Nombre de jours consacrés à la passation | UO9: Type de marchés publics | UP9: Nombre de jours consacrés à la passation | UQ9: Type de marchés publics | UR9: Nombre de jours consacrés à la passation | US9: Type de marchés publics | UT9: Nombre de jours consacrés à la passation | UU9: Type de marchés publics | UV9: Nombre de jours consacrés à la passation | UW9: Type de marchés publics | UX9: Nombre de jours consacrés à la passation | UY9: Type de marchés publics | UZ9: Nombre de jours consacrés à la passation | VA9: Type de marchés publics | VB9: Nombre de jours consacrés à la passation | VC9: Type de marchés publics | VD9: Nombre de jours consacrés à la passation | VE9: Type de marchés publics | VF9: Nombre de jours consacrés à la passation | VG9: Type de marchés publics | VH9: Nombre de jours consacrés à la passation | VI9: Type de marchés publics | VJ9: Nombre de jours consacrés à la passation | VK9: Type de marchés publics | VL9: Nombre de jours consacrés à la passation | VM9: Type de marchés publics | VN9: Nombre de jours consacrés à la passation | VO9: Type de marchés publics | VP9: Nombre de jours consacrés à la passation | VQ9: Type de marchés publics | VR9: Nombre de jours consacrés à la passation | VS9: Type de marchés publics | VT9: Nombre de jours consacrés à la passation | VU9: Type de marchés publics | VV9: Nombre de jours consacrés à la passation | VW9: Type de marchés publics | VX9: Nombre de jours consacrés à la passation | VY9: Type de marchés publics | VZ9: Nombre de jours consacrés à la passation | WA9: Type de marchés publics | WB9: Nombre de jours consacrés à la passation | WC9: Type de marchés publics | WD9: Nombre de jours consacrés à la passation | WE9: Type de marchés publics | WF9: Nombre de jours consacrés à la passation | WG9: Type de marchés publics | WH9: Nombre de jours consacrés à la passation | WI9: Type de marchés publics | WJ9: Nombre de jours consacrés à la passation | WK9: Type de marchés publics | WL9: Nombre de jours consacrés à la passation | WM9: Type de marchés publics | WN9: Nombre de jours consacrés à la passation | WO9: Type de marchés publics | WP9: Nombre de jours consacrés à la passation | WQ9: Type de marchés publics | WR9: Nombre de jours consacrés à la passation | WS9: Type de marchés publics | WT9: Nombre de jours consacrés à la passation | WU9: Type de marchés publics | WV9: Nombre de jours consacrés à la passation | WW9: Type de marchés publics | WX9: Nombre de jours consacrés à la passation | WY9: Type de marchés publics | WZ9: Nombre de jours consacrés à la passation | XA9: Type de marchés publics | XB9: Nombre de jours consacrés à la passation | XC9: Type de marchés publics | XD9: Nombre de jours consacrés à la passation | XE9: Type de marchés publics | XF9: Nombre de jours consacrés à la passation | XG9: Type de marchés publics | XH9: Nombre de jours consacrés à la passation | XI9: Type de marchés publics | XJ9: Nombre de jours consacrés à la passation | XK9: Type de marchés publics | XL9: Nombre de jours consacrés à la passation | XM9: Type de marchés publics | XN9: Nombre de jours consacrés à la passation | XO9: Type de marchés publics | XP9: Nombre de jours consacrés à la passation | XQ9: Type de marchés publics | XR9: Nombre de jours consacrés à la passation | XS9: Type de marchés publics | XT9: Nombre de jours consacrés à la passation | XU9: Type de marchés publics | XV9: Nombre de jours consacrés à la passation | XW9: Type de marchés publics | XX9: Nombre de jours consacrés à la passation | XY9: Type de marchés publics | XZ9: Nombre de jours consacrés à la passation | YA9: Type de marchés publics | YB9: Nombre de jours consacrés à la passation | YC9: Type de marchés publics | YD9: Nombre de jours consacrés à la passation | YE9: Type de marchés publics | YF9: Nombre de jours consacrés à la passation | YG9: Type de marchés publics | YH9: Nombre de jours consacrés à la passation | YI9: Type de marchés publics | YJ9: Nombre de jours consacrés à la passation | YK9: Type de marchés publics | YL9: Nombre de jours consacrés à la passation | YM9: Type de marchés publics | YN9: Nombre de jours consacrés à la passation | YO9: Type de marchés publics | YP9: Nombre de jours consacrés à la passation | YQ9: Type de marchés publics | YR9: Nombre de jours consacrés à la passation | YS9: Type de marchés publics | YT9: Nombre de jours consacrés à la passation | YU9: Type de marchés publics | YV9: Nombre de jours consacrés à la passation | YW9: Type de marchés publics | YX9: Nombre de jours consacrés à la passation | YY9: Type de marchés publics | YZ9: Nombre de jours consacrés à la passation | ZA9: Type de marchés publics | ZB9: Nombre de jours consacrés à la passation | ZC9: Type de marchés publics | ZD9: Nombre de jours consacrés à la passation | ZE9: Type de marchés publics | ZF9: Nombre de jours consacrés à la passation | ZG9: Type de marchés publics | ZH9: Nombre de jours consacrés à la passation | ZI9: Type de marchés publics | ZJ9: Nombre de jours consacrés à la passation | ZK9: Type de marchés publics | ZL9: Nombre de jours consacrés à la passation | ZM9: Type de marchés publics | ZN9: Nombre de jours consacrés à la passation | ZO9: Type de marchés publics | ZP9: Nombre de jours consacrés à la passation | ZQ9: Type de marchés publics | ZR9: Nombre de jours consacrés à la passation | ZS9: Type de marchés publics | ZT9: Nombre de jours consacrés à la passation | ZU9: Type de marchés publics | ZV9: Nombre de jours consacrés à la passation | ZW9: Type de marchés publics | ZX9: Nombre de jours consacrés à la passation | ZY9: Type de marchés publics | ZZ9: Nombre de jours consacrés à la passation | AAA9: Type de marchés publics | AAB9: Nombre de jours consacrés à la passation | AAC9: Type de marchés publics | AAD9: Nombre de jours consacrés à la passation | AAE9: Type de marchés publics | AAF9: Nombre de jours consacrés à la passation | AAG9: Type de marchés publics | AAH9: Nombre de jours consacrés à la passation | AAI9: Type de marchés publics | AAJ9: Nombre de jours consacrés à la passation | AAK9: Type de marchés publics | AAL9: Nombre de jours consacrés à la passation | AAM9: Type de marchés publics | AAN9: Nombre de jours consacrés à la passation | AAO9: Type de marchés publics | AAP9: Nombre de jours consacrés à la passation | AAQ9: Type de marchés publics | AAR9: Nombre de jours consacrés à la passation | AAS9: Type de marchés publics | AAT9: Nombre de jours consacrés à la passation | AAU9: Type de marchés publics | AAV9: Nombre de jours consacrés à la passation | AAW9: Type de marchés publics | AAX9: Nombre de jours consacrés à la passation | AAY9: Type de marchés publics | AAZ9: Nombre de jours consacrés à la passation | ABA9: Type de marchés publics | ABB9: Nombre de jours consacrés à la passation | ABC9: Type de marchés publics | ABD9: Nombre de jours consacrés à la passation | ABE9: Type de marchés publics | ABF9: Nombre de jours consacrés à la passation | ABG9: Type de marchés publics | ABH9: Nombre de jours consacrés à la passation | ABI9: Type de marchés publics | ABJ9: Nombre de jours consacrés à la passation | ABK9: Type de marchés publics | ABL9: Nombre de jours consacrés à la passation | ABM9: Type de marchés publics | ABN9: Nombre de jours consacrés à la passation | ABO9: Type de marchés publics | ABP9: Nombre de jours consacrés à la passation | ABQ9: Type de marchés publics | ABR9: Nombre de jours consacrés à la passation | ABS9: Type de marchés publics | ABT9: Nombre de jours consacrés à la passation | ABU9: Type de marchés publics | ABV9: Nombre de jours consacrés à la passation | ABW9: Type de marchés publics | ABX9: Nombre de jours consacrés à la passation | ABY9: Type de marchés publics | ABZ9: Nombre de jours consacrés à la passation | ACA9: Type de marchés publics | ACB9: Nombre de jours consacrés à la passation | ACC9: Type de marchés publics | ACD9: Nombre de jours consacrés à la passation | ACE9: Type de marchés publics | ACF9: Nombre de jours consacrés à la passation | ACG9: Type de marchés publics | ACH9: Nombre de jours consacrés à la passation | ACI9: Type de marchés publics | ACJ9: Nombre de jours consacrés à la passation | ACK9: Type de marchés publics | ACL9: Nombre de jours consacrés à la passation | ACM9: Type de marchés publics | ACN9: Nombre de jours consacrés à la passation | ACO9: Type de marchés publics | ACP9: Nombre de jours consacrés à la passation | ACQ9: Type de marchés publics | ACR9: Nombre de jours consacrés à la passation | ACS9: Type de marchés publics | ACT9: Nombre de jours consacrés à la passation | ACU9: Type de marchés publics | ACV9: Nombre de jours consacrés à la passation | ACW9: Type de marchés publics | ACX9: Nombre de jours consacrés à la passation | ACY9: Type de marchés publics | ACZ9: Nombre de jours consacrés à la passation | ADA9: Type de marchés publics | ADB9: Nombre de jours consacrés à la passation | ADC9: Type de marchés publics | ADD9: Nombre de jours consacrés à la passation | ADE9: Type de marchés publics | ADF9: Nombre de jours consacrés à la passation | ADG9: Type de marchés publics | ADH9: Nombre de jours consacrés à la passation | ADI9: Type de marchés publics | ADJ9: Nombre de jours consacrés à la passation | ADK9: Type de marchés publics | ADL9: Nombre de jours consacrés à la passation | ADM9: Type de marchés publics | ADN9: Nombre de jours consacrés à la passation | ADO9: Type de marchés publics | ADP9: Nombre de jours consacrés à la passation | ADQ9: Type de marchés publics | ADR9: Nombre de jours consacrés à la passation | ADS9: Type de marchés publics | ADT9: Nombre de jours consacrés à la passation | ADU9: Type de marchés publics | ADV9: Nombre de jours consacrés à la passation | ADW9: Type de marchés publics | ADX9: Nombre de jours consacrés à la passation | ADY9: Type de marchés publics | ADZ9: Nombre de jours consacrés à la passation | AEA9: Type de marchés publics | AEB9: Nombre de jours consacrés à la passation | AEC9: Type de marchés publics | AED9: Nombre de jours consacrés à la passation | AEE9: Type de marchés publics | AEF9: Nombre de jours consacrés à la passation | AEG9: Type de marchés publics | AEH9: Nombre de jours consacrés à la passation | AEI9: Type de marchés publics | AEJ9: Nombre de jours consacrés à la passation | AEK9: Type de marchés publics | AEL9: Nombre de jours consacrés à la passation | AEM9: Type de marchés publics | AEN9: Nombre de jours consacrés à la passation | AEO9: Type de marchés publics | AEP9: Nombre de jours consacrés à la passation | AEQ9: Type de marchés publics | AER9: Nombre de jours consacrés à la passation | AES9: Type de marchés publics | AET9: Nombre de jours consacrés à la passation | AEU9: Type de marchés publics | AEV9: Nombre de jours consacrés à la passation | AEW9: Type de marchés publics | AEX9: Nombre de jours consacrés à la passation | AEY9: Type de marchés publics | AEZ9: Nombre de jours consacrés à la passation | AFA9: Type de marchés publics | AFB9: Nombre de jours consacrés à la passation | AFC9: Type de marchés publics | AFD9: Nombre de jours consacrés à la passation | AFE9: Type de marchés publics | AFF9: Nombre de jours consacrés à la passation | AFG9: Type de marchés publics | AFH9: Nombre de jours consacrés à la passation | AFI9: Type de marchés publics | AFJ9: Nombre de jours consacrés à la passation
A10: Appel Offre Ouvert | B10: 46 | D10: 30 | F10: 30 | H10: 30 | J10: 28 | L10: 28 | N10: 28 | P10: 28 | R10: 28 | T10: 28 | V10: 28 | X10: 28 | Z10: 32 | AB10: 28 | AD10: 28 | AF10: 35 | AJ10: 35 | AL10: 38 | AN10: 38 | AP10: 54 | AR10: 50 | AT10: 50 | AX10: 16 | AZ10: 16 | BB10: 16 | BD10: 16 | BF10: 16 | BH10: 16 | BJ10: 24 | BL10: 24 | BN10: 13 | BP10: 27 | BR10: 27 | BT10: 29 | BV10: 29 | BX10: 29 | BZ10: 29 | CB10: 29 | CD10: 30 | CF10: 32 | CH10: 32 | CN10: 13 | CP10: 13 | CR10: 13 | CT10: 13 | CV10: 13 | CX10: 13 | CZ10: 13 | DB10: 13 | DD10: 13 | DF10: 21 | DH10: 21 | DN10: 19 | DP10: 15 | DR10: 19 | DT10: 15 | DV10: 19 | DX10: 19 | DZ10: 19 | EB10: 19 | EC10: Travaux | ED10: 19 | EF10: 19 | EH10: 21 | EJ10: 33 | EL10: 33 | EN10: 33 | EP10: 33 | ER10: 33 | ET10: 33 | EV10: 33 | EX10: 33 | EZ10: 33 | FB10: 12 | MJ10: 7 | VE10: Travaux | VF10: 28 | VG10: Travaux | VH10: 29 | VI10: Travaux | VJ10: 29 | ZC10: Travaux | ZE10: Prestation intellectuelle réalisée par un cabinet | AFI10: Travaux | AFJ10: 28
A11: Demande de renseignement | B11: 27
A12: Demande de cotation | B12: 65 | C12: Fournitures et Services | E12: Fournitures et Services | G12: Travaux | I12: Fournitures et Services | K12: Fournitures et Services | M12: Fournitures et Services | O12: Fournitures et Services | Q12: Fournitures et Services | S12: Fournitures et Services | U12: Fournitures et Services | W12: Fournitures et Services | Y12: Travaux | AA12: Travaux | AC12: Fournitures et Services | AE12: Fournitures et Services | AI12: Fournitures et Services | AK12: Travaux | AM12: Fournitures et Services | AO12: Travaux | AQ12: Fournitures et Services | AS12: Travaux | AU12: Fournitures et Services | AW12: Travaux | AY12: Travaux | BA12: Travaux | BC12: Travaux | BE12: Fournitures et Services | BG12: Fournitures et Services | BI12: Travaux | BK12: Travaux | BM12: Travaux | BO12: Travaux | BQ12: Travaux | BS12: Fournitures et Services | BU12: Prestation intellectuelle réalisée par un consultant | BW12: Prestation intellectuelle réalisée par un cabinet | BY12: Travaux | CA12: Prestation intellectuelle réalisée par un cabinet | CC12: Fournitures et Services | CE12: Prestation intellectuelle réalisée par un consultant | CG12: Fournitures et Services | CI12: Travaux | CK12: Travaux | CM12: Fournitures et Services | CO12: Fournitures et Services | CQ12: Travaux | CS12: Travaux | CU12: Travaux | CW12: Travaux | CY12: Travaux | DA12: Fournitures et Services | DC12: Fournitures et Services | DE12: Prestation intellectuelle réalisée par un cabinet | DG12: Prestation intellectuelle réalisée par un consultant | DI12: Travaux | DK12: Travaux | DM12: Travaux | DO12: Travaux | DQ12: Travaux | DS12: Travaux | DU12: Travaux | DW12: Travaux | DY12: Travaux | EA12: Travaux | EC12: Travaux | EE12: Prestation intellectuelle réalisée par un cabinet | EG12: Prestation intellectuelle réalisée par un cabinet | EI12: Prestation intellectuelle réalisée par un cabinet | EK12: Prestation intellectuelle réalisée par un cabinet | EM12: Prestation intellectuelle réalisée par un cabinet | EO12: Travaux | EQ12: Travaux | ES12: Travaux | EU12: Travaux | EW12: Travaux | EY12: Travaux | FA12: Travaux | FC12: Fournitures et Services | FD12: 12 | FE12: Fournitures et Services | FF12: 12 | FG12: Travaux | FH12: 12 | FI12: Travaux | FJ12: 12 | FK12: Travaux | FL12: 12 | FM12: Travaux | FN12: 12 | FO12: Travaux | FP12: 12 | FQ12: Travaux | FR12: 12 | FS12: Travaux | FT12: 11 | FU12: Travaux | FV12: 11 | FW12: Travaux | FX12: 11 | FY12: Fournitures et Services | GA12: Travaux | GB12: 29 | GC12: Travaux | GD12: 11 | GE12: Fournitures et Services | GF12: 19 | GG12: Fournitures et Services | GH12: 19 | GI12: Fournitures et Services | GJ12: 23 | GK12: Travaux | GL12: 29 | GM12: Travaux | GN12: 29 | GO12: Travaux | GP12: 29 | GQ12: Travaux | GR12: 29 | GS12: Travaux | GT12: 30 | GU12: Travaux | GV12: 30 | GW12: Travaux | GX12: 26 | GY12: Travaux | GZ12: 26 | HA12: Travaux | HB12: 26 | HC12: Travaux | HD12: 26 | HE12: Travaux | HF12: 26 | HG12: Travaux | HH12: 26 | HI12: Travaux | HJ12: 26 | HK12: Travaux | HL12: 26 | HM12: Travaux | HN12: 26 | HO12: Travaux | HP12: 26 | HQ12: Travaux | HR12: 26 | HS12: Prestation intellectuelle réalisée par un cabinet | HT12: 13 | HU12: Travaux | HV12: 10 | HW12: Travaux | HX12: 10 | HY12: Fournitures et Services | HZ12: 2 | IA12: Fournitures et Services | IB12: 2 | IC12: Prestation intellectuelle réalisée par un cabinet | IE12: Travaux | IF12: 1 | IG12: Travaux | IH12: 1 | II12: Travaux | IJ12: 2 | IK12: Travaux | IL12: 2 | IM12: Travaux | IN12: 2 | IO12: Travaux | IP12: 10 | IQ12: Travaux | IR12: 2 | IS12: Travaux | IT12: 2 | IU12: Travaux | IV12: 2 | IW12: Travaux | IX12: 4 | IY12: Fournitures et Services | IZ12: 4 | JA12: Fournitures et Services | JB12: 4 | JC12: Travaux | JE12: Travaux | JF12: 8 | JG12: Travaux | JH12: 12 | JI12: Travaux | JK12: Travaux | JM12: Travaux | JN12: 12 | JO12: Travaux | JP12: 13 | JQ12: Travaux | JR12: 13 | JS12: Travaux | JT12: 13 | JU12: Travaux | JV12: 13 | JW12: Travaux | JX12: 13 | JY12: Fournitures et Services | KA12: Prestation intellectuelle réalisée par un cabinet | KC12: Travaux | KD12: 10 | KE12: Fournitures et Services | KG12: Travaux | KH12: 8 | KI12: Travaux | KJ12: 8 | KK12: Fournitures et Services | KM12: Travaux | KN12: 8 | KO12: Fournitures et Services | KP12: 12 | KQ12: Travaux | KR12: 12 | KS12: Travaux | KT12: 12 | KU12: Travaux | KV12: 12 | KW12: Travaux | KX12: 12 | KY12: Travaux | KZ12: 12 | LA12: Travaux | LB12: 12 | LC12: Travaux | LD12: 12 | LE12: Travaux | LF12: 12 | LG12: Travaux | LH12: 12 | LI12: Travaux | LJ12: 12 | LK12: Travaux | LL12: 12 | LM12: Travaux | LN12: 12 | LO12: Travaux | LP12: 12 | LQ12: Travaux | LR12: 13 | LS12: Travaux | LT12: 13 | LU12: Travaux | LV12: 13 | LW12: Travaux | LX12: 12 | LY12: Travaux | LZ12: 12 | MA12: Travaux | MB12: 13 | MC12: Travaux | MD12: 13 | ME12: Travaux | MF12: 7 | MG12: Travaux | MH12: 7 | MI12: Travaux | MJ12: 7 | MK12: Travaux | ML12: 9 | MM12: Travaux | MN12: 7 | MO12: Travaux | MP12: 10 | MQ12: Travaux | MR12: 10 | MS12: Travaux | MT12: 8 | MU12: Travaux | MV12: 8 | MW12: Travaux | MY12: Travaux | MZ12: 8 | NA12: Fournitures et Services | NB12: 9 | NC12: Travaux | ND12: 9 | NE12: Fournitures et Services | NF12: 7 | NG12: Fournitures et Services | NH12: 7 | NI12: Travaux | NJ12: 7 | NK12: Fournitures et Services | NL12: 4 | NM12: Fournitures et Services | NO12: Travaux | NP12: 14 | NQ12: Travaux | NR12: 14 | NS12: Travaux | NT12: 14 | NU12: Travaux | NV12: 9 | NW12: Fournitures et Services | NX12: 9 | NY12: Fournitures et Services | NZ12: 9 | OA12: Fournitures et Services | OB12: 9 | OC12: Prestation intellectuelle réalisée par un cabinet | OD12: 9 | OE12: Prestation intellectuelle réalisée par un cabinet | OF12: 9 | OG12: Prestation intellectuelle réalisée par un cabinet | OH12: 9 | OI12: Prestation intellectuelle réalisée par un cabinet | OJ12: 9 | OK12: Prestation intellectuelle réalisée par un cabinet | OL12: 9 | OM12: Prestation intellectuelle réalisée par un cabinet | ON12: 9 | OO12: Prestation intellectuelle réalisée par un cabinet | OP12: 9 | OQ12: Prestation intellectuelle réalisée par un cabinet | OR12: 9 | OS12: Prestation intellectuelle réalisée par un cabinet | OT12: 9 | OU12: Prestation intellectuelle réalisée par un cabinet | OV12: 9 | OW12: Prestation intellectuelle réalisée par un cabinet | OX12: 9 | OY12: Prestation intellectuelle réalisée par un cabinet | OZ12: 9 | PA12: Prestation intellectuelle réalisée par un cabinet | PB12: 9 | PC12: Prestation intellectuelle réalisée par un cabinet | PD12: 9 | PE12: Travaux | PF12: 9 | PG12: Travaux | PH12: 9 | PI12: Travaux | PJ12: 9 | PK12: Travaux | PL12: 24 | PM12: Fournitures et Services | PN12: 3 | PO12: Fournitures et Services | PP12: 6 | PQ12: Fournitures et Services | PR12: 6 | PS12: Fournitures et Services | PT12: 6 | PU12: Travaux | PV12: 6 | PW12: Travaux | PX12: 6 | PY12: Fournitures et Services | PZ12: 6 | QA12: Fournitures et Services | QB12: 6 | QC12: Travaux | QD12: 4 | QE12: Travaux | QF12: 4 | QG12: Travaux | QI12: Travaux | QJ12: 5 | QK12: Travaux | QL12: 8 | QM12: Travaux | QN12: 8 | QO12: Travaux | QP12: 12 | QQ12: Travaux | QS12: Travaux | QU12: Travaux | QW12: Travaux | QY12: Travaux | RA12: Travaux | RC12: Travaux | RD12: 12 | RE12: Travaux | RF12: 11 | RG12: Travaux | RH12: 11 | RI12: Travaux | RJ12: 11 | RK12: Fournitures et Services | RL12: 12 | RM12: Fournitures et Services | RN12: 14 | RO12: Fournitures et Services | RP12: 9 | RQ12: Fournitures et Services | RR12: 9 | RS12: Prestation intellectuelle réalisée par un cabinet | RU12: Fournitures et Services | RW12: Fournitures et Services | RX12: 10 | RY12: Fournitures et Services | RZ12: 11 | SA12: Travaux | SB12: 9 | SC12: Fournitures et Services | SD12: 9 | SE12: Travaux | SF12: 11 | SG12: Travaux | SH12: 11 | SI12: Travaux | SJ12: 12 | SK12: Travaux | SL12: 9 | SM12: Travaux | SN12: 9 | SO12: Travaux | SP12: 9 | SQ12: Travaux | SR12: 9 | SS12: Travaux | ST12: 10 | SU12: Travaux | SV12: 13 | SW12: Travaux | SX12: 10 | SY12: Travaux | SZ12: 9 | TA12: Travaux | TB12: 5 | TC12: Travaux | TD12: 5 | TE12: Travaux | TF12: 11 | TG12: Travaux | TH12: 12 | TI12: Travaux | TJ12: 9 | TK12: Fournitures et Services | TL12: 9 | TM12: Fournitures et Services | TN12: 5 | TO12: Travaux | TP12: 8 | TQ12: Travaux | TR12: 9 | TS12: Travaux | TT12: 9 | TU12: Travaux | TV12: 9 | TW12: Travaux | TX12: 9 | TY12: Travaux | TZ12: 9 | UA12: Travaux | UB12: 9 | UC12: Travaux | UD12: 9 | UE12: Travaux | UF12: 8 | UG12: Travaux | UH12: 9 | UI12: Travaux | UJ12: 9 | UK12: Travaux | UL12: 9 | UM12: Travaux | UN12: 9 | UO12: Travaux | UP12: 9 | UQ12: Travaux | UR12: 10 | US12: Travaux | UT12: 9 | UU12: Travaux | UV12: 9 | UW12: Travaux | UX12: 9 | UY12: Travaux | UZ12: 9 | VA12: Travaux | VB12: 9 | VC12: Travaux | VD12: 8 | VK12: Fournitures et Services | VL12: 12 | VM12: Fournitures et Services | VN12: 11 | VO12: Prestation intellectuelle réalisée par un cabinet | VP12: 8 | VQ12: Travaux | VR12: 9 | VS12: Travaux | VT12: 11 | VU12: Travaux | VV12: 11 | VW12: Travaux | VX12: 8 | VY12: Travaux | VZ12: 9 | WA12: Travaux | WB12: 9 | WC12: Travaux | WD12: 9 | WE12: Travaux | WF12: 9 | WG12: Travaux | WH12: 8 | WI12: Travaux | WJ12: 9 | WK12: Fournitures et Services | WL12: 9 | WM12: Travaux | WN12: 9 | WO12: Fournitures et Services | WP12: 9 | WQ12: Travaux | WR12: 9 | WS12: Travaux | WT12: 9 | WU12: Travaux | WV12: 9 | WW12: Travaux | WX12: 9 | WY12: Travaux | WZ12: 8 | XA12: Travaux | XB12: 9 | XC12: Fournitures et Services | XD12: 8 | XE12: Travaux | XF12: 10 | XG12: Fournitures et Services | XH12: 9 | XI12: Travaux | XJ12: 9 | XK12: Travaux | XL12: 9 | XM12: Travaux | XN12: 12 | XO12: Fournitures et Services | XP12: 9 | XQ12: Travaux | XR12: 11 | XS12: Travaux | XT12: 9 | XU12: Travaux | XV12: 11 | XW12: Travaux | XX12: 9 | XY12: Travaux | XZ12: 9 | YA12: Fournitures et Services | YB12: 9 | YC12: Travaux | YD12: 9 | YE12: Travaux | YF12: 11 | YG12: Travaux | YH12: 11 | YI12: Travaux | YJ12: 11 | YK12: Fournitures et Services | YL12: 11 | YM12: Fournitures et Services | YN12: 11 | YO12: Travaux | YP12: 11 | YQ12: Travaux | YR12: 11 | YS12: Travaux | YT12: 11 | YU12: Travaux | YV12: 11 | YW12: Travaux | YX12: 11 | YY12: Travaux | YZ12: 12 | ZA12: Travaux | ZB12: 11 | ZG12: Fournitures et Services | ZH12: 11 | ZI12: Fournitures et Services | ZJ12: 11 | ZK12: Travaux | ZL12: 11 | ZM12: Travaux | ZN12: 11 | ZO12: Travaux | ZP12: 12 | ZQ12: Travaux | ZR12: 11 | ZS12: Prestation intellectuelle réalisée par un cabinet | ZT12: 9 | ZU12: Prestation intellectuelle réalisée par un cabinet | ZV12: 9 | ZW12: Fournitures et Services | ZX12: 9 | ZY12: Fournitures et Services | ZZ12: 9 | AAA12: Fournitures et Services | AAB12: 9 | AAC12: Fournitures et Services | AAD12: 9 | AAE12: Fournitures et Services | AAF12: 9 | AAG12: Fournitures et Services | AAH12: 10 | AAI12: Fournitures et Services | AAJ12: 10 | AAK12: Fournitures et Services | AAL12: 11 | AAM12: Fournitures et Services | AAN12: 9 | AAO12: Prestation intellectuelle réalisée par un cabinet | AAP12: 9 | AAQ12: Prestation intellectuelle réalisée par un cabinet | AAR12: 9 | AAS12: Fournitures et Services | AAT12: 9 | AAU12: Fournitures et Services | AAV12: 9 | AAW12: Fournitures et Services | AAX12: 9 | AAY12: Fournitures et Services | AAZ12: 9 | ABA12: Fournitures et Services | ABB12: 10 | ABC12: Fournitures et Services | ABD12: 4 | ABE12: Fournitures et Services | ABF12: 5 | ABG12: Travaux | ABH12: 6 | ABI12: Travaux | ABJ12: 6 | ABK12: Travaux | ABL12: 8 | ABM12: Travaux | ABN12: 9 | ABO12: Prestation intellectuelle réalisée par un cabinet | ABP12: 9 | ABQ12: Travaux | ABR12: 9 | ABS12: Travaux | ABT12: 8 | ABU12: Travaux | ABV12: 9 | ABW12: Fournitures et Services | ABX12: 7 | ABY12: Travaux | ABZ12: 9 | ACA12: Travaux | ACB12: 9 | ACC12: Fournitures et Services | ACD12: 8 | ACE12: Travaux | ACF12: 9 | ACG12: Fournitures et Services | ACH12: 9 | ACI12: Fournitures et Services | ACJ12: 9 | ACK12: Travaux | ACL12: 9 | ACM12: Fournitures et Services | ACN12: 8 | ACO12: Fournitures et Services | ACP12: 8 | ACQ12: Fournitures et Services | ACR12: 9 | ACS12: Fournitures et Services | ACT12: 9 | ACU12: Fournitures et Services | ACV12: 9 | ACW12: Fournitures et Services | ACX12: 11 | ACY12: Fournitures et Services | ACZ12: 11 | ADA12: Fournitures et Services | ADB12: 10 | ADC12: Fournitures et Services | ADD12: 10 | ADE12: Fournitures et Services | ADF12: 11 | ADG12: Fournitures et Services | ADH12: 12 | ADI12: Fournitures et Services | ADJ12: 12 | ADK12: Fournitures et Services | ADL12: 13 | ADM12: Fournitures et Services | ADN12: 10 | ADO12: Travaux | ADP12: 12 | ADQ12: Travaux | ADR12: 11 | ADS12: Travaux | ADT12: 19 | ADU12: Travaux | ADV12: 12 | ADW12: Fournitures et Services | ADX12: 11 | ADY12: Fournitures et Services | ADZ12: 11 | AEA12: Fournitures et Services | AEB12: 11 | AEC12: Fournitures et Services | AED12: 11 | AEE12: Travaux | AEF12: 15 | AEG12: Travaux | AEH12: 11 | AEI12: Travaux | AEJ12: 11 | AEK12: Fournitures et Services | AEL12: 12 | AEM12: Fournitures et Services | AEN12: 11 | AEO12: Fournitures et Services | AEP12: 11 | AEQ12: Travaux | AER12: 5 | AES12: Travaux | AET12: 5 | AEU12: Travaux | AEV12: 6 | AEW12: Fournitures et Services | AEX12: 9 | AEY12: Travaux | AEZ12: 8 | AFA12: Fournitures et Services | AFB12: 8 | AFC12: Prestation intellectuelle réalisée par un cabinet | AFD12: 15 | AFE12: Travaux | AFF12: 15 | AFG12: Travaux | AFH12: 15
D13: =IF(C10="",0,IF(D10<=$B10,1,0)) -> 0 | F13: =IF(E10="",0,IF(F10<=$B10,1,0)) -> 0 | H13: =IF(G10="",0,IF(H10<=$B10,1,0)) -> 0 | J13: =IF(I10="",0,IF(J10<=$B10,1,0)) -> 0 | L13: =IF(K10="",0,IF(L10<=$B10,1,0)) -> 0 | N13: =IF(M10="",0,IF(N10<=$B10,1,0)) -> 0 | P13: =IF(O10="",0,IF(P10<=$B10,1,0)) -> 0 | R13: =IF(Q10="",0,IF(R10<=$B10,1,0)) -> 0 | T13: =IF(S10="",0,IF(T10<=$B10,1,0)) -> 0 | V13: =IF(U10="",0,IF(V10<=$B10,1,0)) -> 0 | X13: =IF(W10="",0,IF(X10<=$B10,1,0)) -> 0 | Z13: =IF(Y10="",0,IF(Z10<=$B10,1,0)) -> 0 | AB13: =IF(AA10="",0,IF(AB10<=$B10,1,0)) -> 0 | AD13: =IF(AC10="",0,IF(AD10<=$B10,1,0)) -> 0 | AF13: =IF(AE10="",0,IF(AF10<=$B10,1,0)) -> 0 | AJ13: =IF(AI10="",0,IF(AJ10<=$B10,1,0)) -> 0 | AL13: =IF(AK10="",0,IF(AL10<=$B10,1,0)) -> 0 | AN13: =IF(AM10="",0,IF(AN10<=$B10,1,0)) -> 0 | AP13: =IF(AO10="",0,IF(AP10<=$B10,1,0)) -> 0 | AR13: =IF(AQ10="",0,IF(AR10<=$B10,1,0)) -> 0 | AT13: =IF(AS10="",0,IF(AT10<=$B10,1,0)) -> 0 | AV13: =IF(AU10="",0,IF(AV10<=$B10,1,0)) -> 0 | AX13: =IF(AW10="",0,IF(AX10<=$B10,1,0)) -> 0 | AZ13: =IF(AY10="",0,IF(AZ10<=$B10,1,0)) -> 0 | BB13: =IF(BA10="",0,IF(BB10<=$B10,1,0)) -> 0 | BD13: =IF(BC10="",0,IF(BD10<=$B10,1,0)) -> 0 | BF13: =IF(BE10="",0,IF(BF10<=$B10,1,0)) -> 0 | BH13: =IF(BG10="",0,IF(BH10<=$B10,1,0)) -> 0 | BJ13: =IF(BI10="",0,IF(BJ10<=$B10,1,0)) -> 0 | BL13: =IF(BK10="",0,IF(BL10<=$B10,1,0)) -> 0 | BN13: =IF(BM10="",0,IF(BN10<=$B10,1,0)) -> 0 | BP13: =IF(BO10="",0,IF(BP10<=$B10,1,0)) -> 0 | BR13: =IF(BQ10="",0,IF(BR10<=$B10,1,0)) -> 0 | BT13: =IF(BS10="",0,IF(BT10<=$B10,1,0)) -> 0 | BV13: =IF(BU10="",0,IF(BV10<=$B10,1,0)) -> 0 | BX13: =IF(BW10="",0,IF(BX10<=$B10,1,0)) -> 0 | BZ13: =IF(BY10="",0,IF(BZ10<=$B10,1,0)) -> 0 | CB13: =IF(CA10="",0,IF(CB10<=$B10,1,0)) -> 0 | CD13: =IF(CC10="",0,IF(CD10<=$B10,1,0)) -> 0 | CF13: =IF(CE10="",0,IF(CF10<=$B10,1,0)) -> 0 | CH13: =IF(CG10="",0,IF(CH10<=$B10,1,0)) -> 0 | CJ13: =IF(CI10="",0,IF(CJ10<=$B10,1,0)) -> 0 | CL13: =IF(CK10="",0,IF(CL10<=$B10,1,0)) -> 0 | CN13: =IF(CM10="",0,IF(CN10<=$B10,1,0)) -> 0 | CP13: =IF(CO10="",0,IF(CP10<=$B10,1,0)) -> 0 | CR13: =IF(CQ10="",0,IF(CR10<=$B10,1,0)) -> 0 | CT13: =IF(CS10="",0,IF(CT10<=$B10,1,0)) -> 0 | CV13: =IF(CU10="",0,IF(CV10<=$B10,1,0)) -> 0 | CX13: =IF(CW10="",0,IF(CX10<=$B10,1,0)) -> 0 | CZ13: =IF(CY10="",0,IF(CZ10<=$B10,1,0)) -> 0 | DB13: =IF(DA10="",0,IF(DB10<=$B10,1,0)) -> 0 | DD13: =IF(DC10="",0,IF(DD10<=$B10,1,0)) -> 0 | DF13: =IF(DE10="",0,IF(DF10<=$B10,1,0)) -> 0 | DH13: =IF(DG10="",0,IF(DH10<=$B10,1,0)) -> 0 | DJ13: =IF(DI10="",0,IF(DJ10<=$B10,1,0)) -> 0 | DL13: =IF(DK10="",0,IF(DL10<=$B10,1,0)) -> 0 | DN13: =IF(DM10="",0,IF(DN10<=$B10,1,0)) -> 0 | DP13: =IF(DO10="",0,IF(DP10<=$B10,1,0)) -> 0 | DR13: =IF(DQ10="",0,IF(DR10<=$B10,1,0)) -> 0 | DT13: =IF(DS10="",0,IF(DT10<=$B10,1,0)) -> 0 | DV13: =IF(DU10="",0,IF(DV10<=$B10,1,0)) -> 0 | DX13: =IF(DW10="",0,IF(DX10<=$B10,1,0)) -> 0 | DZ13: =IF(DY10="",0,IF(DZ10<=$B10,1,0)) -> 0 | EB13: =IF(EA10="",0,IF(EB10<=$B10,1,0)) -> 0 | ED13: =IF(EC10="",0,IF(ED10<=$B10,1,0)) -> 1 | EF13: =IF(EE10="",0,IF(EF10<=$B10,1,0)) -> 0 | EH13: =IF(EG10="",0,IF(EH10<=$B10,1,0)) -> 0 | EJ13: =IF(EI10="",0,IF(EJ10<=$B10,1,0)) -> 0 | EL13: =IF(EK10="",0,IF(EL10<=$B10,1,0)) -> 0 | EN13: =IF(EM10="",0,IF(EN10<=$B10,1,0)) -> 0 | EP13: =IF(EO10="",0,IF(EP10<=$B10,1,0)) -> 0 | ER13: =IF(EQ10="",0,IF(ER10<=$B10,1,0)) -> 0 | ET13: =IF(ES10="",0,IF(ET10<=$B10,1,0)) -> 0 | EV13: =IF(EU10="",0,IF(EV10<=$B10,1,0)) -> 0 | EX13: =IF(EW10="",0,IF(EX10<=$B10,1,0)) -> 0 | EZ13: =IF(EY10="",0,IF(EZ10<=$B10,1,0)) -> 0 | FB13: =IF(FA10="",0,IF(FB10<=$B10,1,0)) -> 0 | FD13: =IF(FC10="",0,IF(FD10<=$B10,1,0)) -> 0 | FF13: =IF(FE10="",0,IF(FF10<=$B10,1,0)) -> 0 | FH13: =IF(FG10="",0,IF(FH10<=$B10,1,0)) -> 0 | FJ13: =IF(FI10="",0,IF(FJ10<=$B10,1,0)) -> 0 | FL13: =IF(FK10="",0,IF(FL10<=$B10,1,0)) -> 0 | FN13: =IF(FM10="",0,IF(FN10<=$B10,1,0)) -> 0 | FP13: =IF(FO10="",0,IF(FP10<=$B10,1,0)) -> 0 | FR13: =IF(FQ10="",0,IF(FR10<=$B10,1,0)) -> 0 | FT13: =IF(FS10="",0,IF(FT10<=$B10,1,0)) -> 0 | FV13: =IF(FU10="",0,IF(FV10<=$B10,1,0)) -> 0 | FX13: =IF(FW10="",0,IF(FX10<=$B10,1,0)) -> 0 | FZ13: =IF(FY10="",0,IF(FZ10<=$B10,1,0)) -> 0 | GB13: =IF(GA10="",0,IF(GB10<=$B10,1,0)) -> 0 | GD13: =IF(GC10="",0,IF(GD10<=$B10,1,0)) -> 0 | GF13: =IF(GE10="",0,IF(GF10<=$B10,1,0)) -> 0 | GH13: =IF(GG10="",0,IF(GH10<=$B10,1,0)) -> 0 | GJ13: =IF(GI10="",0,IF(GJ10<=$B10,1,0)) -> 0 | GL13: =IF(GK10="",0,IF(GL10<=$B10,1,0)) -> 0 | GN13: =IF(GM10="",0,IF(GN10<=$B10,1,0)) -> 0 | GP13: =IF(GO10="",0,IF(GP10<=$B10,1,0)) -> 0 | GR13: =IF(GQ10="",0,IF(GR10<=$B10,1,0)) -> 0 | GT13: =IF(GS10="",0,IF(GT10<=$B10,1,0)) -> 0 | GV13: =IF(GU10="",0,IF(GV10<=$B10,1,0)) -> 0 | GX13: =IF(GW10="",0,IF(GX10<=$B10,1,0)) -> 0 | GZ13: =IF(GY10="",0,IF(GZ10<=$B10,1,0)) -> 0 | HB13: =IF(HA10="",0,IF(HB10<=$B10,1,0)) -> 0 | HD13: =IF(HC10="",0,IF(HD10<=$B10,1,0)) -> 0 | HF13: =IF(HE10="",0,IF(HF10<=$B10,1,0)) -> 0 | HH13: =IF(HG10="",0,IF(HH10<=$B10,1,0)) -> 0 | HJ13: =IF(HI10="",0,IF(HJ10<=$B10,1,0)) -> 0 | HL13: =IF(HK10="",0,IF(HL10<=$B10,1,0)) -> 0 | HN13: =IF(HM10="",0,IF(HN10<=$B10,1,0)) -> 0 | HP13: =IF(HO10="",0,IF(HP10<=$B10,1,0)) -> 0 | HR13: =IF(HQ10="",0,IF(HR10<=$B10,1,0)) -> 0 | HT13: =IF(HS10="",0,IF(HT10<=$B10,1,0)) -> 0 | HV13: =IF(HU10="",0,IF(HV10<=$B10,1,0)) -> 0 | HX13: =IF(HW10="",0,IF(HX10<=$B10,1,0)) -> 0 | HZ13: =IF(HY10="",0,IF(HZ10<=$B10,1,0)) -> 0 | IB13: =IF(IA10="",0,IF(IB10<=$B10,1,0)) -> 0 | ID13: =IF(IC10="",0,IF(ID10<=$B10,1,0)) -> 0 | IF13: =IF(IE10="",0,IF(IF10<=$B10,1,0)) -> 0 | IH13: =IF(IG10="",0,IF(IH10<=$B10,1,0)) -> 0 | IJ13: =IF(II10="",0,IF(IJ10<=$B10,1,0)) -> 0 | IL13: =IF(IK10="",0,IF(IL10<=$B10,1,0)) -> 0 | IN13: =IF(IM10="",0,IF(IN10<=$B10,1,0)) -> 0 | IP13: =IF(IO10="",0,IF(IP10<=$B10,1,0)) -> 0 | IR13: =IF(IQ10="",0,IF(IR10<=$B10,1,0)) -> 0 | IT13: =IF(IS10="",0,IF(IT10<=$B10,1,0)) -> 0 | IV13: =IF(IU10="",0,IF(IV10<=$B10,1,0)) -> 0 | IX13: =IF(IW10="",0,IF(IX10<=$B10,1,0)) -> 0 | IZ13: =IF(IY10="",0,IF(IZ10<=$B10,1,0)) -> 0 | JB13: =IF(JA10="",0,IF(JB10<=$B10,1,0)) -> 0 | JD13: =IF(JC10="",0,IF(JD10<=$B10,1,0)) -> 0 | JF13: =IF(JE10="",0,IF(JF10<=$B10,1,0)) -> 0 | JH13: =IF(JG10="",0,IF(JH10<=$B10,1,0)) -> 0 | JJ13: =IF(JI10="",0,IF(JJ10<=$B10,1,0)) -> 0 | JL13: =IF(JK10="",0,IF(JL10<=$B10,1,0)) -> 0 | JN13: =IF(JM10="",0,IF(JN10<=$B10,1,0)) -> 0 | JP13: =IF(JO10="",0,IF(JP10<=$B10,1,0)) -> 0 | JR13: =IF(JQ10="",0,IF(JR10<=$B10,1,0)) -> 0 | JT13: =IF(JS10="",0,IF(JT10<=$B10,1,0)) -> 0 | JV13: =IF(JU10="",0,IF(JV10<=$B10,1,0)) -> 0 | JX13: =IF(JW10="",0,IF(JX10<=$B10,1,0)) -> 0 | JZ13: =IF(JY10="",0,IF(JZ10<=$B10,1,0)) -> 0 | KB13: =IF(KA10="",0,IF(KB10<=$B10,1,0)) -> 0 | KD13: =IF(KC10="",0,IF(KD10<=$B10,1,0)) -> 0 | KF13: =IF(KE10="",0,IF(KF10<=$B10,1,0)) -> 0 | KH13: =IF(KG10="",0,IF(KH10<=$B10,1,0)) -> 0 | KJ13: =IF(KI10="",0,IF(KJ10<=$B10,1,0)) -> 0 | KL13: =IF(KK10="",0,IF(KL10<=$B10,1,0)) -> 0 | KN13: =IF(KM10="",0,IF(KN10<=$B10,1,0)) -> 0 | KP13: =IF(KO10="",0,IF(KP10<=$B10,1,0)) -> 0 | KR13: =IF(KQ10="",0,IF(KR10<=$B10,1,0)) -> 0 | KT13: =IF(KS10="",0,IF(KT10<=$B10,1,0)) -> 0 | KV13: =IF(KU10="",0,IF(KV10<=$B10,1,0)) -> 0 | KX13: =IF(KW10="",0,IF(KX10<=$B10,1,0)) -> 0 | KZ13: =IF(KY10="",0,IF(KZ10<=$B10,1,0)) -> 0 | LB13: =IF(LA10="",0,IF(LB10<=$B10,1,0)) -> 0 | LD13: =IF(LC10="",0,IF(LD10<=$B10,1,0)) -> 0 | LF13: =IF(LE10="",0,IF(LF10<=$B10,1,0)) -> 0 | LH13: =IF(LG10="",0,IF(LH10<=$B10,1,0)) -> 0 | LJ13: =IF(LI10="",0,IF(LJ10<=$B10,1,0)) -> 0 | LL13: =IF(LK10="",0,IF(LL10<=$B10,1,0)) -> 0 | LN13: =IF(LM10="",0,IF(LN10<=$B10,1,0)) -> 0 | LP13: =IF(LO10="",0,IF(LP10<=$B10,1,0)) -> 0 | LR13: =IF(LQ10="",0,IF(LR10<=$B10,1,0)) -> 0 | LT13: =IF(LS10="",0,IF(LT10<=$B10,1,0)) -> 0 | LV13: =IF(LU10="",0,IF(LV10<=$B10,1,0)) -> 0 | LX13: =IF(LW10="",0,IF(LX10<=$B10,1,0)) -> 0 | LZ13: =IF(LY10="",0,IF(LZ10<=$B10,1,0)) -> 0 | MB13: =IF(MA10="",0,IF(MB10<=$B10,1,0)) -> 0 | MD13: =IF(MC10="",0,IF(MD10<=$B10,1,0)) -> 0 | MF13: =IF(ME10="",0,IF(MF10<=$B10,1,0)) -> 0 | MH13: =IF(MG10="",0,IF(MH10<=$B10,1,0)) -> 0 | MJ13: =IF(MI10="",0,IF(MJ10<=$B10,1,0)) -> 0 | ML13: =IF(MK10="",0,IF(ML10<=$B10,1,0)) -> 0 | MN13: =IF(MM10="",0,IF(MN10<=$B10,1,0)) -> 0 | MP13: =IF(MO10="",0,IF(MP10<=$B10,1,0)) -> 0 | MR13: =IF(MQ10="",0,IF(MR10<=$B10,1,0)) -> 0 | MT13: =IF(MS10="",0,IF(MT10<=$B10,1,0)) -> 0 | MV13: =IF(MU10="",0,IF(MV10<=$B10,1,0)) -> 0 | MX13: =IF(MW10="",0,IF(MX10<=$B10,1,0)) -> 0 | MZ13: =IF(MY10="",0,IF(MZ10<=$B10,1,0)) -> 0 | NB13: =IF(NA10="",0,IF(NB10<=$B10,1,0)) -> 0 | ND13: =IF(NC10="",0,IF(ND10<=$B10,1,0)) -> 0 | NF13: =IF(NE10="",0,IF(NF10<=$B10,1,0)) -> 0 | NH13: =IF(NG10="",0,IF(NH10<=$B10,1,0)) -> 0 | NJ13: =IF(NI10="",0,IF(NJ10<=$B10,1,0)) -> 0 | NL13: =IF(NK10="",0,IF(NL10<=$B10,1,0)) -> 0 | NN13: =IF(NM10="",0,IF(NN10<=$B10,1,0)) -> 0 | NP13: =IF(NO10="",0,IF(NP10<=$B10,1,0)) -> 0 | NR13: =IF(NQ10="",0,IF(NR10<=$B10,1,0)) -> 0 | NT13: =IF(NS10="",0,IF(NT10<=$B10,1,0)) -> 0 | NV13: =IF(NU10="",0,IF(NV10<=$B10,1,0)) -> 0 | NX13: =IF(NW10="",0,IF(NX10<=$B10,1,0)) -> 0 | NZ13: =IF(NY10="",0,IF(NZ10<=$B10,1,0)) -> 0 | OB13: =IF(OA10="",0,IF(OB10<=$B10,1,0)) -> 0 | OD13: =IF(OC10="",0,IF(OD10<=$B10,1,0)) -> 0 | OF13: =IF(OE10="",0,IF(OF10<=$B10,1,0)) -> 0 | OH13: =IF(OG10="",0,IF(OH10<=$B10,1,0)) -> 0 | OJ13: =IF(OI10="",0,IF(OJ10<=$B10,1,0)) -> 0 | OL13: =IF(OK10="",0,IF(OL10<=$B10,1,0)) -> 0 | ON13: =IF(OM10="",0,IF(ON10<=$B10,1,0)) -> 0 | OP13: =IF(OO10="",0,IF(OP10<=$B10,1,0)) -> 0 | OR13: =IF(OQ10="",0,IF(OR10<=$B10,1,0)) -> 0 | OT13: =IF(OS10="",0,IF(OT10<=$B10,1,0)) -> 0 | OV13: =IF(OU10="",0,IF(OV10<=$B10,1,0)) -> 0 | OX13: =IF(OW10="",0,IF(OX10<=$B10,1,0)) -> 0 | OZ13: =IF(OY10="",0,IF(OZ10<=$B10,1,0)) -> 0 | PB13: =IF(PA10="",0,IF(PB10<=$B10,1,0)) -> 0 | PD13: =IF(PC10="",0,IF(PD10<=$B10,1,0)) -> 0 | PF13: =IF(PE10="",0,IF(PF10<=$B10,1,0)) -> 0 | PH13: =IF(PG10="",0,IF(PH10<=$B10,1,0)) -> 0 | PJ13: =IF(PI10="",0,IF(PJ10<=$B10,1,0)) -> 0 | PL13: =IF(PK10="",0,IF(PL10<=$B10,1,0)) -> 0 | PN13: =IF(PM10="",0,IF(PN10<=$B10,1,0)) -> 0 | PP13: =IF(PO10="",0,IF(PP10<=$B10,1,0)) -> 0 | PR13: =IF(PQ10="",0,IF(PR10<=$B10,1,0)) -> 0 | PT13: =IF(PS10="",0,IF(PT10<=$B10,1,0)) -> 0 | PV13: =IF(PU10="",0,IF(PV10<=$B10,1,0)) -> 0 | PX13: =IF(PW10="",0,IF(PX10<=$B10,1,0)) -> 0 | PZ13: =IF(PY10="",0,IF(PZ10<=$B10,1,0)) -> 0 | QB13: =IF(QA10="",0,IF(QB10<=$B10,1,0)) -> 0 | QD13: =IF(QC10="",0,IF(QD10<=$B10,1,0)) -> 0 | QF13: =IF(QE10="",0,IF(QF10<=$B10,1,0)) -> 0 | QH13: =IF(QG10="",0,IF(QH10<=$B10,1,0)) -> 0 | QJ13: =IF(QI10="",0,IF(QJ10<=$B10,1,0)) -> 0 | QL13: =IF(QK10="",0,IF(QL10<=$B10,1,0)) -> 0 | QN13: =IF(QM10="",0,IF(QN10<=$B10,1,0)) -> 0 | QP13: =IF(QO10="",0,IF(QP10<=$B10,1,0)) -> 0 | QR13: =IF(QQ10="",0,IF(QR10<=$B10,1,0)) -> 0 | QT13: =IF(QS10="",0,IF(QT10<=$B10,1,0)) -> 0 | QV13: =IF(QU10="",0,IF(QV10<=$B10,1,0)) -> 0 | QX13: =IF(QW10="",0,IF(QX10<=$B10,1,0)) -> 0 | QZ13: =IF(QY10="",0,IF(QZ10<=$B10,1,0)) -> 0 | RB13: =IF(RA10="",0,IF(RB10<=$B10,1,0)) -> 0 | RD13: =IF(RC10="",0,IF(RD10<=$B10,1,0)) -> 0 | RF13: =IF(RE10="",0,IF(RF10<=$B10,1,0)) -> 0 | RH13: =IF(RG10="",0,IF(RH10<=$B10,1,0)) -> 0 | RJ13: =IF(RI10="",0,IF(RJ10<=$B10,1,0)) -> 0 | RL13: =IF(RK10="",0,IF(RL10<=$B10,1,0)) -> 0 | RN13: =IF(RM10="",0,IF(RN10<=$B10,1,0)) -> 0 | RP13: =IF(RO10="",0,IF(RP10<=$B10,1,0)) -> 0 | RR13: =IF(RQ10="",0,IF(RR10<=$B10,1,0)) -> 0 | RT13: =IF(RS10="",0,IF(RT10<=$B10,1,0)) -> 0 | RV13: =IF(RU10="",0,IF(RV10<=$B10,1,0)) -> 0 | RX13: =IF(RW10="",0,IF(RX10<=$B10,1,0)) -> 0 | RZ13: =IF(RY10="",0,IF(RZ10<=$B10,1,0)) -> 0 | SB13: =IF(SA10="",0,IF(SB10<=$B10,1,0)) -> 0 | SD13: =IF(SC10="",0,IF(SD10<=$B10,1,0)) -> 0 | SF13: =IF(SE10="",0,IF(SF10<=$B10,1,0)) -> 0 | SH13: =IF(SG10="",0,IF(SH10<=$B10,1,0)) -> 0 | SJ13: =IF(SI10="",0,IF(SJ10<=$B10,1,0)) -> 0 | SL13: =IF(SK10="",0,IF(SL10<=$B10,1,0)) -> 0 | SN13: =IF(SM10="",0,IF(SN10<=$B10,1,0)) -> 0 | SP13: =IF(SO10="",0,IF(SP10<=$B10,1,0)) -> 0 | SR13: =IF(SQ10="",0,IF(SR10<=$B10,1,0)) -> 0 | ST13: =IF(SS10="",0,IF(ST10<=$B10,1,0)) -> 0 | SV13: =IF(SU10="",0,IF(SV10<=$B10,1,0)) -> 0 | SX13: =IF(SW10="",0,IF(SX10<=$B10,1,0)) -> 0 | SZ13: =IF(SY10="",0,IF(SZ10<=$B10,1,0)) -> 0 | TB13: =IF(TA10="",0,IF(TB10<=$B10,1,0)) -> 0 | TD13: =IF(TC10="",0,IF(TD10<=$B10,1,0)) -> 0 | TF13: =IF(TE10="",0,IF(TF10<=$B10,1,0)) -> 0 | TH13: =IF(TG10="",0,IF(TH10<=$B10,1,0)) -> 0 | TJ13: =IF(TI10="",0,IF(TJ10<=$B10,1,0)) -> 0 | TL13: =IF(TK10="",0,IF(TL10<=$B10,1,0)) -> 0 | TN13: =IF(TM10="",0,IF(TN10<=$B10,1,0)) -> 0 | TP13: =IF(TO10="",0,IF(TP10<=$B10,1,0)) -> 0 | TR13: =IF(TQ10="",0,IF(TR10<=$B10,1,0)) -> 0 | TT13: =IF(TS10="",0,IF(TT10<=$B10,1,0)) -> 0 | TV13: =IF(TU10="",0,IF(TV10<=$B10,1,0)) -> 0 | TX13: =IF(TW10="",0,IF(TX10<=$B10,1,0)) -> 0 | TZ13: =IF(TY10="",0,IF(TZ10<=$B10,1,0)) -> 0 | UB13: =IF(UA10="",0,IF(UB10<=$B10,1,0)) -> 0 | UD13: =IF(UC10="",0,IF(UD10<=$B10,1,0)) -> 0 | UF13: =IF(UE10="",0,IF(UF10<=$B10,1,0)) -> 0 | UH13: =IF(UG10="",0,IF(UH10<=$B10,1,0)) -> 0 | UJ13: =IF(UI10="",0,IF(UJ10<=$B10,1,0)) -> 0 | UL13: =IF(UK10="",0,IF(UL10<=$B10,1,0)) -> 0 | UN13: =IF(UM10="",0,IF(UN10<=$B10,1,0)) -> 0 | UP13: =IF(UO10="",0,IF(UP10<=$B10,1,0)) -> 0 | UR13: =IF(UQ10="",0,IF(UR10<=$B10,1,0)) -> 0 | UT13: =IF(US10="",0,IF(UT10<=$B10,1,0)) -> 0 | UV13: =IF(UU10="",0,IF(UV10<=$B10,1,0)) -> 0 | UX13: =IF(UW10="",0,IF(UX10<=$B10,1,0)) -> 0 | UZ13: =IF(UY10="",0,IF(UZ10<=$B10,1,0)) -> 0 | VB13: =IF(VA10="",0,IF(VB10<=$B10,1,0)) -> 0 | VD13: =IF(VC10="",0,IF(VD10<=$B10,1,0)) -> 0 | VF13: =IF(VE10="",0,IF(VF10<=$B10,1,0)) -> 1 | VH13: =IF(VG10="",0,IF(VH10<=$B10,1,0)) -> 1 | VJ13: =IF(VI10="",0,IF(VJ10<=$B10,1,0)) -> 1 | VL13: =IF(VK10="",0,IF(VL10<=$B10,1,0)) -> 0 | VN13: =IF(VM10="",0,IF(VN10<=$B10,1,0)) -> 0 | VP13: =IF(VO10="",0,IF(VP10<=$B10,1,0)) -> 0 | VR13: =IF(VQ10="",0,IF(VR10<=$B10,1,0)) -> 0 | VT13: =IF(VS10="",0,IF(VT10<=$B10,1,0)) -> 0 | VV13: =IF(VU10="",0,IF(VV10<=$B10,1,0)) -> 0 | VX13: =IF(VW10="",0,IF(VX10<=$B10,1,0)) -> 0 | VZ13: =IF(VY10="",0,IF(VZ10<=$B10,1,0)) -> 0 | WB13: =IF(WA10="",0,IF(WB10<=$B10,1,0)) -> 0 | WD13: =IF(WC10="",0,IF(WD10<=$B10,1,0)) -> 0 | WF13: =IF(WE10="",0,IF(WF10<=$B10,1,0)) -> 0 | WH13: =IF(WG10="",0,IF(WH10<=$B10,1,0)) -> 0 | WJ13: =IF(WI10="",0,IF(WJ10<=$B10,1,0)) -> 0 | WL13: =IF(WK10="",0,IF(WL10<=$B10,1,0)) -> 0 | WN13: =IF(WM10="",0,IF(WN10<=$B10,1,0)) -> 0 | WP13: =IF(WO10="",0,IF(WP10<=$B10,1,0)) -> 0 | WR13: =IF(WQ10="",0,IF(WR10<=$B10,1,0)) -> 0 | WT13: =IF(WS10="",0,IF(WT10<=$B10,1,0)) -> 0 | WV13: =IF(WU10="",0,IF(WV10<=$B10,1,0)) -> 0 | WX13: =IF(WW10="",0,IF(WX10<=$B10,1,0)) -> 0 | WZ13: =IF(WY10="",0,IF(WZ10<=$B10,1,0)) -> 0 | XB13: =IF(XA10="",0,IF(XB10<=$B10,1,0)) -> 0 | XD13: =IF(XC10="",0,IF(XD10<=$B10,1,0)) -> 0 | XF13: =IF(XE10="",0,IF(XF10<=$B10,1,0)) -> 0 | XH13: =IF(XG10="",0,IF(XH10<=$B10,1,0)) -> 0 | XJ13: =IF(XI10="",0,IF(XJ10<=$B10,1,0)) -> 0 | XL13: =IF(XK10="",0,IF(XL10<=$B10,1,0)) -> 0 | XN13: =IF(XM10="",0,IF(XN10<=$B10,1,0)) -> 0 | XP13: =IF(XO10="",0,IF(XP10<=$B10,1,0)) -> 0 | XR13: =IF(XQ10="",0,IF(XR10<=$B10,1,0)) -> 0 | XT13: =IF(XS10="",0,IF(XT10<=$B10,1,0)) -> 0 | XV13: =IF(XU10="",0,IF(XV10<=$B10,1,0)) -> 0 | XX13: =IF(XW10="",0,IF(XX10<=$B10,1,0)) -> 0
D14: =IF(C11="",0,IF(D11<=$B11,1,0)) -> 0 | F14: =IF(E11="",0,IF(F11<=$B11,1,0)) -> 0 | H14: =IF(G11="",0,IF(H11<=$B11,1,0)) -> 0 | J14: =IF(I11="",0,IF(J11<=$B11,1,0)) -> 0 | L14: =IF(K11="",0,IF(L11<=$B11,1,0)) -> 0 | N14: =IF(M11="",0,IF(N11<=$B11,1,0)) -> 0 | P14: =IF(O11="",0,IF(P11<=$B11,1,0)) -> 0 | R14: =IF(Q11="",0,IF(R11<=$B11,1,0)) -> 0 | T14: =IF(S11="",0,IF(T11<=$B11,1,0)) -> 0 | V14: =IF(U11="",0,IF(V11<=$B11,1,0)) -> 0 | X14: =IF(W11="",0,IF(X11<=$B11,1,0)) -> 0 | Z14: =IF(Y11="",0,IF(Z11<=$B11,1,0)) -> 0 | AB14: =IF(AA11="",0,IF(AB11<=$B11,1,0)) -> 0 | AD14: =IF(AC11="",0,IF(AD11<=$B11,1,0)) -> 0 | AF14: =IF(AE11="",0,IF(AF11<=$B11,1,0)) -> 0 | AJ14: =IF(AI11="",0,IF(AJ11<=$B11,1,0)) -> 0 | AL14: =IF(AK11="",0,IF(AL11<=$B11,1,0)) -> 0 | AN14: =IF(AM11="",0,IF(AN11<=$B11,1,0)) -> 0 | AP14: =IF(AO11="",0,IF(AP11<=$B11,1,0)) -> 0 | AR14: =IF(AQ11="",0,IF(AR11<=$B11,1,0)) -> 0 | AT14: =IF(AS11="",0,IF(AT11<=$B11,1,0)) -> 0 | AV14: =IF(AU11="",0,IF(AV11<=$B11,1,0)) -> 0 | AX14: =IF(AW11="",0,IF(AX11<=$B11,1,0)) -> 0 | AZ14: =IF(AY11="",0,IF(AZ11<=$B11,1,0)) -> 0 | BB14: =IF(BA11="",0,IF(BB11<=$B11,1,0)) -> 0 | BD14: =IF(BC11="",0,IF(BD11<=$B11,1,0)) -> 0 | BF14: =IF(BE11="",0,IF(BF11<=$B11,1,0)) -> 0 | BH14: =IF(BG11="",0,IF(BH11<=$B11,1,0)) -> 0 | BJ14: =IF(BI11="",0,IF(BJ11<=$B11,1,0)) -> 0 | BL14: =IF(BK11="",0,IF(BL11<=$B11,1,0)) -> 0 | BN14: =IF(BM11="",0,IF(BN11<=$B11,1,0)) -> 0 | BP14: =IF(BO11="",0,IF(BP11<=$B11,1,0)) -> 0 | BR14: =IF(BQ11="",0,IF(BR11<=$B11,1,0)) -> 0 | BT14: =IF(BS11="",0,IF(BT11<=$B11,1,0)) -> 0 | BV14: =IF(BU11="",0,IF(BV11<=$B11,1,0)) -> 0 | BX14: =IF(BW11="",0,IF(BX11<=$B11,1,0)) -> 0 | BZ14: =IF(BY11="",0,IF(BZ11<=$B11,1,0)) -> 0 | CB14: =IF(CA11="",0,IF(CB11<=$B11,1,0)) -> 0 | CD14: =IF(CC11="",0,IF(CD11<=$B11,1,0)) -> 0 | CF14: =IF(CE11="",0,IF(CF11<=$B11,1,0)) -> 0 | CH14: =IF(CG11="",0,IF(CH11<=$B11,1,0)) -> 0 | CJ14: =IF(CI11="",0,IF(CJ11<=$B11,1,0)) -> 0 | CL14: =IF(CK11="",0,IF(CL11<=$B11,1,0)) -> 0 | CN14: =IF(CM11="",0,IF(CN11<=$B11,1,0)) -> 0 | CP14: =IF(CO11="",0,IF(CP11<=$B11,1,0)) -> 0 | CR14: =IF(CQ11="",0,IF(CR11<=$B11,1,0)) -> 0 | CT14: =IF(CS11="",0,IF(CT11<=$B11,1,0)) -> 0 | CV14: =IF(CU11="",0,IF(CV11<=$B11,1,0)) -> 0 | CX14: =IF(CW11="",0,IF(CX11<=$B11,1,0)) -> 0 | CZ14: =IF(CY11="",0,IF(CZ11<=$B11,1,0)) -> 0 | DB14: =IF(DA11="",0,IF(DB11<=$B11,1,0)) -> 0 | DD14: =IF(DC11="",0,IF(DD11<=$B11,1,0)) -> 0 | DF14: =IF(DE11="",0,IF(DF11<=$B11,1,0)) -> 0 | DH14: =IF(DG11="",0,IF(DH11<=$B11,1,0)) -> 0 | DJ14: =IF(DI11="",0,IF(DJ11<=$B11,1,0)) -> 0 | DL14: =IF(DK11="",0,IF(DL11<=$B11,1,0)) -> 0 | DN14: =IF(DM11="",0,IF(DN11<=$B11,1,0)) -> 0 | DP14: =IF(DO11="",0,IF(DP11<=$B11,1,0)) -> 0 | DR14: =IF(DQ11="",0,IF(DR11<=$B11,1,0)) -> 0 | DT14: =IF(DS11="",0,IF(DT11<=$B11,1,0)) -> 0 | DV14: =IF(DU11="",0,IF(DV11<=$B11,1,0)) -> 0 | DX14: =IF(DW11="",0,IF(DX11<=$B11,1,0)) -> 0 | DZ14: =IF(DY11="",0,IF(DZ11<=$B11,1,0)) -> 0 | EB14: =IF(EA11="",0,IF(EB11<=$B11,1,0)) -> 0 | ED14: =IF(EC11="",0,IF(ED11<=$B11,1,0)) -> 0 | EF14: =IF(EE11="",0,IF(EF11<=$B11,1,0)) -> 0 | EH14: =IF(EG11="",0,IF(EH11<=$B11,1,0)) -> 0 | EJ14: =IF(EI11="",0,IF(EJ11<=$B11,1,0)) -> 0 | EL14: =IF(EK11="",0,IF(EL11<=$B11,1,0)) -> 0 | EN14: =IF(EM11="",0,IF(EN11<=$B11,1,0)) -> 0 | EP14: =IF(EO11="",0,IF(EP11<=$B11,1,0)) -> 0 | ER14: =IF(EQ11="",0,IF(ER11<=$B11,1,0)) -> 0 | ET14: =IF(ES11="",0,IF(ET11<=$B11,1,0)) -> 0 | EV14: =IF(EU11="",0,IF(EV11<=$B11,1,0)) -> 0 | EX14: =IF(EW11="",0,IF(EX11<=$B11,1,0)) -> 0 | EZ14: =IF(EY11="",0,IF(EZ11<=$B11,1,0)) -> 0 | FB14: =IF(FA11="",0,IF(FB11<=$B11,1,0)) -> 0 | FD14: =IF(FC11="",0,IF(FD11<=$B11,1,0)) -> 0 | FF14: =IF(FE11="",0,IF(FF11<=$B11,1,0)) -> 0 | FH14: =IF(FG11="",0,IF(FH11<=$B11,1,0)) -> 0 | FJ14: =IF(FI11="",0,IF(FJ11<=$B11,1,0)) -> 0 | FL14: =IF(FK11="",0,IF(FL11<=$B11,1,0)) -> 0 | FN14: =IF(FM11="",0,IF(FN11<=$B11,1,0)) -> 0 | FP14: =IF(FO11="",0,IF(FP11<=$B11,1,0)) -> 0 | FR14: =IF(FQ11="",0,IF(FR11<=$B11,1,0)) -> 0 | FT14: =IF(FS11="",0,IF(FT11<=$B11,1,0)) -> 0 | FV14: =IF(FU11="",0,IF(FV11<=$B11,1,0)) -> 0 | FX14: =IF(FW11="",0,IF(FX11<=$B11,1,0)) -> 0 | FZ14: =IF(FY11="",0,IF(FZ11<=$B11,1,0)) -> 0 | GB14: =IF(GA11="",0,IF(GB11<=$B11,1,0)) -> 0 | GD14: =IF(GC11="",0,IF(GD11<=$B11,1,0)) -> 0 | GF14: =IF(GE11="",0,IF(GF11<=$B11,1,0)) -> 0 | GH14: =IF(GG11="",0,IF(GH11<=$B11,1,0)) -> 0 | GJ14: =IF(GI11="",0,IF(GJ11<=$B11,1,0)) -> 0 | GL14: =IF(GK11="",0,IF(GL11<=$B11,1,0)) -> 0 | GN14: =IF(GM11="",0,IF(GN11<=$B11,1,0)) -> 0 | GP14: =IF(GO11="",0,IF(GP11<=$B11,1,0)) -> 0 | GR14: =IF(GQ11="",0,IF(GR11<=$B11,1,0)) -> 0 | GT14: =IF(GS11="",0,IF(GT11<=$B11,1,0)) -> 0 | GV14: =IF(GU11="",0,IF(GV11<=$B11,1,0)) -> 0 | GX14: =IF(GW11="",0,IF(GX11<=$B11,1,0)) -> 0 | GZ14: =IF(GY11="",0,IF(GZ11<=$B11,1,0)) -> 0 | HB14: =IF(HA11="",0,IF(HB11<=$B11,1,0)) -> 0 | HD14: =IF(HC11="",0,IF(HD11<=$B11,1,0)) -> 0 | HF14: =IF(HE11="",0,IF(HF11<=$B11,1,0)) -> 0 | HH14: =IF(HG11="",0,IF(HH11<=$B11,1,0)) -> 0 | HJ14: =IF(HI11="",0,IF(HJ11<=$B11,1,0)) -> 0 | HL14: =IF(HK11="",0,IF(HL11<=$B11,1,0)) -> 0 | HN14: =IF(HM11="",0,IF(HN11<=$B11,1,0)) -> 0 | HP14: =IF(HO11="",0,IF(HP11<=$B11,1,0)) -> 0 | HR14: =IF(HQ11="",0,IF(HR11<=$B11,1,0)) -> 0 | HT14: =IF(HS11="",0,IF(HT11<=$B11,1,0)) -> 0 | HV14: =IF(HU11="",0,IF(HV11<=$B11,1,0)) -> 0 | HX14: =IF(HW11="",0,IF(HX11<=$B11,1,0)) -> 0 | HZ14: =IF(HY11="",0,IF(HZ11<=$B11,1,0)) -> 0 | IB14: =IF(IA11="",0,IF(IB11<=$B11,1,0)) -> 0 | ID14: =IF(IC11="",0,IF(ID11<=$B11,1,0)) -> 0 | IF14: =IF(IE11="",0,IF(IF11<=$B11,1,0)) -> 0 | IH14: =IF(IG11="",0,IF(IH11<=$B11,1,0)) -> 0 | IJ14: =IF(II11="",0,IF(IJ11<=$B11,1,0)) -> 0 | IL14: =IF(IK11="",0,IF(IL11<=$B11,1,0)) -> 0 | IN14: =IF(IM11="",0,IF(IN11<=$B11,1,0)) -> 0 | IP14: =IF(IO11="",0,IF(IP11<=$B11,1,0)) -> 0 | IR14: =IF(IQ11="",0,IF(IR11<=$B11,1,0)) -> 0 | IT14: =IF(IS11="",0,IF(IT11<=$B11,1,0)) -> 0 | IV14: =IF(IU11="",0,IF(IV11<=$B11,1,0)) -> 0 | IX14: =IF(IW11="",0,IF(IX11<=$B11,1,0)) -> 0 | IZ14: =IF(IY11="",0,IF(IZ11<=$B11,1,0)) -> 0 | JB14: =IF(JA11="",0,IF(JB11<=$B11,1,0)) -> 0 | JD14: =IF(JC11="",0,IF(JD11<=$B11,1,0)) -> 0 | JF14: =IF(JE11="",0,IF(JF11<=$B11,1,0)) -> 0 | JH14: =IF(JG11="",0,IF(JH11<=$B11,1,0)) -> 0 | JJ14: =IF(JI11="",0,IF(JJ11<=$B11,1,0)) -> 0 | JL14: =IF(JK11="",0,IF(JL11<=$B11,1,0)) -> 0 | JN14: =IF(JM11="",0,IF(JN11<=$B11,1,0)) -> 0 | JP14: =IF(JO11="",0,IF(JP11<=$B11,1,0)) -> 0 | JR14: =IF(JQ11="",0,IF(JR11<=$B11,1,0)) -> 0 | JT14: =IF(JS11="",0,IF(JT11<=$B11,1,0)) -> 0 | JV14: =IF(JU11="",0,IF(JV11<=$B11,1,0)) -> 0 | JX14: =IF(JW11="",0,IF(JX11<=$B11,1,0)) -> 0 | JZ14: =IF(JY11="",0,IF(JZ11<=$B11,1,0)) -> 0 | KB14: =IF(KA11="",0,IF(KB11<=$B11,1,0)) -> 0 | KD14: =IF(KC11="",0,IF(KD11<=$B11,1,0)) -> 0 | KF14: =IF(KE11="",0,IF(KF11<=$B11,1,0)) -> 0 | KH14: =IF(KG11="",0,IF(KH11<=$B11,1,0)) -> 0 | KJ14: =IF(KI11="",0,IF(KJ11<=$B11,1,0)) -> 0 | KL14: =IF(KK11="",0,IF(KL11<=$B11,1,0)) -> 0 | KN14: =IF(KM11="",0,IF(KN11<=$B11,1,0)) -> 0 | KP14: =IF(KO11="",0,IF(KP11<=$B11,1,0)) -> 0 | KR14: =IF(KQ11="",0,IF(KR11<=$B11,1,0)) -> 0 | KT14: =IF(KS11="",0,IF(KT11<=$B11,1,0)) -> 0 | KV14: =IF(KU11="",0,IF(KV11<=$B11,1,0)) -> 0 | KX14: =IF(KW11="",0,IF(KX11<=$B11,1,0)) -> 0 | KZ14: =IF(KY11="",0,IF(KZ11<=$B11,1,0)) -> 0 | LB14: =IF(LA11="",0,IF(LB11<=$B11,1,0)) -> 0 | LD14: =IF(LC11="",0,IF(LD11<=$B11,1,0)) -> 0 | LF14: =IF(LE11="",0,IF(LF11<=$B11,1,0)) -> 0 | LH14: =IF(LG11="",0,IF(LH11<=$B11,1,0)) -> 0 | LJ14: =IF(LI11="",0,IF(LJ11<=$B11,1,0)) -> 0 | LL14: =IF(LK11="",0,IF(LL11<=$B11,1,0)) -> 0 | LN14: =IF(LM11="",0,IF(LN11<=$B11,1,0)) -> 0 | LP14: =IF(LO11="",0,IF(LP11<=$B11,1,0)) -> 0 | LR14: =IF(LQ11="",0,IF(LR11<=$B11,1,0)) -> 0 | LT14: =IF(LS11="",0,IF(LT11<=$B11,1,0)) -> 0 | LV14: =IF(LU11="",0,IF(LV11<=$B11,1,0)) -> 0 | LX14: =IF(LW11="",0,IF(LX11<=$B11,1,0)) -> 0 | LZ14: =IF(LY11="",0,IF(LZ11<=$B11,1,0)) -> 0 | MB14: =IF(MA11="",0,IF(MB11<=$B11,1,0)) -> 0 | MD14: =IF(MC11="",0,IF(MD11<=$B11,1,0)) -> 0 | MF14: =IF(ME11="",0,IF(MF11<=$B11,1,0)) -> 0 | MH14: =IF(MG11="",0,IF(MH11<=$B11,1,0)) -> 0 | MJ14: =IF(MI11="",0,IF(MJ11<=$B11,1,0)) -> 0 | ML14: =IF(MK11="",0,IF(ML11<=$B11,1,0)) -> 0 | MN14: =IF(MM11="",0,IF(MN11<=$B11,1,0)) -> 0 | MP14: =IF(MO11="",0,IF(MP11<=$B11,1,0)) -> 0 | MR14: =IF(MQ11="",0,IF(MR11<=$B11,1,0)) -> 0 | MT14: =IF(MS11="",0,IF(MT11<=$B11,1,0)) -> 0 | MV14: =IF(MU11="",0,IF(MV11<=$B11,1,0)) -> 0 | MX14: =IF(MW11="",0,IF(MX11<=$B11,1,0)) -> 0 | MZ14: =IF(MY11="",0,IF(MZ11<=$B11,1,0)) -> 0 | NB14: =IF(NA11="",0,IF(NB11<=$B11,1,0)) -> 0 | ND14: =IF(NC11="",0,IF(ND11<=$B11,1,0)) -> 0 | NF14: =IF(NE11="",0,IF(NF11<=$B11,1,0)) -> 0 | NH14: =IF(NG11="",0,IF(NH11<=$B11,1,0)) -> 0 | NJ14: =IF(NI11="",0,IF(NJ11<=$B11,1,0)) -> 0 | NL14: =IF(NK11="",0,IF(NL11<=$B11,1,0)) -> 0 | NN14: =IF(NM11="",0,IF(NN11<=$B11,1,0)) -> 0 | NP14: =IF(NO11="",0,IF(NP11<=$B11,1,0)) -> 0 | NR14: =IF(NQ11="",0,IF(NR11<=$B11,1,0)) -> 0 | NT14: =IF(NS11="",0,IF(NT11<=$B11,1,0)) -> 0 | NV14: =IF(NU11="",0,IF(NV11<=$B11,1,0)) -> 0 | NX14: =IF(NW11="",0,IF(NX11<=$B11,1,0)) -> 0 | NZ14: =IF(NY11="",0,IF(NZ11<=$B11,1,0)) -> 0 | OB14: =IF(OA11="",0,IF(OB11<=$B11,1,0)) -> 0 | OD14: =IF(OC11="",0,IF(OD11<=$B11,1,0)) -> 0 | OF14: =IF(OE11="",0,IF(OF11<=$B11,1,0)) -> 0 | OH14: =IF(OG11="",0,IF(OH11<=$B11,1,0)) -> 0 | OJ14: =IF(OI11="",0,IF(OJ11<=$B11,1,0)) -> 0 | OL14: =IF(OK11="",0,IF(OL11<=$B11,1,0)) -> 0 | ON14: =IF(OM11="",0,IF(ON11<=$B11,1,0)) -> 0 | OP14: =IF(OO11="",0,IF(OP11<=$B11,1,0)) -> 0 | OR14: =IF(OQ11="",0,IF(OR11<=$B11,1,0)) -> 0 | OT14: =IF(OS11="",0,IF(OT11<=$B11,1,0)) -> 0 | OV14: =IF(OU11="",0,IF(OV11<=$B11,1,0)) -> 0 | OX14: =IF(OW11="",0,IF(OX11<=$B11,1,0)) -> 0 | OZ14: =IF(OY11="",0,IF(OZ11<=$B11,1,0)) -> 0 | PB14: =IF(PA11="",0,IF(PB11<=$B11,1,0)) -> 0 | PD14: =IF(PC11="",0,IF(PD11<=$B11,1,0)) -> 0 | PF14: =IF(PE11="",0,IF(PF11<=$B11,1,0)) -> 0 | PH14: =IF(PG11="",0,IF(PH11<=$B11,1,0)) -> 0 | PJ14: =IF(PI11="",0,IF(PJ11<=$B11,1,0)) -> 0 | PL14: =IF(PK11="",0,IF(PL11<=$B11,1,0)) -> 0 | PN14: =IF(PM11="",0,IF(PN11<=$B11,1,0)) -> 0 | PP14: =IF(PO11="",0,IF(PP11<=$B11,1,0)) -> 0 | PR14: =IF(PQ11="",0,IF(PR11<=$B11,1,0)) -> 0 | PT14: =IF(PS11="",0,IF(PT11<=$B11,1,0)) -> 0 | PV14: =IF(PU11="",0,IF(PV11<=$B11,1,0)) -> 0 | PX14: =IF(PW11="",0,IF(PX11<=$B11,1,0)) -> 0 | PZ14: =IF(PY11="",0,IF(PZ11<=$B11,1,0)) -> 0 | QB14: =IF(QA11="",0,IF(QB11<=$B11,1,0)) -> 0 | QD14: =IF(QC11="",0,IF(QD11<=$B11,1,0)) -> 0 | QF14: =IF(QE11="",0,IF(QF11<=$B11,1,0)) -> 0 | QH14: =IF(QG11="",0,IF(QH11<=$B11,1,0)) -> 0 | QJ14: =IF(QI11="",0,IF(QJ11<=$B11,1,0)) -> 0 | QL14: =IF(QK11="",0,IF(QL11<=$B11,1,0)) -> 0 | QN14: =IF(QM11="",0,IF(QN11<=$B11,1,0)) -> 0 | QP14: =IF(QO11="",0,IF(QP11<=$B11,1,0)) -> 0 | QR14: =IF(QQ11="",0,IF(QR11<=$B11,1,0)) -> 0 | QT14: =IF(QS11="",0,IF(QT11<=$B11,1,0)) -> 0 | QV14: =IF(QU11="",0,IF(QV11<=$B11,1,0)) -> 0 | QX14: =IF(QW11="",0,IF(QX11<=$B11,1,0)) -> 0 | QZ14: =IF(QY11="",0,IF(QZ11<=$B11,1,0)) -> 0 | RB14: =IF(RA11="",0,IF(RB11<=$B11,1,0)) -> 0 | RD14: =IF(RC11="",0,IF(RD11<=$B11,1,0)) -> 0 | RF14: =IF(RE11="",0,IF(RF11<=$B11,1,0)) -> 0 | RH14: =IF(RG11="",0,IF(RH11<=$B11,1,0)) -> 0 | RJ14: =IF(RI11="",0,IF(RJ11<=$B11,1,0)) -> 0 | RL14: =IF(RK11="",0,IF(RL11<=$B11,1,0)) -> 0 | RN14: =IF(RM11="",0,IF(RN11<=$B11,1,0)) -> 0 | RP14: =IF(RO11="",0,IF(RP11<=$B11,1,0)) -> 0 | RR14: =IF(RQ11="",0,IF(RR11<=$B11,1,0)) -> 0 | RT14: =IF(RS11="",0,IF(RT11<=$B11,1,0)) -> 0 | RV14: =IF(RU11="",0,IF(RV11<=$B11,1,0)) -> 0 | RX14: =IF(RW11="",0,IF(RX11<=$B11,1,0)) -> 0 | RZ14: =IF(RY11="",0,IF(RZ11<=$B11,1,0)) -> 0 | SB14: =IF(SA11="",0,IF(SB11<=$B11,1,0)) -> 0 | SD14: =IF(SC11="",0,IF(SD11<=$B11,1,0)) -> 0 | SF14: =IF(SE11="",0,IF(SF11<=$B11,1,0)) -> 0 | SH14: =IF(SG11="",0,IF(SH11<=$B11,1,0)) -> 0 | SJ14: =IF(SI11="",0,IF(SJ11<=$B11,1,0)) -> 0 | SL14: =IF(SK11="",0,IF(SL11<=$B11,1,0)) -> 0 | SN14: =IF(SM11="",0,IF(SN11<=$B11,1,0)) -> 0 | SP14: =IF(SO11="",0,IF(SP11<=$B11,1,0)) -> 0 | SR14: =IF(SQ11="",0,IF(SR11<=$B11,1,0)) -> 0 | ST14: =IF(SS11="",0,IF(ST11<=$B11,1,0)) -> 0 | SV14: =IF(SU11="",0,IF(SV11<=$B11,1,0)) -> 0 | SX14: =IF(SW11="",0,IF(SX11<=$B11,1,0)) -> 0 | SZ14: =IF(SY11="",0,IF(SZ11<=$B11,1,0)) -> 0 | TB14: =IF(TA11="",0,IF(TB11<=$B11,1,0)) -> 0 | TD14: =IF(TC11="",0,IF(TD11<=$B11,1,0)) -> 0 | TF14: =IF(TE11="",0,IF(TF11<=$B11,1,0)) -> 0 | TH14: =IF(TG11="",0,IF(TH11<=$B11,1,0)) -> 0 | TJ14: =IF(TI11="",0,IF(TJ11<=$B11,1,0)) -> 0 | TL14: =IF(TK11="",0,IF(TL11<=$B11,1,0)) -> 0 | TN14: =IF(TM11="",0,IF(TN11<=$B11,1,0)) -> 0 | TP14: =IF(TO11="",0,IF(TP11<=$B11,1,0)) -> 0 | TR14: =IF(TQ11="",0,IF(TR11<=$B11,1,0)) -> 0 | TT14: =IF(TS11="",0,IF(TT11<=$B11,1,0)) -> 0 | TV14: =IF(TU11="",0,IF(TV11<=$B11,1,0)) -> 0 | TX14: =IF(TW11="",0,IF(TX11<=$B11,1,0)) -> 0 | TZ14: =IF(TY11="",0,IF(TZ11<=$B11,1,0)) -> 0 | UB14: =IF(UA11="",0,IF(UB11<=$B11,1,0)) -> 0 | UD14: =IF(UC11="",0,IF(UD11<=$B11,1,0)) -> 0 | UF14: =IF(UE11="",0,IF(UF11<=$B11,1,0)) -> 0 | UH14: =IF(UG11="",0,IF(UH11<=$B11,1,0)) -> 0 | UJ14: =IF(UI11="",0,IF(UJ11<=$B11,1,0)) -> 0 | UL14: =IF(UK11="",0,IF(UL11<=$B11,1,0)) -> 0 | UN14: =IF(UM11="",0,IF(UN11<=$B11,1,0)) -> 0 | UP14: =IF(UO11="",0,IF(UP11<=$B11,1,0)) -> 0 | UR14: =IF(UQ11="",0,IF(UR11<=$B11,1,0)) -> 0 | UT14: =IF(US11="",0,IF(UT11<=$B11,1,0)) -> 0 | UV14: =IF(UU11="",0,IF(UV11<=$B11,1,0)) -> 0 | UX14: =IF(UW11="",0,IF(UX11<=$B11,1,0)) -> 0 | UZ14: =IF(UY11="",0,IF(UZ11<=$B11,1,0)) -> 0 | VB14: =IF(VA11="",0,IF(VB11<=$B11,1,0)) -> 0 | VD14: =IF(VC11="",0,IF(VD11<=$B11,1,0)) -> 0 | VF14: =IF(VE11="",0,IF(VF11<=$B11,1,0)) -> 0 | VH14: =IF(VG11="",0,IF(VH11<=$B11,1,0)) -> 0 | VJ14: =IF(VI11="",0,IF(VJ11<=$B11,1,0)) -> 0 | VL14: =IF(VK11="",0,IF(VL11<=$B11,1,0)) -> 0 | VN14: =IF(VM11="",0,IF(VN11<=$B11,1,0)) -> 0 | VP14: =IF(VO11="",0,IF(VP11<=$B11,1,0)) -> 0 | VR14: =IF(VQ11="",0,IF(VR11<=$B11,1,0)) -> 0 | VT14: =IF(VS11="",0,IF(VT11<=$B11,1,0)) -> 0 | VV14: =IF(VU11="",0,IF(VV11<=$B11,1,0)) -> 0 | VX14: =IF(VW11="",0,IF(VX11<=$B11,1,0)) -> 0 | VZ14: =IF(VY11="",0,IF(VZ11<=$B11,1,0)) -> 0 | WB14: =IF(WA11="",0,IF(WB11<=$B11,1,0)) -> 0 | WD14: =IF(WC11="",0,IF(WD11<=$B11,1,0)) -> 0 | WF14: =IF(WE11="",0,IF(WF11<=$B11,1,0)) -> 0 | WH14: =IF(WG11="",0,IF(WH11<=$B11,1,0)) -> 0 | WJ14: =IF(WI11="",0,IF(WJ11<=$B11,1,0)) -> 0 | WL14: =IF(WK11="",0,IF(WL11<=$B11,1,0)) -> 0 | WN14: =IF(WM11="",0,IF(WN11<=$B11,1,0)) -> 0 | WP14: =IF(WO11="",0,IF(WP11<=$B11,1,0)) -> 0 | WR14: =IF(WQ11="",0,IF(WR11<=$B11,1,0)) -> 0 | WT14: =IF(WS11="",0,IF(WT11<=$B11,1,0)) -> 0 | WV14: =IF(WU11="",0,IF(WV11<=$B11,1,0)) -> 0 | WX14: =IF(WW11="",0,IF(WX11<=$B11,1,0)) -> 0 | WZ14: =IF(WY11="",0,IF(WZ11<=$B11,1,0)) -> 0 | XB14: =IF(XA11="",0,IF(XB11<=$B11,1,0)) -> 0 | XD14: =IF(XC11="",0,IF(XD11<=$B11,1,0)) -> 0 | XF14: =IF(XE11="",0,IF(XF11<=$B11,1,0)) -> 0 | XH14: =IF(XG11="",0,IF(XH11<=$B11,1,0)) -> 0 | XJ14: =IF(XI11="",0,IF(XJ11<=$B11,1,0)) -> 0 | XL14: =IF(XK11="",0,IF(XL11<=$B11,1,0)) -> 0 | XN14: =IF(XM11="",0,IF(XN11<=$B11,1,0)) -> 0 | XP14: =IF(XO11="",0,IF(XP11<=$B11,1,0)) -> 0 | XR14: =IF(XQ11="",0,IF(XR11<=$B11,1,0)) -> 0 | XT14: =IF(XS11="",0,IF(XT11<=$B11,1,0)) -> 0 | XV14: =IF(XU11="",0,IF(XV11<=$B11,1,0)) -> 0 | XX14: =IF(XW11="",0,IF(XX11<=$B11,1,0)) -> 0
D15: =IF(C12="",0,IF(D12<=$B12,1,0)) -> 1 | F15: =IF(E12="",0,IF(F12<=$B12,1,0)) -> 1 | H15: =IF(G12="",0,IF(H12<=$B12,1,0)) -> 1 | J15: =IF(I12="",0,IF(J12<=$B12,1,0)) -> 1 | L15: =IF(K12="",0,IF(L12<=$B12,1,0)) -> 1 | N15: =IF(M12="",0,IF(N12<=$B12,1,0)) -> 1 | P15: =IF(O12="",0,IF(P12<=$B12,1,0)) -> 1 | R15: =IF(Q12="",0,IF(R12<=$B12,1,0)) -> 1 | T15: =IF(S12="",0,IF(T12<=$B12,1,0)) -> 1 | V15: =IF(U12="",0,IF(V12<=$B12,1,0)) -> 1 | X15: =IF(W12="",0,IF(X12<=$B12,1,0)) -> 1 | Z15: =IF(Y12="",0,IF(Z12<=$B12,1,0)) -> 1 | AB15: =IF(AA12="",0,IF(AB12<=$B12,1,0)) -> 1 | AD15: =IF(AC12="",0,IF(AD12<=$B12,1,0)) -> 1 | AF15: =IF(AE12="",0,IF(AF12<=$B12,1,0)) -> 1 | AJ15: =IF(AI12="",0,IF(AJ12<=$B12,1,0)) -> 1 | AL15: =IF(AK12="",0,IF(AL12<=$B12,1,0)) -> 1 | AN15: =IF(AM12="",0,IF(AN12<=$B12,1,0)) -> 1 | AP15: =IF(AO12="",0,IF(AP12<=$B12,1,0)) -> 1 | AR15: =IF(AQ12="",0,IF(AR12<=$B12,1,0)) -> 1 | AT15: =IF(AS12="",0,IF(AT12<=$B12,1,0)) -> 1 | AV15: =IF(AU12="",0,IF(AV12<=$B12,1,0)) -> 1 | AX15: =IF(AW12="",0,IF(AX12<=$B12,1,0)) -> 1 | AZ15: =IF(AY12="",0,IF(AZ12<=$B12,1,0)) -> 1 | BB15: =IF(BA12="",0,IF(BB12<=$B12,1,0)) -> 1 | BD15: =IF(BC12="",0,IF(BD12<=$B12,1,0)) -> 1 | BF15: =IF(BE12="",0,IF(BF12<=$B12,1,0)) -> 1 | BH15: =IF(BG12="",0,IF(BH12<=$B12,1,0)) -> 1 | BJ15: =IF(BI12="",0,IF(BJ12<=$B12,1,0)) -> 1 | BL15: =IF(BK12="",0,IF(BL12<=$B12,1,0)) -> 1 | BN15: =IF(BM12="",0,IF(BN12<=$B12,1,0)) -> 1 | BP15: =IF(BO12="",0,IF(BP12<=$B12,1,0)) -> 1 | BR15: =IF(BQ12="",0,IF(BR12<=$B12,1,0)) -> 1 | BT15: =IF(BS12="",0,IF(BT12<=$B12,1,0)) -> 1 | BV15: =IF(BU12="",0,IF(BV12<=$B12,1,0)) -> 1 | BX15: =IF(BW12="",0,IF(BX12<=$B12,1,0)) -> 1 | BZ15: =IF(BY12="",0,IF(BZ12<=$B12,1,0)) -> 1 | CB15: =IF(CA12="",0,IF(CB12<=$B12,1,0)) -> 1 | CD15: =IF(CC12="",0,IF(CD12<=$B12,1,0)) -> 1 | CF15: =IF(CE12="",0,IF(CF12<=$B12,1,0)) -> 1 | CH15: =IF(CG12="",0,IF(CH12<=$B12,1,0)) -> 1 | CJ15: =IF(CI12="",0,IF(CJ12<=$B12,1,0)) -> 1 | CL15: =IF(CK12="",0,IF(CL12<=$B12,1,0)) -> 1 | CN15: =IF(CM12="",0,IF(CN12<=$B12,1,0)) -> 1 | CP15: =IF(CO12="",0,IF(CP12<=$B12,1,0)) -> 1 | CR15: =IF(CQ12="",0,IF(CR12<=$B12,1,0)) -> 1 | CT15: =IF(CS12="",0,IF(CT12<=$B12,1,0)) -> 1 | CV15: =IF(CU12="",0,IF(CV12<=$B12,1,0)) -> 1 | CX15: =IF(CW12="",0,IF(CX12<=$B12,1,0)) -> 1 | CZ15: =IF(CY12="",0,IF(CZ12<=$B12,1,0)) -> 1 | DB15: =IF(DA12="",0,IF(DB12<=$B12,1,0)) -> 1 | DD15: =IF(DC12="",0,IF(DD12<=$B12,1,0)) -> 1 | DF15: =IF(DE12="",0,IF(DF12<=$B12,1,0)) -> 1 | DH15: =IF(DG12="",0,IF(DH12<=$B12,1,0)) -> 1 | DJ15: =IF(DI12="",0,IF(DJ12<=$B12,1,0)) -> 1 | DL15: =IF(DK12="",0,IF(DL12<=$B12,1,0)) -> 1 | DN15: =IF(DM12="",0,IF(DN12<=$B12,1,0)) -> 1 | DP15: =IF(DO12="",0,IF(DP12<=$B12,1,0)) -> 1 | DR15: =IF(DQ12="",0,IF(DR12<=$B12,1,0)) -> 1 | DT15: =IF(DS12="",0,IF(DT12<=$B12,1,0)) -> 1 | DV15: =IF(DU12="",0,IF(DV12<=$B12,1,0)) -> 1 | DX15: =IF(DW12="",0,IF(DX12<=$B12,1,0)) -> 1 | DZ15: =IF(DY12="",0,IF(DZ12<=$B12,1,0)) -> 1 | EB15: =IF(EA12="",0,IF(EB12<=$B12,1,0)) -> 1 | ED15: =IF(EC12="",0,IF(ED12<=$B12,1,0)) -> 1 | EF15: =IF(EE12="",0,IF(EF12<=$B12,1,0)) -> 1 | EH15: =IF(EG12="",0,IF(EH12<=$B12,1,0)) -> 1 | EJ15: =IF(EI12="",0,IF(EJ12<=$B12,1,0)) -> 1 | EL15: =IF(EK12="",0,IF(EL12<=$B12,1,0)) -> 1 | EN15: =IF(EM12="",0,IF(EN12<=$B12,1,0)) -> 1 | EP15: =IF(EO12="",0,IF(EP12<=$B12,1,0)) -> 1 | ER15: =IF(EQ12="",0,IF(ER12<=$B12,1,0)) -> 1 | ET15: =IF(ES12="",0,IF(ET12<=$B12,1,0)) -> 1 | EV15: =IF(EU12="",0,IF(EV12<=$B12,1,0)) -> 1 | EX15: =IF(EW12="",0,IF(EX12<=$B12,1,0)) -> 1 | EZ15: =IF(EY12="",0,IF(EZ12<=$B12,1,0)) -> 1 | FB15: =IF(FA12="",0,IF(FB12<=$B12,1,0)) -> 1 | FD15: =IF(FC12="",0,IF(FD12<=$B12,1,0)) -> 1 | FF15: =IF(FE12="",0,IF(FF12<=$B12,1,0)) -> 1 | FH15: =IF(FG12="",0,IF(FH12<=$B12,1,0)) -> 1 | FJ15: =IF(FI12="",0,IF(FJ12<=$B12,1,0)) -> 1 | FL15: =IF(FK12="",0,IF(FL12<=$B12,1,0)) -> 1 | FN15: =IF(FM12="",0,IF(FN12<=$B12,1,0)) -> 1 | FP15: =IF(FO12="",0,IF(FP12<=$B12,1,0)) -> 1 | FR15: =IF(FQ12="",0,IF(FR12<=$B12,1,0)) -> 1 | FT15: =IF(FS12="",0,IF(FT12<=$B12,1,0)) -> 1 | FV15: =IF(FU12="",0,IF(FV12<=$B12,1,0)) -> 1 | FX15: =IF(FW12="",0,IF(FX12<=$B12,1,0)) -> 1 | FZ15: =IF(FY12="",0,IF(FZ12<=$B12,1,0)) -> 1 | GB15: =IF(GA12="",0,IF(GB12<=$B12,1,0)) -> 1 | GD15: =IF(GC12="",0,IF(GD12<=$B12,1,0)) -> 1 | GF15: =IF(GE12="",0,IF(GF12<=$B12,1,0)) -> 1 | GH15: =IF(GG12="",0,IF(GH12<=$B12,1,0)) -> 1 | GJ15: =IF(GI12="",0,IF(GJ12<=$B12,1,0)) -> 1 | GL15: =IF(GK12="",0,IF(GL12<=$B12,1,0)) -> 1 | GN15: =IF(GM12="",0,IF(GN12<=$B12,1,0)) -> 1 | GP15: =IF(GO12="",0,IF(GP12<=$B12,1,0)) -> 1 | GR15: =IF(GQ12="",0,IF(GR12<=$B12,1,0)) -> 1 | GT15: =IF(GS12="",0,IF(GT12<=$B12,1,0)) -> 1 | GV15: =IF(GU12="",0,IF(GV12<=$B12,1,0)) -> 1 | GX15: =IF(GW12="",0,IF(GX12<=$B12,1,0)) -> 1 | GZ15: =IF(GY12="",0,IF(GZ12<=$B12,1,0)) -> 1 | HB15: =IF(HA12="",0,IF(HB12<=$B12,1,0)) -> 1 | HD15: =IF(HC12="",0,IF(HD12<=$B12,1,0)) -> 1 | HF15: =IF(HE12="",0,IF(HF12<=$B12,1,0)) -> 1 | HH15: =IF(HG12="",0,IF(HH12<=$B12,1,0)) -> 1 | HJ15: =IF(HI12="",0,IF(HJ12<=$B12,1,0)) -> 1 | HL15: =IF(HK12="",0,IF(HL12<=$B12,1,0)) -> 1 | HN15: =IF(HM12="",0,IF(HN12<=$B12,1,0)) -> 1 | HP15: =IF(HO12="",0,IF(HP12<=$B12,1,0)) -> 1 | HR15: =IF(HQ12="",0,IF(HR12<=$B12,1,0)) -> 1 | HT15: =IF(HS12="",0,IF(HT12<=$B12,1,0)) -> 1 | HV15: =IF(HU12="",0,IF(HV12<=$B12,1,0)) -> 1 | HX15: =IF(HW12="",0,IF(HX12<=$B12,1,0)) -> 1 | HZ15: =IF(HY12="",0,IF(HZ12<=$B12,1,0)) -> 1 | IB15: =IF(IA12="",0,IF(IB12<=$B12,1,0)) -> 1 | ID15: =IF(IC12="",0,IF(ID12<=$B12,1,0)) -> 1 | IF15: =IF(IE12="",0,IF(IF12<=$B12,1,0)) -> 1 | IH15: =IF(IG12="",0,IF(IH12<=$B12,1,0)) -> 1 | IJ15: =IF(II12="",0,IF(IJ12<=$B12,1,0)) -> 1 | IL15: =IF(IK12="",0,IF(IL12<=$B12,1,0)) -> 1 | IN15: =IF(IM12="",0,IF(IN12<=$B12,1,0)) -> 1 | IP15: =IF(IO12="",0,IF(IP12<=$B12,1,0)) -> 1 | IR15: =IF(IQ12="",0,IF(IR12<=$B12,1,0)) -> 1 | IT15: =IF(IS12="",0,IF(IT12<=$B12,1,0)) -> 1 | IV15: =IF(IU12="",0,IF(IV12<=$B12,1,0)) -> 1 | IX15: =IF(IW12="",0,IF(IX12<=$B12,1,0)) -> 1 | IZ15: =IF(IY12="",0,IF(IZ12<=$B12,1,0)) -> 1 | JB15: =IF(JA12="",0,IF(JB12<=$B12,1,0)) -> 1 | JD15: =IF(JC12="",0,IF(JD12<=$B12,1,0)) -> 1 | JF15: =IF(JE12="",0,IF(JF12<=$B12,1,0)) -> 1 | JH15: =IF(JG12="",0,IF(JH12<=$B12,1,0)) -> 1 | JJ15: =IF(JI12="",0,IF(JJ12<=$B12,1,0)) -> 1 | JL15: =IF(JK12="",0,IF(JL12<=$B12,1,0)) -> 1 | JN15: =IF(JM12="",0,IF(JN12<=$B12,1,0)) -> 1 | JP15: =IF(JO12="",0,IF(JP12<=$B12,1,0)) -> 1 | JR15: =IF(JQ12="",0,IF(JR12<=$B12,1,0)) -> 1 | JT15: =IF(JS12="",0,IF(JT12<=$B12,1,0)) -> 1 | JV15: =IF(JU12="",0,IF(JV12<=$B12,1,0)) -> 1 | JX15: =IF(JW12="",0,IF(JX12<=$B12,1,0)) -> 1 | JZ15: =IF(JY12="",0,IF(JZ12<=$B12,1,0)) -> 1 | KB15: =IF(KA12="",0,IF(KB12<=$B12,1,0)) -> 1 | KD15: =IF(KC12="",0,IF(KD12<=$B12,1,0)) -> 1 | KF15: =IF(KE12="",0,IF(KF12<=$B12,1,0)) -> 1 | KH15: =IF(KG12="",0,IF(KH12<=$B12,1,0)) -> 1 | KJ15: =IF(KI12="",0,IF(KJ12<=$B12,1,0)) -> 1 | KL15: =IF(KK12="",0,IF(KL12<=$B12,1,0)) -> 1 | KN15: =IF(KM12="",0,IF(KN12<=$B12,1,0)) -> 1 | KP15: =IF(KO12="",0,IF(KP12<=$B12,1,0)) -> 1 | KR15: =IF(KQ12="",0,IF(KR12<=$B12,1,0)) -> 1 | KT15: =IF(KS12="",0,IF(KT12<=$B12,1,0)) -> 1 | KV15: =IF(KU12="",0,IF(KV12<=$B12,1,0)) -> 1 | KX15: =IF(KW12="",0,IF(KX12<=$B12,1,0)) -> 1 | KZ15: =IF(KY12="",0,IF(KZ12<=$B12,1,0)) -> 1 | LB15: =IF(LA12="",0,IF(LB12<=$B12,1,0)) -> 1 | LD15: =IF(LC12="",0,IF(LD12<=$B12,1,0)) -> 1 | LF15: =IF(LE12="",0,IF(LF12<=$B12,1,0)) -> 1 | LH15: =IF(LG12="",0,IF(LH12<=$B12,1,0)) -> 1 | LJ15: =IF(LI12="",0,IF(LJ12<=$B12,1,0)) -> 1 | LL15: =IF(LK12="",0,IF(LL12<=$B12,1,0)) -> 1 | LN15: =IF(LM12="",0,IF(LN12<=$B12,1,0)) -> 1 | LP15: =IF(LO12="",0,IF(LP12<=$B12,1,0)) -> 1 | LR15: =IF(LQ12="",0,IF(LR12<=$B12,1,0)) -> 1 | LT15: =IF(LS12="",0,IF(LT12<=$B12,1,0)) -> 1 | LV15: =IF(LU12="",0,IF(LV12<=$B12,1,0)) -> 1 | LX15: =IF(LW12="",0,IF(LX12<=$B12,1,0)) -> 1 | LZ15: =IF(LY12="",0,IF(LZ12<=$B12,1,0)) -> 1 | MB15: =IF(MA12="",0,IF(MB12<=$B12,1,0)) -> 1 | MD15: =IF(MC12="",0,IF(MD12<=$B12,1,0)) -> 1 | MF15: =IF(ME12="",0,IF(MF12<=$B12,1,0)) -> 1 | MH15: =IF(MG12="",0,IF(MH12<=$B12,1,0)) -> 1 | MJ15: =IF(MI12="",0,IF(MJ12<=$B12,1,0)) -> 1 | ML15: =IF(MK12="",0,IF(ML12<=$B12,1,0)) -> 1 | MN15: =IF(MM12="",0,IF(MN12<=$B12,1,0)) -> 1 | MP15: =IF(MO12="",0,IF(MP12<=$B12,1,0)) -> 1 | MR15: =IF(MQ12="",0,IF(MR12<=$B12,1,0)) -> 1 | MT15: =IF(MS12="",0,IF(MT12<=$B12,1,0)) -> 1 | MV15: =IF(MU12="",0,IF(MV12<=$B12,1,0)) -> 1 | MX15: =IF(MW12="",0,IF(MX12<=$B12,1,0)) -> 1 | MZ15: =IF(MY12="",0,IF(MZ12<=$B12,1,0)) -> 1 | NB15: =IF(NA12="",0,IF(NB12<=$B12,1,0)) -> 1 | ND15: =IF(NC12="",0,IF(ND12<=$B12,1,0)) -> 1 | NF15: =IF(NE12="",0,IF(NF12<=$B12,1,0)) -> 1 | NH15: =IF(NG12="",0,IF(NH12<=$B12,1,0)) -> 1 | NJ15: =IF(NI12="",0,IF(NJ12<=$B12,1,0)) -> 1 | NL15: =IF(NK12="",0,IF(NL12<=$B12,1,0)) -> 1 | NN15: =IF(NM12="",0,IF(NN12<=$B12,1,0)) -> 1 | NP15: =IF(NO12="",0,IF(NP12<=$B12,1,0)) -> 1 | NR15: =IF(NQ12="",0,IF(NR12<=$B12,1,0)) -> 1 | NT15: =IF(NS12="",0,IF(NT12<=$B12,1,0)) -> 1 | NV15: =IF(NU12="",0,IF(NV12<=$B12,1,0)) -> 1 | NX15: =IF(NW12="",0,IF(NX12<=$B12,1,0)) -> 1 | NZ15: =IF(NY12="",0,IF(NZ12<=$B12,1,0)) -> 1 | OB15: =IF(OA12="",0,IF(OB12<=$B12,1,0)) -> 1 | OD15: =IF(OC12="",0,IF(OD12<=$B12,1,0)) -> 1 | OF15: =IF(OE12="",0,IF(OF12<=$B12,1,0)) -> 1 | OH15: =IF(OG12="",0,IF(OH12<=$B12,1,0)) -> 1 | OJ15: =IF(OI12="",0,IF(OJ12<=$B12,1,0)) -> 1 | OL15: =IF(OK12="",0,IF(OL12<=$B12,1,0)) -> 1 | ON15: =IF(OM12="",0,IF(ON12<=$B12,1,0)) -> 1 | OP15: =IF(OO12="",0,IF(OP12<=$B12,1,0)) -> 1 | OR15: =IF(OQ12="",0,IF(OR12<=$B12,1,0)) -> 1 | OT15: =IF(OS12="",0,IF(OT12<=$B12,1,0)) -> 1 | OV15: =IF(OU12="",0,IF(OV12<=$B12,1,0)) -> 1 | OX15: =IF(OW12="",0,IF(OX12<=$B12,1,0)) -> 1 | OZ15: =IF(OY12="",0,IF(OZ12<=$B12,1,0)) -> 1 | PB15: =IF(PA12="",0,IF(PB12<=$B12,1,0)) -> 1 | PD15: =IF(PC12="",0,IF(PD12<=$B12,1,0)) -> 1 | PF15: =IF(PE12="",0,IF(PF12<=$B12,1,0)) -> 1 | PH15: =IF(PG12="",0,IF(PH12<=$B12,1,0)) -> 1 | PJ15: =IF(PI12="",0,IF(PJ12<=$B12,1,0)) -> 1 | PL15: =IF(PK12="",0,IF(PL12<=$B12,1,0)) -> 1 | PN15: =IF(PM12="",0,IF(PN12<=$B12,1,0)) -> 1 | PP15: =IF(PO12="",0,IF(PP12<=$B12,1,0)) -> 1 | PR15: =IF(PQ12="",0,IF(PR12<=$B12,1,0)) -> 1 | PT15: =IF(PS12="",0,IF(PT12<=$B12,1,0)) -> 1 | PV15: =IF(PU12="",0,IF(PV12<=$B12,1,0)) -> 1 | PX15: =IF(PW12="",0,IF(PX12<=$B12,1,0)) -> 1 | PZ15: =IF(PY12="",0,IF(PZ12<=$B12,1,0)) -> 1 | QB15: =IF(QA12="",0,IF(QB12<=$B12,1,0)) -> 1 | QD15: =IF(QC12="",0,IF(QD12<=$B12,1,0)) -> 1 | QF15: =IF(QE12="",0,IF(QF12<=$B12,1,0)) -> 1 | QH15: =IF(QG12="",0,IF(QH12<=$B12,1,0)) -> 1 | QJ15: =IF(QI12="",0,IF(QJ12<=$B12,1,0)) -> 1 | QL15: =IF(QK12="",0,IF(QL12<=$B12,1,0)) -> 1 | QN15: =IF(QM12="",0,IF(QN12<=$B12,1,0)) -> 1 | QP15: =IF(QO12="",0,IF(QP12<=$B12,1,0)) -> 1 | QR15: =IF(QQ12="",0,IF(QR12<=$B12,1,0)) -> 1 | QT15: =IF(QS12="",0,IF(QT12<=$B12,1,0)) -> 1 | QV15: =IF(QU12="",0,IF(QV12<=$B12,1,0)) -> 1 | QX15: =IF(QW12="",0,IF(QX12<=$B12,1,0)) -> 1 | QZ15: =IF(QY12="",0,IF(QZ12<=$B12,1,0)) -> 1 | RB15: =IF(RA12="",0,IF(RB12<=$B12,1,0)) -> 1 | RD15: =IF(RC12="",0,IF(RD12<=$B12,1,0)) -> 1 | RF15: =IF(RE12="",0,IF(RF12<=$B12,1,0)) -> 1 | RH15: =IF(RG12="",0,IF(RH12<=$B12,1,0)) -> 1 | RJ15: =IF(RI12="",0,IF(RJ12<=$B12,1,0)) -> 1 | RL15: =IF(RK12="",0,IF(RL12<=$B12,1,0)) -> 1 | RN15: =IF(RM12="",0,IF(RN12<=$B12,1,0)) -> 1 | RP15: =IF(RO12="",0,IF(RP12<=$B12,1,0)) -> 1 | RR15: =IF(RQ12="",0,IF(RR12<=$B12,1,0)) -> 1 | RT15: =IF(RS12="",0,IF(RT12<=$B12,1,0)) -> 1 | RV15: =IF(RU12="",0,IF(RV12<=$B12,1,0)) -> 1 | RX15: =IF(RW12="",0,IF(RX12<=$B12,1,0)) -> 1 | RZ15: =IF(RY12="",0,IF(RZ12<=$B12,1,0)) -> 1 | SB15: =IF(SA12="",0,IF(SB12<=$B12,1,0)) -> 1 | SD15: =IF(SC12="",0,IF(SD12<=$B12,1,0)) -> 1 | SF15: =IF(SE12="",0,IF(SF12<=$B12,1,0)) -> 1 | SH15: =IF(SG12="",0,IF(SH12<=$B12,1,0)) -> 1 | SJ15: =IF(SI12="",0,IF(SJ12<=$B12,1,0)) -> 1 | SL15: =IF(SK12="",0,IF(SL12<=$B12,1,0)) -> 1 | SN15: =IF(SM12="",0,IF(SN12<=$B12,1,0)) -> 1 | SP15: =IF(SO12="",0,IF(SP12<=$B12,1,0)) -> 1 | SR15: =IF(SQ12="",0,IF(SR12<=$B12,1,0)) -> 1 | ST15: =IF(SS12="",0,IF(ST12<=$B12,1,0)) -> 1 | SV15: =IF(SU12="",0,IF(SV12<=$B12,1,0)) -> 1 | SX15: =IF(SW12="",0,IF(SX12<=$B12,1,0)) -> 1 | SZ15: =IF(SY12="",0,IF(SZ12<=$B12,1,0)) -> 1 | TB15: =IF(TA12="",0,IF(TB12<=$B12,1,0)) -> 1 | TD15: =IF(TC12="",0,IF(TD12<=$B12,1,0)) -> 1 | TF15: =IF(TE12="",0,IF(TF12<=$B12,1,0)) -> 1 | TH15: =IF(TG12="",0,IF(TH12<=$B12,1,0)) -> 1 | TJ15: =IF(TI12="",0,IF(TJ12<=$B12,1,0)) -> 1 | TL15: =IF(TK12="",0,IF(TL12<=$B12,1,0)) -> 1 | TN15: =IF(TM12="",0,IF(TN12<=$B12,1,0)) -> 1 | TP15: =IF(TO12="",0,IF(TP12<=$B12,1,0)) -> 1 | TR15: =IF(TQ12="",0,IF(TR12<=$B12,1,0)) -> 1 | TT15: =IF(TS12="",0,IF(TT12<=$B12,1,0)) -> 1 | TV15: =IF(TU12="",0,IF(TV12<=$B12,1,0)) -> 1 | TX15: =IF(TW12="",0,IF(TX12<=$B12,1,0)) -> 1 | TZ15: =IF(TY12="",0,IF(TZ12<=$B12,1,0)) -> 1 | UB15: =IF(UA12="",0,IF(UB12<=$B12,1,0)) -> 1 | UD15: =IF(UC12="",0,IF(UD12<=$B12,1,0)) -> 1 | UF15: =IF(UE12="",0,IF(UF12<=$B12,1,0)) -> 1 | UH15: =IF(UG12="",0,IF(UH12<=$B12,1,0)) -> 1 | UJ15: =IF(UI12="",0,IF(UJ12<=$B12,1,0)) -> 1 | UL15: =IF(UK12="",0,IF(UL12<=$B12,1,0)) -> 1 | UN15: =IF(UM12="",0,IF(UN12<=$B12,1,0)) -> 1 | UP15: =IF(UO12="",0,IF(UP12<=$B12,1,0)) -> 1 | UR15: =IF(UQ12="",0,IF(UR12<=$B12,1,0)) -> 1 | UT15: =IF(US12="",0,IF(UT12<=$B12,1,0)) -> 1 | UV15: =IF(UU12="",0,IF(UV12<=$B12,1,0)) -> 1 | UX15: =IF(UW12="",0,IF(UX12<=$B12,1,0)) -> 1 | UZ15: =IF(UY12="",0,IF(UZ12<=$B12,1,0)) -> 1 | VB15: =IF(VA12="",0,IF(VB12<=$B12,1,0)) -> 1 | VD15: =IF(VC12="",0,IF(VD12<=$B12,1,0)) -> 1 | VF15: =IF(VE12="",0,IF(VF12<=$B12,1,0)) -> 0 | VH15: =IF(VG12="",0,IF(VH12<=$B12,1,0)) -> 0 | VJ15: =IF(VI12="",0,IF(VJ12<=$B12,1,0)) -> 0 | VL15: =IF(VK12="",0,IF(VL12<=$B12,1,0)) -> 1 | VN15: =IF(VM12="",0,IF(VN12<=$B12,1,0)) -> 1 | VP15: =IF(VO12="",0,IF(VP12<=$B12,1,0)) -> 1 | VR15: =IF(VQ12="",0,IF(VR12<=$B12,1,0)) -> 1 | VT15: =IF(VS12="",0,IF(VT12<=$B12,1,0)) -> 1 | VV15: =IF(VU12="",0,IF(VV12<=$B12,1,0)) -> 1 | VX15: =IF(VW12="",0,IF(VX12<=$B12,1,0)) -> 1 | VZ15: =IF(VY12="",0,IF(VZ12<=$B12,1,0)) -> 1 | WB15: =IF(WA12="",0,IF(WB12<=$B12,1,0)) -> 1 | WD15: =IF(WC12="",0,IF(WD12<=$B12,1,0)) -> 1 | WF15: =IF(WE12="",0,IF(WF12<=$B12,1,0)) -> 1 | WH15: =IF(WG12="",0,IF(WH12<=$B12,1,0)) -> 1 | WJ15: =IF(WI12="",0,IF(WJ12<=$B12,1,0)) -> 1 | WL15: =IF(WK12="",0,IF(WL12<=$B12,1,0)) -> 1 | WN15: =IF(WM12="",0,IF(WN12<=$B12,1,0)) -> 1 | WP15: =IF(WO12="",0,IF(WP12<=$B12,1,0)) -> 1 | WR15: =IF(WQ12="",0,IF(WR12<=$B12,1,0)) -> 1 | WT15: =IF(WS12="",0,IF(WT12<=$B12,1,0)) -> 1 | WV15: =IF(WU12="",0,IF(WV12<=$B12,1,0)) -> 1 | WX15: =IF(WW12="",0,IF(WX12<=$B12,1,0)) -> 1 | WZ15: =IF(WY12="",0,IF(WZ12<=$B12,1,0)) -> 1 | XB15: =IF(XA12="",0,IF(XB12<=$B12,1,0)) -> 1 | XD15: =IF(XC12="",0,IF(XD12<=$B12,1,0)) -> 1 | XF15: =IF(XE12="",0,IF(XF12<=$B12,1,0)) -> 1 | XH15: =IF(XG12="",0,IF(XH12<=$B12,1,0)) -> 1 | XJ15: =IF(XI12="",0,IF(XJ12<=$B12,1,0)) -> 1 | XL15: =IF(XK12="",0,IF(XL12<=$B12,1,0)) -> 1 | XN15: =IF(XM12="",0,IF(XN12<=$B12,1,0)) -> 1 | XP15: =IF(XO12="",0,IF(XP12<=$B12,1,0)) -> 1 | XR15: =IF(XQ12="",0,IF(XR12<=$B12,1,0)) -> 1 | XT15: =IF(XS12="",0,IF(XT12<=$B12,1,0)) -> 1 | XV15: =IF(XU12="",0,IF(XV12<=$B12,1,0)) -> 1 | XX15: =IF(XW12="",0,IF(XX12<=$B12,1,0)) -> 1
D16: =SUM(D13:D15) -> 1 | F16: =SUM(F13:F15) -> 1 | H16: =SUM(H13:H15) -> 1 | J16: =SUM(J13:J15) -> 1 | L16: =SUM(L13:L15) -> 1 | N16: =SUM(N13:N15) -> 1 | P16: =SUM(P13:P15) -> 1 | R16: =SUM(R13:R15) -> 1 | T16: =SUM(T13:T15) -> 1 | V16: =SUM(V13:V15) -> 1 | X16: =SUM(X13:X15) -> 1 | Z16: =SUM(Z13:Z15) -> 1 | AB16: =SUM(AB13:AB15) -> 1 | AD16: =SUM(AD13:AD15) -> 1 | AF16: =SUM(AF13:AF15) -> 1 | AJ16: =SUM(AJ13:AJ15) -> 1 | AL16: =SUM(AL13:AL15) -> 1 | AN16: =SUM(AN13:AN15) -> 1 | AP16: =SUM(AP13:AP15) -> 1 | AR16: =SUM(AR13:AR15) -> 1 | AT16: =SUM(AT13:AT15) -> 1 | AV16: =SUM(AV13:AV15) -> 1 | AX16: =SUM(AX13:AX15) -> 1 | AZ16: =SUM(AZ13:AZ15) -> 1 | BB16: =SUM(BB13:BB15) -> 1 | BD16: =SUM(BD13:BD15) -> 1 | BF16: =SUM(BF13:BF15) -> 1 | BH16: =SUM(BH13:BH15) -> 1 | BJ16: =SUM(BJ13:BJ15) -> 1 | BL16: =SUM(BL13:BL15) -> 1 | BN16: =SUM(BN13:BN15) -> 1 | BP16: =SUM(BP13:BP15) -> 1 | BR16: =SUM(BR13:BR15) -> 1 | BT16: =SUM(BT13:BT15) -> 1 | BV16: =SUM(BV13:BV15) -> 1 | BX16: =SUM(BX13:BX15) -> 1 | BZ16: =SUM(BZ13:BZ15) -> 1 | CB16: =SUM(CB13:CB15) -> 1 | CD16: =SUM(CD13:CD15) -> 1 | CF16: =SUM(CF13:CF15) -> 1 | CH16: =SUM(CH13:CH15) -> 1 | CJ16: =SUM(CJ13:CJ15) -> 1 | CL16: =SUM(CL13:CL15) -> 1 | CN16: =SUM(CN13:CN15) -> 1 | CP16: =SUM(CP13:CP15) -> 1 | CR16: =SUM(CR13:CR15) -> 1 | CT16: =SUM(CT13:CT15) -> 1 | CV16: =SUM(CV13:CV15) -> 1 | CX16: =SUM(CX13:CX15) -> 1 | CZ16: =SUM(CZ13:CZ15) -> 1 | DB16: =SUM(DB13:DB15) -> 1 | DD16: =SUM(DD13:DD15) -> 1 | DF16: =SUM(DF13:DF15) -> 1 | DH16: =SUM(DH13:DH15) -> 1 | DJ16: =SUM(DJ13:DJ15) -> 1 | DL16: =SUM(DL13:DL15) -> 1 | DN16: =SUM(DN13:DN15) -> 1 | DP16: =SUM(DP13:DP15) -> 1 | DR16: =SUM(DR13:DR15) -> 1 | DT16: =SUM(DT13:DT15) -> 1 | DV16: =SUM(DV13:DV15) -> 1 | DX16: =SUM(DX13:DX15) -> 1 | DZ16: =SUM(DZ13:DZ15) -> 1 | EB16: =SUM(EB13:EB15) -> 1 | ED16: =SUM(ED13:ED15) -> 2 | EF16: =SUM(EF13:EF15) -> 1 | EH16: =SUM(EH13:EH15) -> 1 | EJ16: =SUM(EJ13:EJ15) -> 1 | EL16: =SUM(EL13:EL15) -> 1 | EN16: =SUM(EN13:EN15) -> 1 | EP16: =SUM(EP13:EP15) -> 1 | ER16: =SUM(ER13:ER15) -> 1 | ET16: =SUM(ET13:ET15) -> 1 | EV16: =SUM(EV13:EV15) -> 1 | EX16: =SUM(EX13:EX15) -> 1 | EZ16: =SUM(EZ13:EZ15) -> 1 | FB16: =SUM(FB13:FB15) -> 1 | FD16: =SUM(FD13:FD15) -> 1 | FF16: =SUM(FF13:FF15) -> 1 | FH16: =SUM(FH13:FH15) -> 1 | FJ16: =SUM(FJ13:FJ15) -> 1 | FL16: =SUM(FL13:FL15) -> 1 | FN16: =SUM(FN13:FN15) -> 1 | FP16: =SUM(FP13:FP15) -> 1 | FR16: =SUM(FR13:FR15) -> 1 | FT16: =SUM(FT13:FT15) -> 1 | FV16: =SUM(FV13:FV15) -> 1 | FX16: =SUM(FX13:FX15) -> 1 | FZ16: =SUM(FZ13:FZ15) -> 1 | GB16: =SUM(GB13:GB15) -> 1 | GD16: =SUM(GD13:GD15) -> 1 | GF16: =SUM(GF13:GF15) -> 1 | GH16: =SUM(GH13:GH15) -> 1 | GJ16: =SUM(GJ13:GJ15) -> 1 | GL16: =SUM(GL13:GL15) -> 1 | GN16: =SUM(GN13:GN15) -> 1 | GP16: =SUM(GP13:GP15) -> 1 | GR16: =SUM(GR13:GR15) -> 1 | GT16: =SUM(GT13:GT15) -> 1 | GV16: =SUM(GV13:GV15) -> 1 | GX16: =SUM(GX13:GX15) -> 1 | GZ16: =SUM(GZ13:GZ15) -> 1 | HB16: =SUM(HB13:HB15) -> 1 | HD16: =SUM(HD13:HD15) -> 1 | HF16: =SUM(HF13:HF15) -> 1 | HH16: =SUM(HH13:HH15) -> 1 | HJ16: =SUM(HJ13:HJ15) -> 1 | HL16: =SUM(HL13:HL15) -> 1 | HN16: =SUM(HN13:HN15) -> 1 | HP16: =SUM(HP13:HP15) -> 1 | HR16: =SUM(HR13:HR15) -> 1 | HT16: =SUM(HT13:HT15) -> 1 | HV16: =SUM(HV13:HV15) -> 1 | HX16: =SUM(HX13:HX15) -> 1 | HZ16: =SUM(HZ13:HZ15) -> 1 | IB16: =SUM(IB13:IB15) -> 1 | ID16: =SUM(ID13:ID15) -> 1 | IF16: =SUM(IF13:IF15) -> 1 | IH16: =SUM(IH13:IH15) -> 1 | IJ16: =SUM(IJ13:IJ15) -> 1 | IL16: =SUM(IL13:IL15) -> 1 | IN16: =SUM(IN13:IN15) -> 1 | IP16: =SUM(IP13:IP15) -> 1 | IR16: =SUM(IR13:IR15) -> 1 | IT16: =SUM(IT13:IT15) -> 1 | IV16: =SUM(IV13:IV15) -> 1 | IX16: =SUM(IX13:IX15) -> 1 | IZ16: =SUM(IZ13:IZ15) -> 1 | JB16: =SUM(JB13:JB15) -> 1 | JD16: =SUM(JD13:JD15) -> 1 | JF16: =SUM(JF13:JF15) -> 1 | JH16: =SUM(JH13:JH15) -> 1 | JJ16: =SUM(JJ13:JJ15) -> 1 | JL16: =SUM(JL13:JL15) -> 1 | JN16: =SUM(JN13:JN15) -> 1 | JP16: =SUM(JP13:JP15) -> 1 | JR16: =SUM(JR13:JR15) -> 1 | JT16: =SUM(JT13:JT15) -> 1 | JV16: =SUM(JV13:JV15) -> 1 | JX16: =SUM(JX13:JX15) -> 1 | JZ16: =SUM(JZ13:JZ15) -> 1 | KB16: =SUM(KB13:KB15) -> 1 | KD16: =SUM(KD13:KD15) -> 1 | KF16: =SUM(KF13:KF15) -> 1 | KH16: =SUM(KH13:KH15) -> 1 | KJ16: =SUM(KJ13:KJ15) -> 1 | KL16: =SUM(KL13:KL15) -> 1 | KN16: =SUM(KN13:KN15) -> 1 | KP16: =SUM(KP13:KP15) -> 1 | KR16: =SUM(KR13:KR15) -> 1 | KT16: =SUM(KT13:KT15) -> 1 | KV16: =SUM(KV13:KV15) -> 1 | KX16: =SUM(KX13:KX15) -> 1 | KZ16: =SUM(KZ13:KZ15) -> 1 | LB16: =SUM(LB13:LB15) -> 1 | LD16: =SUM(LD13:LD15) -> 1 | LF16: =SUM(LF13:LF15) -> 1 | LH16: =SUM(LH13:LH15) -> 1 | LJ16: =SUM(LJ13:LJ15) -> 1 | LL16: =SUM(LL13:LL15) -> 1 | LN16: =SUM(LN13:LN15) -> 1 | LP16: =SUM(LP13:LP15) -> 1 | LR16: =SUM(LR13:LR15) -> 1 | LT16: =SUM(LT13:LT15) -> 1 | LV16: =SUM(LV13:LV15) -> 1 | LX16: =SUM(LX13:LX15) -> 1 | LZ16: =SUM(LZ13:LZ15) -> 1 | MB16: =SUM(MB13:MB15) -> 1 | MD16: =SUM(MD13:MD15) -> 1 | MF16: =SUM(MF13:MF15) -> 1 | MH16: =SUM(MH13:MH15) -> 1 | MJ16: =SUM(MJ13:MJ15) -> 1 | ML16: =SUM(ML13:ML15) -> 1 | MN16: =SUM(MN13:MN15) -> 1 | MP16: =SUM(MP13:MP15) -> 1 | MR16: =SUM(MR13:MR15) -> 1 | MT16: =SUM(MT13:MT15) -> 1 | MV16: =SUM(MV13:MV15) -> 1 | MX16: =SUM(MX13:MX15) -> 1 | MZ16: =SUM(MZ13:MZ15) -> 1 | NB16: =SUM(NB13:NB15) -> 1 | ND16: =SUM(ND13:ND15) -> 1 | NF16: =SUM(NF13:NF15) -> 1 | NH16: =SUM(NH13:NH15) -> 1 | NJ16: =SUM(NJ13:NJ15) -> 1 | NL16: =SUM(NL13:NL15) -> 1 | NN16: =SUM(NN13:NN15) -> 1 | NP16: =SUM(NP13:NP15) -> 1 | NR16: =SUM(NR13:NR15) -> 1 | NT16: =SUM(NT13:NT15) -> 1 | NV16: =SUM(NV13:NV15) -> 1 | NX16: =SUM(NX13:NX15) -> 1 | NZ16: =SUM(NZ13:NZ15) -> 1 | OB16: =SUM(OB13:OB15) -> 1 | OD16: =SUM(OD13:OD15) -> 1 | OF16: =SUM(OF13:OF15) -> 1 | OH16: =SUM(OH13:OH15) -> 1 | OJ16: =SUM(OJ13:OJ15) -> 1 | OL16: =SUM(OL13:OL15) -> 1 | ON16: =SUM(ON13:ON15) -> 1 | OP16: =SUM(OP13:OP15) -> 1 | OR16: =SUM(OR13:OR15) -> 1 | OT16: =SUM(OT13:OT15) -> 1 | OV16: =SUM(OV13:OV15) -> 1 | OX16: =SUM(OX13:OX15) -> 1 | OZ16: =SUM(OZ13:OZ15) -> 1 | PB16: =SUM(PB13:PB15) -> 1 | PD16: =SUM(PD13:PD15) -> 1 | PF16: =SUM(PF13:PF15) -> 1 | PH16: =SUM(PH13:PH15) -> 1 | PJ16: =SUM(PJ13:PJ15) -> 1 | PL16: =SUM(PL13:PL15) -> 1 | PN16: =SUM(PN13:PN15) -> 1 | PP16: =SUM(PP13:PP15) -> 1 | PR16: =SUM(PR13:PR15) -> 1 | PT16: =SUM(PT13:PT15) -> 1 | PV16: =SUM(PV13:PV15) -> 1 | PX16: =SUM(PX13:PX15) -> 1 | PZ16: =SUM(PZ13:PZ15) -> 1 | QB16: =SUM(QB13:QB15) -> 1 | QD16: =SUM(QD13:QD15) -> 1 | QF16: =SUM(QF13:QF15) -> 1 | QH16: =SUM(QH13:QH15) -> 1 | QJ16: =SUM(QJ13:QJ15) -> 1 | QL16: =SUM(QL13:QL15) -> 1 | QN16: =SUM(QN13:QN15) -> 1 | QP16: =SUM(QP13:QP15) -> 1 | QR16: =SUM(QR13:QR15) -> 1 | QT16: =SUM(QT13:QT15) -> 1 | QV16: =SUM(QV13:QV15) -> 1 | QX16: =SUM(QX13:QX15) -> 1 | QZ16: =SUM(QZ13:QZ15) -> 1 | RB16: =SUM(RB13:RB15) -> 1 | RD16: =SUM(RD13:RD15) -> 1 | RF16: =SUM(RF13:RF15) -> 1 | RH16: =SUM(RH13:RH15) -> 1 | RJ16: =SUM(RJ13:RJ15) -> 1 | RL16: =SUM(RL13:RL15) -> 1 | RN16: =SUM(RN13:RN15) -> 1 | RP16: =SUM(RP13:RP15) -> 1 | RR16: =SUM(RR13:RR15) -> 1 | RT16: =SUM(RT13:RT15) -> 1 | RV16: =SUM(RV13:RV15) -> 1 | RX16: =SUM(RX13:RX15) -> 1 | RZ16: =SUM(RZ13:RZ15) -> 1 | SB16: =SUM(SB13:SB15) -> 1 | SD16: =SUM(SD13:SD15) -> 1 | SF16: =SUM(SF13:SF15) -> 1 | SH16: =SUM(SH13:SH15) -> 1 | SJ16: =SUM(SJ13:SJ15) -> 1 | SL16: =SUM(SL13:SL15) -> 1 | SN16: =SUM(SN13:SN15) -> 1 | SP16: =SUM(SP13:SP15) -> 1 | SR16: =SUM(SR13:SR15) -> 1 | ST16: =SUM(ST13:ST15) -> 1 | SV16: =SUM(SV13:SV15) -> 1 | SX16: =SUM(SX13:SX15) -> 1 | SZ16: =SUM(SZ13:SZ15) -> 1 | TB16: =SUM(TB13:TB15) -> 1 | TD16: =SUM(TD13:TD15) -> 1 | TF16: =SUM(TF13:TF15) -> 1 | TH16: =SUM(TH13:TH15) -> 1 | TJ16: =SUM(TJ13:TJ15) -> 1 | TL16: =SUM(TL13:TL15) -> 1 | TN16: =SUM(TN13:TN15) -> 1 | TP16: =SUM(TP13:TP15) -> 1 | TR16: =SUM(TR13:TR15) -> 1 | TT16: =SUM(TT13:TT15) -> 1 | TV16: =SUM(TV13:TV15) -> 1 | TX16: =SUM(TX13:TX15) -> 1 | TZ16: =SUM(TZ13:TZ15) -> 1 | UB16: =SUM(UB13:UB15) -> 1 | UD16: =SUM(UD13:UD15) -> 1 | UF16: =SUM(UF13:UF15) -> 1 | UH16: =SUM(UH13:UH15) -> 1 | UJ16: =SUM(UJ13:UJ15) -> 1 | UL16: =SUM(UL13:UL15) -> 1 | UN16: =SUM(UN13:UN15) -> 1 | UP16: =SUM(UP13:UP15) -> 1 | UR16: =SUM(UR13:UR15) -> 1 | UT16: =SUM(UT13:UT15) -> 1 | UV16: =SUM(UV13:UV15) -> 1 | UX16: =SUM(UX13:UX15) -> 1 | UZ16: =SUM(UZ13:UZ15) -> 1 | VB16: =SUM(VB13:VB15) -> 1 | VD16: =SUM(VD13:VD15) -> 1 | VF16: =SUM(VF13:VF15) -> 1 | VH16: =SUM(VH13:VH15) -> 1 | VJ16: =SUM(VJ13:VJ15) -> 1 | VL16: =SUM(VL13:VL15) -> 1 | VN16: =SUM(VN13:VN15) -> 1 | VP16: =SUM(VP13:VP15) -> 1 | VR16: =SUM(VR13:VR15) -> 1 | VT16: =SUM(VT13:VT15) -> 1 | VV16: =SUM(VV13:VV15) -> 1 | VX16: =SUM(VX13:VX15) -> 1 | VZ16: =SUM(VZ13:VZ15) -> 1 | WB16: =SUM(WB13:WB15) -> 1 | WD16: =SUM(WD13:WD15) -> 1 | WF16: =SUM(WF13:WF15) -> 1 | WH16: =SUM(WH13:WH15) -> 1 | WJ16: =SUM(WJ13:WJ15) -> 1 | WL16: =SUM(WL13:WL15) -> 1 | WN16: =SUM(WN13:WN15) -> 1 | WP16: =SUM(WP13:WP15) -> 1 | WR16: =SUM(WR13:WR15) -> 1 | WT16: =SUM(WT13:WT15) -> 1 | WV16: =SUM(WV13:WV15) -> 1 | WX16: =SUM(WX13:WX15) -> 1 | WZ16: =SUM(WZ13:WZ15) -> 1 | XB16: =SUM(XB13:XB15) -> 1 | XD16: =SUM(XD13:XD15) -> 1 | XF16: =SUM(XF13:XF15) -> 1 | XH16: =SUM(XH13:XH15) -> 1 | XJ16: =SUM(XJ13:XJ15) -> 1 | XL16: =SUM(XL13:XL15) -> 1 | XN16: =SUM(XN13:XN15) -> 1 | XP16: =SUM(XP13:XP15) -> 1 | XR16: =SUM(XR13:XR15) -> 1 | XT16: =SUM(XT13:XT15) -> 1 | XV16: =SUM(XV13:XV15) -> 1 | XX16: =SUM(XX13:XX15) -> 1

Sheet Services Délégués
A1: Retour à l'accueil
A2: EAU | G2: ASSAINISSEMENT | S2: SERVICES MARCHANDS | AA2: PANNEAUX PUBLICITAIRES | AC2: TOTAL
A3: AEV | C3: FPM | E3: PEA | G3: Entretien des voies urbaines | I3: Eclairage public | K3: Collecte et traitement des déchets | M3: Evacuation des eaux usées | O3: Gestion des cimétieres | Q3: Gestion des espaces verts | S3: Gestion des marchés | U3: Gestion des abattoirs | W3: Promotion du tourisme | Y3: Gestions des gares routieres
A4: PREVUES | B4: DELEGUEES | C4: PREVUES | D4: DELEGUEES | E4: PREVUES | F4: DELEGUEES | G4: PREVUS | H4: DELEGUES | I4: PREVUS | J4: DELEGUES | K4: PREVUS | L4: DELEGUES | M4: PREVUS | N4: DELEGUES | O4: PREVUS | P4: DELEGUES | Q4: PREVUS | R4: DELEGUES | S4: PREVUS | T4: DELEGUES | U4: PREVUS | V4: DELEGUES | W4: PREVUS | X4: DELEGUES | Y4: PREVUS | Z4: DELEGUES | AA4: PREVUS | AB4: DELEGUES | AC4: PREVUS | AD4: DELEGUES
S5: 20 | T5: 0 | U5: 0 | V5: 0 | W5: 0 | X5: 0 | Y5: 6 | Z5: 0 | AA5: 3 | AB5: 3 | AC5: =SUM(A5,C5,E5,G5,I5,K5,M5,O5,Q5,S5,U5,W5,Y5,AA5) -> 29 | AD5: =SUM(B5,D5,F5,H5,J5,L5,N5,P5,R5,T5,V5,X5,Z5,AB5) -> 3

Sheet Autres données
A1: Retour à l'accueil
A2: Données à collecter | D2: Valeurs
A3: Fonctionalité des services de la mairie | C3: Nombre de services prévus. | D3: 27
C4: Nombre de services fonctionnels | D4: 22
A5: Manuel de procédure | C5: Existence du manuel de procédure | D5: OUI
C6: Manuel de procédure actualisé. | D6: NON
A7: Evaluation du personnel | C7: Nombre de personnes évalué | D7: 342
C8: Effectif du personnel | D8: 342
A9: Adequation profil/poste | C9: Nombre de postes occupés dans la commune | D9: 69
C10: Nombre d'agents dont le profil correspond au poste occupé | D10: 28
A11: Données Foncieres | B11: Commission de Gestion foncière (COGEF) | C11: Existence de la COGEF | D11: OUI
C12: Nombre d'Attestation de Détention Coutumiere (ADC) demandé | D12: 0
C13: Nombre d'Attestation de Détention Coutumiere (ADC) traité | D13: 0
B14: Nombre de contentieux fonciers impliquant la commune | D14: 31
A15: Système d'information | C15: Existence d’un système de classement et d’archivage | D15: NON
C16: Existence d’une personne en charge du classement des archivages | D16: OUI
C17: Existence d’un local dédié à l’archivage | D17: OUI
C18: Existence de documents archivés. | D18: NON
A19: Nombre de délégations | C19: Nombre de délégations de signature pris. | D19: 6
A20: Attributions de pouvoir | C20: Nombre d'attributions de pouvoir pris.
A21: Séances de reddition de comptes | C21: Nombre de séances tenues | D21: 1
C22: Nombre de séances prévues. | D22: 2
A23: Activités spécifiques en faveur des femmes | C23: Nombre d’activités spécifiques réalisées en faveur des femmes | D23: 2
C24: Nombre d’activités réalisées dans le PTA | D24: 2
A25: Informations sur les prestations de la commune | C25: Existence d’un lieu publique dédié à l'informations sur les prestations de la commune | D25: OUI
C26: Existence d'une personne en charge de l'information | D26: OUI
A27: SDAC en cours de validité | C27: Existence ou non d'un SDAC | D27: NON
A28: PDC en cours de validité | C28: Existence ou non d’un PDC | D28: OUI
A29: Suivi évaluation des PTA/PAI/PAD | C29: Nombre de séances de suivi évaluation des PTA
C30: Nombre de séances de suivi évaluation des PAI | D30: 1
C31: Nombre de séances de suivi évaluation des PAD
A32: Infrastructures économiques et marchandes | C32: Nombre réalisées en année 2019 | D32: 116
C33: Nombre réalisées en année 2018 | D33: 138
A34: TBS | C34: Existence d’un TBS actualisé | D34: NON
C35: Date d’actualisation
A36: Coopération décentralisée | C36: Nombre d’accord actif
C37: Nombre d’activités réalisées provenants de ces accords

Sheet Récapitulatif (hidden)
A1: Données à traiter | C1: Valeurs
A2: Nombre de sessions ordinaires tenues | C2: =COUNTA(CC!C6:C9) -> 4
A3: Nombre de services prévus. | C3: ='Autres données'!D3 -> 27
A4: Nombre de services existant doté en personnel. | C4: ='Autres données'!D4 -> 22
A5: Nombre d’élus du conseil communal | C5: =CC!D4 -> 37
A6: Nombre de conseillers présents à chaque conseil communal | C6: =SUMIF(CC!C6:C9,"<>",CC!B6:B9) -> 134
A7: Existence du manuel de procédure actualisé. | C7: =IF(OR('Autres données'!D5="NON",'Autres données'!D5=""),0,IF('Autres données'!D6="OUI",1,0.5)) -> 0.5
A8: Nombre de fiches d’évaluation du personnel évalué dans l’année. | C8: ='Autres données'!D7 -> 342
A9: Nombre de personnes à évaluer. | C9: ='Autres données'!D8 -> 342
A10: Nombre de commissions permanentes existantes. | C10: =CP!C18 -> 13
A11: Nombre de sessions des commissions permamentes | C11: =SUM(CP!D18,CP!G18,CP!J18,CP!M18,CP!P18,CP!V18,CP!Y18,CP!AB18,CP!AE18,CP!AH18,CP!AK18) -> 0
A12: Nombre présents commission permanente | C12: =SUM(CP!D19,CP!G19,CP!J19,CP!M19,CP!P19,CP!V19,CP!Y19,CP!AB19,CP!AE19,CP!AH19,CP!AK19) -> 0
A13: Nombre de propositions formulées par les commissions permanentes | C13: =SUM(CP!E19,CP!H19,CP!K19,CP!N19,CP!Q19,CP!T19,CP!W19,CP!Z19,CP!AC19,CP!AF19,CP!AI19,CP!AL19) -> 0
A14: Nombre de propositions formulées par les commissions permanentes réalisées. | C14: =SUM(CP!F19,CP!I19,CP!L19,CP!O19,CP!R19,CP!U19,CP!X19,CP!AA19,CP!AD19,CP!AG19,CP!AJ19,CP!AM19) -> 0
A15: Nombre de postes occupés | C15: ='Autres données'!D9 -> 69
A16: Nombre de postes occupés correspondant au profil recherché | C16: ='Autres données'!D10 -> 28
A17: Existence ou non d’un système de documentation et d’archivage | C17: =IF('Autres données'!D15="OUI",1,0) -> 0
A18: Existence ou non d’une personne en charge de la documentation et d’archivage | C18: =IF('Autres données'!D16="OUI",1,0) -> 1
A19: Existence ou non d’un local dédié à la documentation et d’archivage | C19: =IF('Autres données'!D17="OUI",1,0) -> 1
A20: Existence ou non de document archivés. | C20: =IF('Autres données'!D18="OUI",1,0) -> 0
A21: Nombre de services publics susceptibles d’être délégués | C21: ='Services Délégués'!AC5 -> 29
A22: Nombre de services publics délégués dans l’année | C22: ='Services Délégués'!AD5 -> 3
A23: Nombre total de rapports produits dans l’année | C23: =COUNTIF(CC!F6:F9,"=OUI") -> 4
A24: Nombre total de rapports à produire dans l’année. | C24: =C2 -> 4 | D24: nombre de session dans l'année =4
A25: Nombre de réunions de la municipalité | C25: =CC!D3 -> 6
A26: Nombre de réunions prévues | C26: 12 | D26: limité à 12
A27: Nombre total de sessions de conseils d’arrondissement tenues au cours de l’année | C27: =SUM(CA!B3:B50) -> 0 | D27: somme dans CA
A28: Nombre d’arrondissements | C28: 9
A29: Nombre total de réunions de conseils de village tenues au cours de l’année | C29: =SUM(CV!C5:C100) -> 0 | D29: somme d&ns CV
A30: Nombre de villages | C30: 151
A31: Nombre de documents ou d’arrêtés portant délégation de signature pris. | C31: ='Autres données'!D19 -> 6
A32: Nombre de document ou arrêtés portant délégation de pouvoir pris. | C32: ='Autres données'!D20 -> 0
A33: Montant du budget prévisionnel | C33: =Budget!A5 -> 6644821608
A34: Montant du Budget Consommé | C34: =E37+C39 -> 3834612278
A35: Recette fiscales previsionnelles | C35: =Budget!B5 -> 2023176000
A36: Dépenses d'investissement | B36: Ressources propres | C36: =Budget!D5 -> 447787784
B37: Investissement provenant de la coopération décentralisée | C37: =Budget!E5 -> 0 | E37: =SUM(C36:C38) -> 1621117492
B38: Autres ressources | C38: =Budget!F5 -> 1173329708
A39: Dépenses totales de fonctionnement | C39: =Budget!G5 -> 2213494786
A40: Dépenses d'entretien des équipements et ouvrages | C40: =Budget!H5 -> 320973775
A41: Montant des ressources propres de l'année n-1 | C41: =Budget!K5 -> 3836648774
A42: Montant des ressources propres de l'année n | C42: =Budget!L5 -> 3894668134
A43: Recettes fiscales recouvrées | C43: =Budget!I5 -> 2293454478
A44: Montant des cotisations versées à échéance | C44: =Budget!M5 -> 3000000
A45: Montant des cotisations dues à échéance | C45: =Budget!N5 -> 5000000
A46: Nombre de marchés conclus dans l’année | C46: =Marchés!E5 -> 416
A47: =Marchés!A3 -> Plan de passation des marchés publics publiés | C47: =IF(Marchés!E3="OUI",1,0) -> 1
A48: =Marchés!A4:D4 -> Nombre de marchés publics passés hors plan de passation des marchés | C48: =Marchés!E4 -> 0 | D48: =IF(Marchés!E4="",0,IF(Marchés!E4=0,1,0)) -> 1
A49: Nombre de marchés conclus dans l’année et ayant respecté les procédures. | C49: =Marchés!E6 -> 416
A50: Délai moyen de passation des marchés publics communaux | C50: =IF(C46=0,0,D50/C46) -> 0.7764423077 | D50: =SUM(Marchés!$D$16:$AFK$16) -> 323
A51: Nombre de fois où les relevés des délibérations affichés | C51: =COUNTA(CC!E6:E9) -> 4
A52: Délai d’affichage | C52: =SUM(CC!I6:I9)/C2 -> 1 | D52: 8 jours maxi aprs la fin de la session
A53: Nombre de séances de reddition de comptes | C53: ='Autres données'!D21 -> 1
A54: Nombre de séances de reddition de comptes prévus. | C54: ='Autres données'!D22 -> 2
A55: Nombre d’actions spécifiques réalisées en faveur des femmes | C55: ='Autres données'!D23 -> 2
A56: Nombre d’actions spécifiques réalisées dans le PTA | C56: ='Autres données'!D24 -> 2
A57: ='Autres données'!C25 -> Existence d’un lieu publique dédié à l'informations sur les prestations de la commune | C57: =IF('Autres données'!D25="OUI",1,0) -> 1
A58: ='Autres données'!C26 -> Existence d'une personne en charge de l'information | C58: =IF('Autres données'!D26="OUI",1,0) -> 1
A59: Nombre de cadres de concertation. | C59: =COUNTA('Cadres de Concertation'!F6:L6) -> 0 | D59: =IF(C59<=0,0,IF(C59>3,1,C59/4)) -> 0
A60: Nombre moyen de réunions du cadre de concertation tenu | C60: =SUM('Cadres de Concertation'!F6:L6)/C59 ->  | D60: =IF(C60<=0.5,0,IF(C60<1.5,0.25,IF(C60<2.5,0.5,IF(C60<4,0.75,1)))) -> 
A61: Existence ou non d’un SDAC. | C61: =IF('Autres données'!D27="OUI",1,0) -> 0
A62: Existence ou non d’un PDC | C62: =IF('Autres données'!D28="OUI",1,0) -> 1
A63: Montant PAI prévision | C63: =Budget!C5 -> 8902914261
A64: Montant PAI réalisé | C64: =Budget!J5 -> 889660927
A65: Nombre de séances de suivi évaluation des PTA/PAI/PAD | C65: =SUM('Autres données'!D29:D31) -> 1
A66: Nombre d’infrastructures économiques et marchandes réalisées en année n | C66: ='Autres données'!D32 -> 116
A67: Nombre d’infrastructures économiques et marchandes réalisées en année n-1 | C67: ='Autres données'!D33 -> 138
A68: Nombre d'EPC demandé (village) | C68: =SUM(CV!D5:D191) -> 0 | F68: somme
A69: Nombre d'EPC réalisé (Village) | C69: =SUM(CV!E5:E191) -> 0
A70: Nombre de ADC demandé (Commune-Autre données) | C70: ='Autres données'!D12 -> 0
A71: Nombre de ADC réalisé (Commune-Autre données) | C71: ='Autres données'!D13 -> 0
A72: Existence ou inexistence d’un tableau de bord social actualisé | C72: =IF('Autres données'!D34="OUI",1,0) -> 0
A73: Date d’actualisation du tableau de bord social | C73: ='Autres données'!D35 -> 00:00:00
A74: Existence d'un tableau de bord | C74: ='Autres données'!D34 -> NON
A75: Nombre d’ accord de coopération décentralisée. | C75: =IF('Autres données'!D36<1,0,IF('Autres données'!D36=1,0.5,1)) -> 0
A76: Nombre d’activités des accords de coopération décentralisées réalisées. | C76: =IF('Autres données'!D37<1,0,IF('Autres données'!D37<3,0.5,1)) -> 0
A77: Nombre de conflits fonciers impliquant la commune | C77: =IF('Autres données'!D14="","",'Autres données'!D14) -> 31 | D77: =IF(C77="",0,IF(C77=0,1,IF(C77<=3,0.75,IF(C77<=8,0.5,IF(C77<=15,0.25,0))))) -> 0
A78: Nombre de participation du maire ou de son représentant au CDCC au cours de l’année | C78: =COUNTIF(Tutelle!B5:B6,">0") -> 2 | D78: feuille tutelle (compter le nombre de lignes 5 ou 6 rempli
A79: Nombre de CDCC tenus dans l’année. | C79: =COUNTA(Tutelle!C5:C6) -> 0 | D79: fixer à 2
A80: Nombre total de présence du maire ou de ses adjoints au CDCC | C80: =SUMIF(Tutelle!C5:C6,"<>",Tutelle!B5:B6) -> 0
A81: Nombre total attendu (Maire et ses adjoints) pour toutes les sessions | C81: =C79*Tutelle!C3 -> 0
A82: Nombre d’actes communaux conformes en une année | C82: =Tutelle!D8 -> 0
A83: Nombre d’actes communaux soumis à la tutelle en un an | C83: =Tutelle!D9 -> 0
A84: Le budget est transmis ou pas. | C84: =IF(Tutelle!H2="TRANSMIS",1,0) -> 1
A85: Délai de transmission du budget après adoption par le conseil communal | C85: =IF(Budget!Q5="",0,IF(Budget!Q5<=DATE(Acceuil!P12,3,31),1,0)) -> 0
A86: Délai d'approbation du budget par la tutelle | C86: =IF(OR(Tutelle!H4="",Tutelle!H5=""),0,IF(Tutelle!H5<=EDATE(Tutelle!H4,1),1,0)) -> 1 | D86: si<1mois, 1, 0 sinon
A87: Le compte administratif est transmis ou pas. | C87: =IF(Tutelle!H6="TRANSMIS",1,0) -> 1
A88: Délai de transmission du compte administratif après adoption par le conseil communal | C88: =IF(Tutelle!H7="",0,IF(Tutelle!H7<=DATE(Acceuil!P12+1,6,30),1,0)) -> 1
A89: Délai d'approbation du compte administratif par la tutelle | C89: =IF(OR(Tutelle!H8="",Tutelle!H9=""),0,IF(Tutelle!H9<=EDATE(Tutelle!H8,1),1,0)) -> 0
A90: Nombre de réunions du cadre de concertation prévu (Mairie + SDE) | C90: ='Cadres de Concertation'!C5 -> 0
A91: Nombre de réunions du cadre de concertation tenu (Mairie + SDE) | C91: =COUNTA('Cadres de Concertation'!C7:C18) -> 0 | E91: =C91/C90 ->  | F91: =C92/C93 -> 
A92: Nombre total des membres présents (Mairie + SDE) | C92: =SUMIF('Cadres de Concertation'!C7:C18,"<>",'Cadres de Concertation'!B7:B18) -> 0
A93: Nombre total des membres attendus (Mairie + SDE) | C93: ='Cadres de Concertation'!C4*Récapitulatif!C91 -> 0

Sheet Indicateurs (hidden)
A1: D1 | B1: 1 | C1: Taux de realisation des sessions ordinaires du conseil communal | D1: =Récapitulatif!C2/4 -> 1
B2: 2 | C2: Taux de services fonctionnels | D2: =Récapitulatif!C4/Récapitulatif!C3 -> 0.8148148148
B3: 3 | C3: Taux de participation des élus aux conseils communaux | D3: =Récapitulatif!C6/(Récapitulatif!C5*Récapitulatif!C2) -> 0.9054054054
B4: 4 | C4: Existance d'un manuel de procedure à jour | D4: =Récapitulatif!C7 -> 0.5
B5: 5 | C5: Taux de personnes évaluées | D5: =Récapitulatif!C8/Récapitulatif!C9 -> 1
B6: 6 | C6: Taux de commissions permanentes fonctionnelles | D6: =((Récapitulatif!C11/Récapitulatif!C10)+(Récapitulatif!C12/CP!AP18)+(Récapitulatif!C14/Récapitulatif!C13))/3 -> 
B7: 7 | C7: Taux d'adéquation profil/poste | D7: =Récapitulatif!C16/Récapitulatif!C15 -> 0.4057971014
B8: 8 | C8: Fonctionalité du système de classement et d'archivage | D8: =SUM(Récapitulatif!C17:C20)/4 -> 0.5
B9: 9 | C9: Taux de services publics locaux en gestion déléguée | D9: =Récapitulatif!C22/Récapitulatif!C21 -> 0.1034482759
B10: 10 | C10: Taux de realisation des rapports d'activités du maire | D10: =Récapitulatif!C23/Récapitulatif!C24 -> 1
B11: 11 | C11: Taux de tenu des reunions de municipalité | D11: =Récapitulatif!C25/Récapitulatif!C26 -> 0.5
B12: 12 | C12: Taux moyen de tenue des sessions du conseil d'arrondissement | D12: =Récapitulatif!C27/Récapitulatif!C28 -> 0
B13: 13 | C13: Taux moyen de tenue des sessions du conseil de villages | D13: =Récapitulatif!C29/Récapitulatif!C30 -> 0
B14: 14 | C14: Nombre de délégation de signature du maire aux adjoints | D14: =Récapitulatif!C31 -> 6
B15: 15 | C15: Nombre de délégation de pouvoir éffectué par le maire | D15: =Récapitulatif!C32 -> 0
A16: D2 | B16: 1 | C16: Taux d'éxecution du budget communal | D16: =Récapitulatif!C34/Récapitulatif!C33 -> 0.5770828029
B17: 2 | C17: Taux d'autofinancement des Investissements | D17: =Récapitulatif!C36/Récapitulatif!E37 -> 0.2762216719
B18: 3 | C18: Part des Investissements dans les dépenses totales de la commune | D18: =Récapitulatif!E37/Récapitulatif!C34 -> 0.4227591669
B19: 4 | C19: Part des dépenses d'entretien des équipements et ouvrages dans les depenses de fonctionnement | D19: =Récapitulatif!C40/Récapitulatif!C39 -> 0.1450076942
B20: 5 | C20: Adoption du budget dans les délais | D20: =IF(Tutelle!H3="",0,IF(Tutelle!H3<DATE(Acceuil!P12,1,1),1,0)) -> 1
B21: 6 | C21: Respect du délai de vote du compte administratif | D21: =IF(Tutelle!H7="",0,IF(Tutelle!H7<=DATE(Acceuil!P12,6,30),1,0)) -> 1
B22: 7 | C22: Taux d'accroissement des ressources propres | D22: =(Récapitulatif!C42-Récapitulatif!C41)/Récapitulatif!C41 -> 0.01512240589
B23: 8 | C23: Taux de recouvrement fiscal | D23: =Récapitulatif!C43/Récapitulatif!C35 -> 1.133591184
B24: 9 | C24: délai moyen de passation des marchés publics communaux | D24: =Récapitulatif!C50/Récapitulatif!C46 -> 0.001866447855
B25: 10 | C25: Existance des plans de passation des marchés validés et publiés | D25: =(Récapitulatif!C47+Récapitulatif!D48)/2 -> 1
B26: 11 | C26: Ratio des marchés publics ayant respecté les procédures | D26: =Récapitulatif!C49/Récapitulatif!C46 -> 1
A27: D3 | B27: 1 | C27: Affichage des relevés des décisions du Conseil Communal dans les délai | D27: =((Récapitulatif!C51/Récapitulatif!C2)+Récapitulatif!C52)/2 -> 1
B28: 2 | C28: Taux de réalisation des seances de reddition de compte | D28: =Récapitulatif!C53/Récapitulatif!C54 -> 0.5
B29: 3 | C29: Nombre d'actions spécifiques en faveur des femmes au cours de l'année | D29: =Récapitulatif!C55/Récapitulatif!C56 -> 1
B30: 4 | C30: Existance d'un mecanisme d'information du public par rapport aux prestations de la commune | D30: =(Récapitulatif!C57+Récapitulatif!C58)/2 -> 1
B31: 5 | C31: Nombre de cadre de concertation fonctionnel | D31: =(Récapitulatif!D59+Récapitulatif!D60)/2 -> 
A32: D4 | B32: 1 | C32: Existance d'un SDAC | D32: =Récapitulatif!C61 -> 0
B33: 2 | C33: Existance d'un PDC | D33: =(Récapitulatif!C62+(Récapitulatif!C64/Récapitulatif!C63))/2 -> 0.5499645903
B34: 3 | C34: Nombre de reunions de suivi-évaluation du PTA/PAI/PAD | D34: =Récapitulatif!C65 -> 1
B35: 4 | C35: Taux d'accroissement des infrastructures économiques et marchandes | D35: =(Récapitulatif!C66-Récapitulatif!C67)/Récapitulatif!C67 -> -0.1594202899
B36: 5 | C36: Fonctionalité des organes de gestion fonciere aux niveaux communal et infra communal | D36: =((Récapitulatif!C69/Récapitulatif!C68)+(Récapitulatif!C71/Récapitulatif!C70))/2 -> 
B37: 6 | C37: Existance d'un tableau de bord social actualisé | D37: =Récapitulatif!C72 -> 0
B38: 7 | C38: Nombre d'accord de cooperation decentralisée mise en œuvre | D38: =(Récapitulatif!C75+Récapitulatif!C76)/2 -> 0
B39: 8 | C39: Taux de paiement des cotisations de la commune à l'intercommunalité | D39: =IF(Récapitulatif!C45=0,0,Récapitulatif!C44/Récapitulatif!C45) -> 0.6
B40: 9 | C40: Nombre de contentieux fonciers impliquant la Mairie | D40: =Récapitulatif!D77 -> 0
A41: D5 | B41: 1 | C41: Nombre de participations au CDCC | D41: =((Récapitulatif!C78/Récapitulatif!C79)+(Récapitulatif!C80/Récapitulatif!C81))/2 -> 
B42: 2 | C42: Taux de conformité des actes communaux | D42: =IF(Récapitulatif!C83=0,0,Récapitulatif!C82/Récapitulatif!C83) -> 0
B43: 3 | C43: Transmission du budget dans les délais | D43: =SUM(Récapitulatif!C84:C86)/3 -> 0.6666666667
B44: 4 | C44: Transmission du compte administratif dans les délais | D44: =SUM(Récapitulatif!C87:C89)/3 -> 0.6666666667
B45: 5 | C45: Animation d'un cadre de concertation entre le maire et les services déconcentrés communaux | D45: =(Récapitulatif!E91+Récapitulatif!F91)/2 -> 
